Workbook

Sheet Notes
A1: Version 2.1
A2: Introduction
A4: This spreadsheet is provided free of charge for you to use to further your education in options trading.
A5: The formulas used were taken from two great books on option trading
B6: Option Volatility and Pricing by Sheldon Natenberg
B7: Financial Models using Excel by Simon Benninga
C8: You can read more about these books from the www.OptionTradingTips.com website
C9: http://www.optiontradingtips.com
A11: If you have any suggestions for this workbook or even have a bug to report, please feel free to email
A12: me at admin@optiontradingtips.com
A14: To stay up to date with changes to this workbook and other modifications to the website, please feel free
A15: to subscribe:
A16: http://www.optiontradingtips.com/subscribe.html
A18: I have written all the formulas in Visual Basic using modules and are freely disclosed, so you may examine
A19: the logic, edit and change the calculations as you like.
A21: Troubleshooting
A22: You will need to have Macros enabled for the calculations to work.
A23: Follow the steps below to enable Macros:
A25: Excel 97 - 2003
A26: Go to Tools/Options
A27: Click on the Security tab
A28: Go to Macro Security
A29: Change the setting to Medium
A30: Close and reopen the workbook. It will ask you if you want to enable Macros, click Yes
A32: Excel 2007
A33: First, make sure that you can see the Developer tab
A34: If there is no Developer tab, click on the Office icon to the top left of the application
A35: and choose Excel Options, which is located at the bottom right of the popup.
A36: Now click on Popular at the top left. Check the box titled "Show developer tab in the ribbon".
A38: Now, click on the Developer tab.
A39: Click on Macro Security.
A40: Select "Disable all macros with notification" and press ok.
A41: Close and reopen spreadsheet.
A42: Now you should see a Security Warning appear in the toolbar
A43: that reads "Macros have been disabled". Click on the options button.
A44: Select "Enable this content" and press ok.
A46: Release Updates
A47: 11/06/07 - Fixed a bug on the OptionStrategies tab. The greeks for Stock positions were previously displaying as Put options.
A48: 27/04/06 - Fixed a bug that failed to calculate the theoretical change in P&L for stocks in the strategies tab.
A49: 28/08/06 - Fixed a small calculation bug for the Option Theta, which now has a near perfect accuracy.
A50: 1/10/06 - Added support for Dividend Yield, which can be used as a workaround to price options on futures
A51: by making the Dividend Yield the same as the Interest Rate.
A53: Basic
A54: The worksheet labelled Basic is a simple option pricer.
A55: You simply enter the option details into the yellow shaded areas and
A56: the output values will be displayed underneath in the blue shaded cells.
A58: OptionPage
A59: OptionPage is a worksheet that allows you to price a string of calls and puts for the same expiration
A60: date. Again, you enter the option details into the yellow cells and the output values are in the blue
A61: shaded cells.
A63: You can calculate the market implied volatility for each option by simply typing in the market price of
A64: the option in the column labelled "Market Price" and the volatility implied by the option's market value
A65: will show in the column "Implied Volatility".
A67: Column's A and L are where you can change the strike prices used for the calculations. Or you can just
A68: have the values derive straight from the Underlying Price by default.
A70: OptionStrategies
A71: This worksheet lets you enter combinations of options positions so you can view the payoff/risk graphs.
A72: The underlying data for the options is taken from the information entered into the OptionPage worksheet.
A73: Then just enter the number of contracts for each position and remember to put a negative number for sell
A74: positions.
A75: For Type, just enter "c" for call options, "p" for put options and "s" for stock/futures position.
A76: If you know what the option is trading at, you can enter the market price in the "override premium"
A77: row to calculate the P&L of the position after taking into account the actual price of the option.
A79: StrategyGraphs
A80: This worksheet will show the current Greek position values of your option strategy while referencing the
A81: a range of underlying prices. You can change the range of values by changing the cell A17 in the OptionStrategies
A82: worksheet.

Sheet Basic
A1: http://www.OptionTradingTips.com
B3: Underlying Price | C3: 1000 | D3: The current base price of the instrument, eg, the closing price of Microsft Stock
B4: Exercise Price | C4: 1000 | D4: The price at which the underlying instrument will be exchanged. Also called Strike Price
B5: Today's Date | C5: =TODAY() -> 2012-07-10
B6: Expiry Date | C6: =C5+23 -> 2012-08-02 | D6: The Date which the contract expires
B7: Historical Volatility | C7: 0.2 | D7: The Historical Volatility of the asset's returns
B8: Risk Free Rate | C8: 0.05 | D8: The current risk free interest rate i.e. your return on cash held in the bank
B9: Dividened Yield | C9: 0 | D9: The Annualized Dividend Growth Rate of the Stock
B10: DTE (Years) | C10: =(C6-C5)/365 -> 0.06301369863
C12: Call Option | D12: Put Option
B13: Theoretical Price | C13: =CallOption(C3,C4,C10,C8,C7,C9) -> 21.60753445 | D13: =PutOption(C3,C4,C10,C8,C7,C9) -> 18.46180772
B14: Delta | C14: =CallDelta(C3,C4,C10,C8,C7,C9) -> 0.5350055698 | D14: =Putdelta(C3,C4,C10,C8,C7,C9) -> -0.4649944302 | E14: The amount that the theoretical price will change if the market moves up/down 1 point
B15: Gamma | C15: =Gamma(C3,C4,C10,C8,C7,C9) -> 0.00791564641 | D15: =Gamma(C3,C4,C10,C8,C7,C9) -> 0.00791564641 | E15: The amount that the Delta will change if the market moves up/down 1 point
B16: Theta | C16: =CallTheta(C3,C4,C10,C8,C7,C9) -> -0.5040625479 | D16: =PutTheta(C3,C4,C10,C8,C7,C9) -> -0.367507168 | E16: The amount that the theoretical price will change when 1 day passes.
B17: Vega | C17: =vega(C3,C4,C10,C8,C7,C9) -> 0.9975883147 | D17: =vega(C3,C4,C10,C8,C7,C9) -> 0.9975883147 | E17: The amount that the theoretical price will change if the volatility of the asset moves up/down by 1 percentage point
B18: Rho | C18: =CallRho(C3,C4,C10,C8,C7,C9) -> 0.3235110907 | D18: =PutRho(C3,C4,C10,C8,C7,C9) -> -0.3046436568 | E18: The amount that the theoretical price will change if interest rates move up/down by 1 percentage point

Sheet OptionPage
A2: 25 | B2: Underlying Price | G2: <-- Yellow cells are for user input
A3: =TODAY() -> 2012-07-10 | B3: Today's Date | G3: <-- Blue cells are the calculated outputs
A4: 0.3 | B4: Historical Volatility | G4: This worksheet allows you to price multiple strikes for calls and puts for the same Expiry
A5: =A3+25 -> 2012-08-04 | B5: Expiry Date | G5: with the same Underlying Price. Remember, you can customise your own workbook any way
A6: 0.035 | B6: Risk Free Rate | G6: you like by using the formulas provided.
A7: 0.02 | B7: Dividend Yield
A8: =A5-A3 -> 25 | B8: DTE
A9: =A8/365 -> 0.06849315068 | B9: DTE in Years
A11: Call Options | L11: Put Options
C12: Theoretical | D12: Market | E12: Implied | F12: Option Greeks | N12: Theoretical | O12: Market | P12: Implied | Q12: Option Greeks
A13: Strike Prices | C13: Price | D13: Price | E13: Volatility | F13: Delta | G13: Gamma | H13: Vega | I13: Theta | J13: Rho | L13: Strike Prices | N13: Price | O13: Price | P13: Volatility | Q13: Delta | R13: Gamma | S13: Vega | T13: Theta | U13: Rho
A14: =A15-0.5 -> 22.5 | B14: =IF(A14<$A$2,"ITM",IF(A14=$A$2,"ATM","OTM")) -> ITM | C14: =CallOption($A$2,A14,$A$9,$A$6,$A$4,$A$7) -> 2.594799647 | E14: =ImpliedCallVolatility($A$2,A14,$A$9,$A$6,D14,$A$7) -> 3.814697266e-05 | F14: =CallDelta($A$2,A14,$A$9,$A$6,$A$4,$A$7) -> 0.9183838095 | G14: =Gamma($A$2,A14,$A$9,$A$6,$A$4,$A$7) -> 0.07689285484 | H14: =vega($A$2,A14,$A$9,$A$6,$A$4,$A$7) -> 0.00987493855 | I14: =CallTheta($A$2,A14,$A$9,$A$6,$A$4,$A$7) -> -0.007874737916 | J14: =CallRho($A$2,A14,$A$9,$A$6,$A$4,$A$7) -> 0.01392696275 | L14: =A14 -> 22.5 | M14: =IF(L14<$A$2,"OTM",IF(L14=$A$2,"ATM","ITM")) -> OTM | N14: =PutOption($A$2,L14,$A$9,$A$6,$A$4,$A$7) -> 0.0751490206 | P14: =ImpliedPutVolatility($A$2,L14,$A$9,$A$6,O14,$A$7) -> 0.01087188721 | Q14: =Putdelta($A$2,L14,$A$9,$A$6,$A$4,$A$7) -> -0.08161619052 | R14: =Gamma($A$2,L14,$A$9,$A$6,$A$4,$A$7) -> 0.07689285484 | S14: =vega($A$2,L14,$A$9,$A$6,$A$4,$A$7) -> 0.00987493855 | T14: =PutTheta($A$2,L14,$A$9,$A$6,$A$4,$A$7) -> -0.005722369646 | U14: =PutRho($A$2,L14,$A$9,$A$6,$A$4,$A$7) -> -0.001447096317
A15: =A16-0.5 -> 23 | B15: ITM | C15: =CallOption($A$2,A15,$A$9,$A$6,$A$4,$A$7) -> 2.156205351 | E15: =ImpliedCallVolatility($A$2,A15,$A$9,$A$6,D15,$A$7) -> 3.814697266e-05 | F15: =CallDelta($A$2,A15,$A$9,$A$6,$A$4,$A$7) -> 0.8674343228 | G15: =Gamma($A$2,A15,$A$9,$A$6,$A$4,$A$7) -> 0.1092394737 | H15: =vega($A$2,A15,$A$9,$A$6,$A$4,$A$7) -> 0.014029042 | I15: =CallTheta($A$2,A15,$A$9,$A$6,$A$4,$A$7) -> -0.01028728499 | J15: =CallRho($A$2,A15,$A$9,$A$6,$A$4,$A$7) -> 0.01335614137 | L15: =A15 -> 23 | M15: OTM | N15: =PutOption($A$2,L15,$A$9,$A$6,$A$4,$A$7) -> 0.1353575307 | P15: =ImpliedPutVolatility($A$2,L15,$A$9,$A$6,O15,$A$7) -> 0.008583068848 | Q15: =Putdelta($A$2,L15,$A$9,$A$6,$A$4,$A$7) -> -0.1325656772 | R15: =Gamma($A$2,L15,$A$9,$A$6,$A$4,$A$7) -> 0.1092394737 | S15: =vega($A$2,L15,$A$9,$A$6,$A$4,$A$7) -> 0.014029042 | T15: =PutTheta($A$2,L15,$A$9,$A$6,$A$4,$A$7) -> -0.008087086314 | U15: =PutRho($A$2,L15,$A$9,$A$6,$A$4,$A$7) -> -0.002359563458
A16: =A17-0.5 -> 23.5 | B16: ITM | C16: 1.74979975 | E16: 3.814697266e-05 | F16: 0.799665682 | G16: 0.1427743124 | H16: 0.01833574218 | I16: -0.01274803882 | J16: 0.01247566797 | L16: 23.5 | M16: OTM | N16: 0.227754735 | P16: 0.006370544434 | Q16: -0.200334318 | R16: 0.1427743124 | S16: 0.01833574218 | T16: -0.01050000974 | U16: -0.003581682615
A17: =A18-0.5 -> 24 | B17: ITM | C17: 1.383590377 | E17: 3.814697266e-05 | F17: 0.7164331061 | G17: 0.1725476707 | H17: 0.02215937551 | I17: -0.01487807778 | J17: 0.01130323198 | L17: 24 | M17: OTM | N17: 0.3603481666 | P17: 0.004234313965 | Q17: -0.2835668939 | R17: 0.1725476707 | S17: 0.02215937551 | T17: -0.0125822183 | U17: -0.005095764361
A18: =A19-0.5 -> 24.5 | B18: ITM | C18: 1.063889164 | E18: 3.814697266e-05 | F18: 0.6215891656 | G18: 0.1937329579 | H18: 0.02488008877 | I18: -0.01631410766 | J18: 0.009900388527 | L18: 24.5 | M18: OTM | N18: 0.5394497599 | P18: 0.002174377441 | Q18: -0.3784108344 | R18: 0.1937329579 | S18: 0.02488008877 | T18: -0.01397041776 | U18: -0.006840253573
A19: =A2 -> 25 | B19: ATM | C19: 0.79427076 | E19: 3.814697266e-05 | F19: 0.5208720623 | G19: 0.2029692778 | H19: 0.02606625999 | I19: -0.01681054962 | J19: 0.008362811592 | L19: 25 | M19: ATM | N19: 0.768634161 | P19: 0.000114440918 | Q19: -0.4791279377 | R19: 0.2029692778 | S19: 0.02606625999 | T19: -0.01441902932 | U19: -0.008719476265
A20: =A19+0.5 -> 25.5 | B20: OTM | C20: 0.5750580634 | E20: 0.001945495605 | F20: 0.4207885002 | G20: 0.1992278488 | H20: 0.02558576826 | I20: -0.01630367707 | J20: 0.00680154366 | L20: 25.5 | M20: ITM | N20: 1.04822427 | P20: 3.814697266e-05 | Q20: -0.5792114998 | R20: 0.1992278488 | S20: 0.02558576826 | T20: -0.01386432636 | U20: -0.01062238995
A21: =A20+0.5 -> 26 | B21: OTM | C21: 0.4034437499 | E21: 0.003852844238 | F21: 0.3273660324 | G21: 0.1839072287 | H21: 0.02361822287 | I21: -0.01491595461 | J21: 0.005321577787 | L21: 26 | M21: ITM | N21: 1.375412762 | P21: 3.814697266e-05 | Q21: -0.6726339676 | R21: 0.1839072287 | S21: 0.02361822287 | T21: -0.0124287735 | U21: -0.01244400158
A22: =A21+0.5 -> 26.5 | B22: OTM | C22: 0.2741547795 | E22: 0.005836486816 | F22: 0.2451573976 | G22: 0.1602134191 | H22: 0.02057535348 | I22: -0.01290582484 | J22: 0.004004376786 | L22: 26.5 | M22: ITM | N22: 1.744926597 | P22: 3.814697266e-05 | Q22: -0.7548426024 | R22: 0.1602134191 | S22: 0.02057535348 | T22: -0.01037081332 | U22: -0.01410284834
A23: =A22+0.5 -> 27 | B23: OTM | C23: 0.180426723 | E23: 0.007743835449 | F23: 0.1767340388 | G23: 0.1321504077 | H23: 0.01697137085 | I23: -0.01058861882 | J23: 0.002898545106 | L23: 27 | M23: ITM | N23: 2.150001346 | P23: 3.814697266e-05 | Q23: -0.8232659612 | R23: 0.1321504077 | S23: 0.01697137085 | T23: -0.0080057769 | U23: -0.01555032578
A24: =A23+0.5 -> 27.5 | B24: OTM | C24: =CallOption($A$2,A24,$A$9,$A$6,$A$4,$A$7) -> 0.1150178272 | E24: 0.009574890137 | F24: 0.1227010447 | G24: 0.1035214616 | H24: 0.01329470825 | I24: -0.008259539519 | J24: 0.002019389778 | L24: 27.5 | M24: ITM | N24: 2.583395255 | P24: 3.814697266e-05 | Q24: -0.8772989553 | R24: 0.1035214616 | S24: 0.01329470825 | T24: -0.005628867189 | U24: -0.01677112687

Sheet OptionStrategies
B2: Strat1 | C2: Strat2 | D2: Strat3 | E2: Strat4 | F2: Strat5 | G2: Strat6 | H2: Strat7 | I2: Strat8 | J2: Strat9 | K2: Strat10 | L2: Total
A3: Contracts | B3: 1 | C3: -1
A4: Type | B4: Stock | C4: Call
A5: Strike | B5: 25 | C5: 25
A6: Calculated Premium | B6: =IF(ISBLANK(B4),0,IF(LEFT(B4,1)="c",CallOption(OptionPage!$A$2,B5,OptionPage!$A$9,OptionPage!$A$6,OptionPage!$A$4,OptionPage!$A$7),PutOption(OptionPage!$A$2,B5,OptionPage!$A$9,OptionPage!$A$6,OptionPage!$A$4,OptionPage!$A$7))) -> 0.768634161 | C6: =IF(ISBLANK(C4),0,IF(LEFT(C4,1)="c",CallOption(OptionPage!$A$2,C5,OptionPage!$A$9,OptionPage!$A$6,OptionPage!$A$4,OptionPage!$A$7),PutOption(OptionPage!$A$2,C5,OptionPage!$A$9,OptionPage!$A$6,OptionPage!$A$4,OptionPage!$A$7))) -> 0.79427076 | D6: =IF(ISBLANK(D4),0,IF(LEFT(D4,1)="c",CallOption(OptionPage!$A$2,D5,OptionPage!$A$9,OptionPage!$A$6,OptionPage!$A$4,OptionPage!$A$7),PutOption(OptionPage!$A$2,D5,OptionPage!$A$9,OptionPage!$A$6,OptionPage!$A$4,OptionPage!$A$7))) -> 0 | E6: =IF(ISBLANK(E4),0,IF(LEFT(E4,1)="c",CallOption(OptionPage!$A$2,E5,OptionPage!$A$9,OptionPage!$A$6,OptionPage!$A$4,OptionPage!$A$7),PutOption(OptionPage!$A$2,E5,OptionPage!$A$9,OptionPage!$A$6,OptionPage!$A$4,OptionPage!$A$7))) -> 0 | F6: =IF(ISBLANK(F4),0,IF(LEFT(F4,1)="c",CallOption(OptionPage!$A$2,F5,OptionPage!$A$9,OptionPage!$A$6,OptionPage!$A$4,OptionPage!$A$7),PutOption(OptionPage!$A$2,F5,OptionPage!$A$9,OptionPage!$A$6,OptionPage!$A$4,OptionPage!$A$7))) -> 0 | G6: =IF(ISBLANK(G4),0,IF(LEFT(G4,1)="c",CallOption(OptionPage!$A$2,G5,OptionPage!$A$9,OptionPage!$A$6,OptionPage!$A$4,OptionPage!$A$7),PutOption(OptionPage!$A$2,G5,OptionPage!$A$9,OptionPage!$A$6,OptionPage!$A$4,OptionPage!$A$7))) -> 0 | H6: =IF(ISBLANK(H4),0,IF(LEFT(H4,1)="c",CallOption(OptionPage!$A$2,H5,OptionPage!$A$9,OptionPage!$A$6,OptionPage!$A$4,OptionPage!$A$7),PutOption(OptionPage!$A$2,H5,OptionPage!$A$9,OptionPage!$A$6,OptionPage!$A$4,OptionPage!$A$7))) -> 0 | I6: =IF(ISBLANK(I4),0,IF(LEFT(I4,1)="c",CallOption(OptionPage!$A$2,I5,OptionPage!$A$9,OptionPage!$A$6,OptionPage!$A$4,OptionPage!$A$7),PutOption(OptionPage!$A$2,I5,OptionPage!$A$9,OptionPage!$A$6,OptionPage!$A$4,OptionPage!$A$7))) -> 0 | J6: =IF(ISBLANK(J4),0,IF(LEFT(J4,1)="c",CallOption(OptionPage!$A$2,J5,OptionPage!$A$9,OptionPage!$A$6,OptionPage!$A$4,OptionPage!$A$7),PutOption(OptionPage!$A$2,J5,OptionPage!$A$9,OptionPage!$A$6,OptionPage!$A$4,OptionPage!$A$7))) -> 0 | K6: =IF(ISBLANK(K4),0,IF(LEFT(K4,1)="c",CallOption(OptionPage!$A$2,K5,OptionPage!$A$9,OptionPage!$A$6,OptionPage!$A$4,OptionPage!$A$7),PutOption(OptionPage!$A$2,K5,OptionPage!$A$9,OptionPage!$A$6,OptionPage!$A$4,OptionPage!$A$7))) -> 0
A7: Override Premium
A8: Premium Used | B8: =IF(ISBLANK(B7),B6,B7) -> 0.768634161 | C8: =IF(ISBLANK(C7),C6,C7) -> 0.79427076 | D8: 0 | E8: 0 | F8: 0 | G8: 0 | H8: 0 | I8: 0 | J8: 0 | K8: 0 | L8: =SUMPRODUCT(B8:K8,B3:K3) -> -0.02563659902 | M8: Total Cost
A9: Delta | B9: =IF(ISBLANK(B4),0,IF(LEFT(B4,1)="s",1*B3,IF(LEFT(B4,1)="c",CallDelta(OptionPage!$A$2,B5,OptionPage!$A$9,OptionPage!$A$6,OptionPage!$A$4,OptionPage!$A$7)*B3,Putdelta(OptionPage!$A$2,B5,OptionPage!$A$9,OptionPage!$A$6,OptionPage!$A$4,OptionPage!$A$7)*B3))) -> 1 | C9: =IF(ISBLANK(C4),0,IF(LEFT(C4,1)="s",1*C3,IF(LEFT(C4,1)="c",CallDelta(OptionPage!$A$2,C5,OptionPage!$A$9,OptionPage!$A$6,OptionPage!$A$4,OptionPage!$A$7)*C3,Putdelta(OptionPage!$A$2,C5,OptionPage!$A$9,OptionPage!$A$6,OptionPage!$A$4,OptionPage!$A$7)*C3))) -> -0.5208720623 | D9: =IF(ISBLANK(D4),0,IF(LEFT(D4,1)="s",1*D3,IF(LEFT(D4,1)="c",CallDelta(OptionPage!$A$2,D5,OptionPage!$A$9,OptionPage!$A$6,OptionPage!$A$4,OptionPage!$A$7)*D3,Putdelta(OptionPage!$A$2,D5,OptionPage!$A$9,OptionPage!$A$6,OptionPage!$A$4,OptionPage!$A$7)*D3))) -> 0 | E9: =IF(ISBLANK(E4),0,IF(LEFT(E4,1)="s",1*E3,IF(LEFT(E4,1)="c",CallDelta(OptionPage!$A$2,E5,OptionPage!$A$9,OptionPage!$A$6,OptionPage!$A$4,OptionPage!$A$7)*E3,Putdelta(OptionPage!$A$2,E5,OptionPage!$A$9,OptionPage!$A$6,OptionPage!$A$4,OptionPage!$A$7)*E3))) -> 0 | F9: =IF(ISBLANK(F4),0,IF(LEFT(F4,1)="s",1*F3,IF(LEFT(F4,1)="c",CallDelta(OptionPage!$A$2,F5,OptionPage!$A$9,OptionPage!$A$6,OptionPage!$A$4,OptionPage!$A$7)*F3,Putdelta(OptionPage!$A$2,F5,OptionPage!$A$9,OptionPage!$A$6,OptionPage!$A$4,OptionPage!$A$7)*F3))) -> 0 | G9: =IF(ISBLANK(G4),0,IF(LEFT(G4,1)="s",1*G3,IF(LEFT(G4,1)="c",CallDelta(OptionPage!$A$2,G5,OptionPage!$A$9,OptionPage!$A$6,OptionPage!$A$4,OptionPage!$A$7)*G3,Putdelta(OptionPage!$A$2,G5,OptionPage!$A$9,OptionPage!$A$6,OptionPage!$A$4,OptionPage!$A$7)*G3))) -> 0 | H9: =IF(ISBLANK(H4),0,IF(LEFT(H4,1)="s",1*H3,IF(LEFT(H4,1)="c",CallDelta(OptionPage!$A$2,H5,OptionPage!$A$9,OptionPage!$A$6,OptionPage!$A$4,OptionPage!$A$7)*H3,Putdelta(OptionPage!$A$2,H5,OptionPage!$A$9,OptionPage!$A$6,OptionPage!$A$4,OptionPage!$A$7)*H3))) -> 0 | I9: =IF(ISBLANK(I4),0,IF(LEFT(I4,1)="s",1*I3,IF(LEFT(I4,1)="c",CallDelta(OptionPage!$A$2,I5,OptionPage!$A$9,OptionPage!$A$6,OptionPage!$A$4,OptionPage!$A$7)*I3,Putdelta(OptionPage!$A$2,I5,OptionPage!$A$9,OptionPage!$A$6,OptionPage!$A$4,OptionPage!$A$7)*I3))) -> 0 | J9: =IF(ISBLANK(J4),0,IF(LEFT(J4,1)="s",1*J3,IF(LEFT(J4,1)="c",CallDelta(OptionPage!$A$2,J5,OptionPage!$A$9,OptionPage!$A$6,OptionPage!$A$4,OptionPage!$A$7)*J3,Putdelta(OptionPage!$A$2,J5,OptionPage!$A$9,OptionPage!$A$6,OptionPage!$A$4,OptionPage!$A$7)*J3))) -> 0 | K9: =IF(ISBLANK(K4),0,IF(LEFT(K4,1)="s",1*K3,IF(LEFT(K4,1)="c",CallDelta(OptionPage!$A$2,K5,OptionPage!$A$9,OptionPage!$A$6,OptionPage!$A$4,OptionPage!$A$7)*K3,Putdelta(OptionPage!$A$2,K5,OptionPage!$A$9,OptionPage!$A$6,OptionPage!$A$4,OptionPage!$A$7)*K3))) -> 0 | L9: =SUM(B9:K9) -> 0.4791279377 | M9: Position Delta
A10: Gamma | B10: =IF(ISBLANK(B4),0,IF(LEFT(B4,1)="s",0,Gamma(OptionPage!$A$2,B5,OptionPage!$A$9,OptionPage!$A$6,OptionPage!$A$4,OptionPage!$A$7)*B3)) -> 0 | C10: =IF(ISBLANK(C4),0,IF(LEFT(C4,1)="s",0,Gamma(OptionPage!$A$2,C5,OptionPage!$A$9,OptionPage!$A$6,OptionPage!$A$4,OptionPage!$A$7)*C3)) -> -0.2029692778 | D10: =IF(ISBLANK(D4),0,IF(LEFT(D4,1)="s",0,Gamma(OptionPage!$A$2,D5,OptionPage!$A$9,OptionPage!$A$6,OptionPage!$A$4,OptionPage!$A$7)*D3)) -> 0 | E10: =IF(ISBLANK(E4),0,IF(LEFT(E4,1)="s",0,Gamma(OptionPage!$A$2,E5,OptionPage!$A$9,OptionPage!$A$6,OptionPage!$A$4,OptionPage!$A$7)*E3)) -> 0 | F10: =IF(ISBLANK(F4),0,IF(LEFT(F4,1)="s",0,Gamma(OptionPage!$A$2,F5,OptionPage!$A$9,OptionPage!$A$6,OptionPage!$A$4,OptionPage!$A$7)*F3)) -> 0 | G10: =IF(ISBLANK(G4),0,IF(LEFT(G4,1)="s",0,Gamma(OptionPage!$A$2,G5,OptionPage!$A$9,OptionPage!$A$6,OptionPage!$A$4,OptionPage!$A$7)*G3)) -> 0 | H10: =IF(ISBLANK(H4),0,IF(LEFT(H4,1)="s",0,Gamma(OptionPage!$A$2,H5,OptionPage!$A$9,OptionPage!$A$6,OptionPage!$A$4,OptionPage!$A$7)*H3)) -> 0 | I10: =IF(ISBLANK(I4),0,IF(LEFT(I4,1)="s",0,Gamma(OptionPage!$A$2,I5,OptionPage!$A$9,OptionPage!$A$6,OptionPage!$A$4,OptionPage!$A$7)*I3)) -> 0 | J10: =IF(ISBLANK(J4),0,IF(LEFT(J4,1)="s",0,Gamma(OptionPage!$A$2,J5,OptionPage!$A$9,OptionPage!$A$6,OptionPage!$A$4,OptionPage!$A$7)*J3)) -> 0 | K10: =IF(ISBLANK(K4),0,IF(LEFT(K4,1)="s",0,Gamma(OptionPage!$A$2,K5,OptionPage!$A$9,OptionPage!$A$6,OptionPage!$A$4,OptionPage!$A$7)*K3)) -> 0 | L10: =SUM(B10:K10) -> -0.2029692778 | M10: Position Gamma
A11: Theta | B11: =IF(ISBLANK(B4),0,IF(LEFT(B4,1)="s",0,IF(LEFT(B4,1)="c",CallTheta(OptionPage!$A$2,B5,OptionPage!$A$9,OptionPage!$A$6,OptionPage!$A$4,OptionPage!$A$7)*B3,PutTheta(OptionPage!$A$2,B5,OptionPage!$A$9,OptionPage!$A$6,OptionPage!$A$4,OptionPage!$A$7)*B3))) -> 0 | C11: =IF(ISBLANK(C4),0,IF(LEFT(C4,1)="s",0,IF(LEFT(C4,1)="c",CallTheta(OptionPage!$A$2,C5,OptionPage!$A$9,OptionPage!$A$6,OptionPage!$A$4,OptionPage!$A$7)*C3,PutTheta(OptionPage!$A$2,C5,OptionPage!$A$9,OptionPage!$A$6,OptionPage!$A$4,OptionPage!$A$7)*C3))) -> 0.01681054962 | D11: =IF(ISBLANK(D4),0,IF(LEFT(D4,1)="s",0,IF(LEFT(D4,1)="c",CallTheta(OptionPage!$A$2,D5,OptionPage!$A$9,OptionPage!$A$6,OptionPage!$A$4,OptionPage!$A$7)*D3,PutTheta(OptionPage!$A$2,D5,OptionPage!$A$9,OptionPage!$A$6,OptionPage!$A$4,OptionPage!$A$7)*D3))) -> 0 | E11: =IF(ISBLANK(E4),0,IF(LEFT(E4,1)="s",0,IF(LEFT(E4,1)="c",CallTheta(OptionPage!$A$2,E5,OptionPage!$A$9,OptionPage!$A$6,OptionPage!$A$4,OptionPage!$A$7)*E3,PutTheta(OptionPage!$A$2,E5,OptionPage!$A$9,OptionPage!$A$6,OptionPage!$A$4,OptionPage!$A$7)*E3))) -> 0 | F11: =IF(ISBLANK(F4),0,IF(LEFT(F4,1)="s",0,IF(LEFT(F4,1)="c",CallTheta(OptionPage!$A$2,F5,OptionPage!$A$9,OptionPage!$A$6,OptionPage!$A$4,OptionPage!$A$7)*F3,PutTheta(OptionPage!$A$2,F5,OptionPage!$A$9,OptionPage!$A$6,OptionPage!$A$4,OptionPage!$A$7)*F3))) -> 0 | G11: =IF(ISBLANK(G4),0,IF(LEFT(G4,1)="s",0,IF(LEFT(G4,1)="c",CallTheta(OptionPage!$A$2,G5,OptionPage!$A$9,OptionPage!$A$6,OptionPage!$A$4,OptionPage!$A$7)*G3,PutTheta(OptionPage!$A$2,G5,OptionPage!$A$9,OptionPage!$A$6,OptionPage!$A$4,OptionPage!$A$7)*G3))) -> 0 | H11: =IF(ISBLANK(H4),0,IF(LEFT(H4,1)="s",0,IF(LEFT(H4,1)="c",CallTheta(OptionPage!$A$2,H5,OptionPage!$A$9,OptionPage!$A$6,OptionPage!$A$4,OptionPage!$A$7)*H3,PutTheta(OptionPage!$A$2,H5,OptionPage!$A$9,OptionPage!$A$6,OptionPage!$A$4,OptionPage!$A$7)*H3))) -> 0 | I11: =IF(ISBLANK(I4),0,IF(LEFT(I4,1)="s",0,IF(LEFT(I4,1)="c",CallTheta(OptionPage!$A$2,I5,OptionPage!$A$9,OptionPage!$A$6,OptionPage!$A$4,OptionPage!$A$7)*I3,PutTheta(OptionPage!$A$2,I5,OptionPage!$A$9,OptionPage!$A$6,OptionPage!$A$4,OptionPage!$A$7)*I3))) -> 0 | J11: =IF(ISBLANK(J4),0,IF(LEFT(J4,1)="s",0,IF(LEFT(J4,1)="c",CallTheta(OptionPage!$A$2,J5,OptionPage!$A$9,OptionPage!$A$6,OptionPage!$A$4,OptionPage!$A$7)*J3,PutTheta(OptionPage!$A$2,J5,OptionPage!$A$9,OptionPage!$A$6,OptionPage!$A$4,OptionPage!$A$7)*J3))) -> 0 | K11: =IF(ISBLANK(K4),0,IF(LEFT(K4,1)="s",0,IF(LEFT(K4,1)="c",CallTheta(OptionPage!$A$2,K5,OptionPage!$A$9,OptionPage!$A$6,OptionPage!$A$4,OptionPage!$A$7)*K3,PutTheta(OptionPage!$A$2,K5,OptionPage!$A$9,OptionPage!$A$6,OptionPage!$A$4,OptionPage!$A$7)*K3))) -> 0 | L11: =SUM(B11:K11) -> 0.01681054962 | M11: Position Theta
A12: Vega | B12: =IF(ISBLANK(B4),0,IF(LEFT(B4,1)="s",0,vega(OptionPage!$A$2,B5,OptionPage!$A$9,OptionPage!$A$6,OptionPage!$A$4,OptionPage!$A$7)*B3)) -> 0 | C12: =IF(ISBLANK(C4),0,IF(LEFT(C4,1)="s",0,vega(OptionPage!$A$2,C5,OptionPage!$A$9,OptionPage!$A$6,OptionPage!$A$4,OptionPage!$A$7)*C3)) -> -0.02606625999 | D12: =IF(ISBLANK(D4),0,IF(LEFT(D4,1)="s",0,vega(OptionPage!$A$2,D5,OptionPage!$A$9,OptionPage!$A$6,OptionPage!$A$4,OptionPage!$A$7)*D3)) -> 0 | E12: =IF(ISBLANK(E4),0,IF(LEFT(E4,1)="s",0,vega(OptionPage!$A$2,E5,OptionPage!$A$9,OptionPage!$A$6,OptionPage!$A$4,OptionPage!$A$7)*E3)) -> 0 | F12: =IF(ISBLANK(F4),0,IF(LEFT(F4,1)="s",0,vega(OptionPage!$A$2,F5,OptionPage!$A$9,OptionPage!$A$6,OptionPage!$A$4,OptionPage!$A$7)*F3)) -> 0 | G12: =IF(ISBLANK(G4),0,IF(LEFT(G4,1)="s",0,vega(OptionPage!$A$2,G5,OptionPage!$A$9,OptionPage!$A$6,OptionPage!$A$4,OptionPage!$A$7)*G3)) -> 0 | H12: =IF(ISBLANK(H4),0,IF(LEFT(H4,1)="s",0,vega(OptionPage!$A$2,H5,OptionPage!$A$9,OptionPage!$A$6,OptionPage!$A$4,OptionPage!$A$7)*H3)) -> 0 | I12: =IF(ISBLANK(I4),0,IF(LEFT(I4,1)="s",0,vega(OptionPage!$A$2,I5,OptionPage!$A$9,OptionPage!$A$6,OptionPage!$A$4,OptionPage!$A$7)*I3)) -> 0 | J12: =IF(ISBLANK(J4),0,IF(LEFT(J4,1)="s",0,vega(OptionPage!$A$2,J5,OptionPage!$A$9,OptionPage!$A$6,OptionPage!$A$4,OptionPage!$A$7)*J3)) -> 0 | K12: =IF(ISBLANK(K4),0,IF(LEFT(K4,1)="s",0,vega(OptionPage!$A$2,K5,OptionPage!$A$9,OptionPage!$A$6,OptionPage!$A$4,OptionPage!$A$7)*K3)) -> 0 | L12: =SUM(B12:K12) -> -0.02606625999 | M12: Position Vega
A13: Rho | B13: =IF(ISBLANK(B4),0,IF(LEFT(B4,1)="s",0,IF(LEFT(B4,1)="c",CallRho(OptionPage!$A$2,B5,OptionPage!$A$9,OptionPage!$A$6,OptionPage!$A$4,OptionPage!$A$7)*B3,PutRho(OptionPage!$A$2,B5,OptionPage!$A$9,OptionPage!$A$6,OptionPage!$A$4,OptionPage!$A$7)*B3))) -> 0 | C13: =IF(ISBLANK(C4),0,IF(LEFT(C4,1)="s",0,IF(LEFT(C4,1)="c",CallRho(OptionPage!$A$2,C5,OptionPage!$A$9,OptionPage!$A$6,OptionPage!$A$4,OptionPage!$A$7)*C3,PutRho(OptionPage!$A$2,C5,OptionPage!$A$9,OptionPage!$A$6,OptionPage!$A$4,OptionPage!$A$7)*C3))) -> -0.008362811592 | D13: =IF(ISBLANK(D4),0,IF(LEFT(D4,1)="s",0,IF(LEFT(D4,1)="c",CallRho(OptionPage!$A$2,D5,OptionPage!$A$9,OptionPage!$A$6,OptionPage!$A$4,OptionPage!$A$7)*D3,PutRho(OptionPage!$A$2,D5,OptionPage!$A$9,OptionPage!$A$6,OptionPage!$A$4,OptionPage!$A$7)*D3))) -> 0 | E13: =IF(ISBLANK(E4),0,IF(LEFT(E4,1)="s",0,IF(LEFT(E4,1)="c",CallRho(OptionPage!$A$2,E5,OptionPage!$A$9,OptionPage!$A$6,OptionPage!$A$4,OptionPage!$A$7)*E3,PutRho(OptionPage!$A$2,E5,OptionPage!$A$9,OptionPage!$A$6,OptionPage!$A$4,OptionPage!$A$7)*E3))) -> 0 | F13: =IF(ISBLANK(F4),0,IF(LEFT(F4,1)="s",0,IF(LEFT(F4,1)="c",CallRho(OptionPage!$A$2,F5,OptionPage!$A$9,OptionPage!$A$6,OptionPage!$A$4,OptionPage!$A$7)*F3,PutRho(OptionPage!$A$2,F5,OptionPage!$A$9,OptionPage!$A$6,OptionPage!$A$4,OptionPage!$A$7)*F3))) -> 0 | G13: =IF(ISBLANK(G4),0,IF(LEFT(G4,1)="s",0,IF(LEFT(G4,1)="c",CallRho(OptionPage!$A$2,G5,OptionPage!$A$9,OptionPage!$A$6,OptionPage!$A$4,OptionPage!$A$7)*G3,PutRho(OptionPage!$A$2,G5,OptionPage!$A$9,OptionPage!$A$6,OptionPage!$A$4,OptionPage!$A$7)*G3))) -> 0 | H13: =IF(ISBLANK(H4),0,IF(LEFT(H4,1)="s",0,IF(LEFT(H4,1)="c",CallRho(OptionPage!$A$2,H5,OptionPage!$A$9,OptionPage!$A$6,OptionPage!$A$4,OptionPage!$A$7)*H3,PutRho(OptionPage!$A$2,H5,OptionPage!$A$9,OptionPage!$A$6,OptionPage!$A$4,OptionPage!$A$7)*H3))) -> 0 | I13: =IF(ISBLANK(I4),0,IF(LEFT(I4,1)="s",0,IF(LEFT(I4,1)="c",CallRho(OptionPage!$A$2,I5,OptionPage!$A$9,OptionPage!$A$6,OptionPage!$A$4,OptionPage!$A$7)*I3,PutRho(OptionPage!$A$2,I5,OptionPage!$A$9,OptionPage!$A$6,OptionPage!$A$4,OptionPage!$A$7)*I3))) -> 0 | J13: =IF(ISBLANK(J4),0,IF(LEFT(J4,1)="s",0,IF(LEFT(J4,1)="c",CallRho(OptionPage!$A$2,J5,OptionPage!$A$9,OptionPage!$A$6,OptionPage!$A$4,OptionPage!$A$7)*J3,PutRho(OptionPage!$A$2,J5,OptionPage!$A$9,OptionPage!$A$6,OptionPage!$A$4,OptionPage!$A$7)*J3))) -> 0 | K13: =IF(ISBLANK(K4),0,IF(LEFT(K4,1)="s",0,IF(LEFT(K4,1)="c",CallRho(OptionPage!$A$2,K5,OptionPage!$A$9,OptionPage!$A$6,OptionPage!$A$4,OptionPage!$A$7)*K3,PutRho(OptionPage!$A$2,K5,OptionPage!$A$9,OptionPage!$A$6,OptionPage!$A$4,OptionPage!$A$7)*K3))) -> 0 | L13: =SUM(B13:K13) -> -0.008362811592 | M13: Position Rho
A16: Graph Increment
A17: 1
B34: P&L Payoff at Expiration Matrix
A35: Underlying Price | B35: Strat1 | C35: Strat2 | D35: Strat3 | E35: Strat4 | F35: Strat5 | G35: Strat6 | H35: Strat7 | I35: Strat8 | J35: Strat9 | K35: Strat10 | L35: P&L | M35: Intercept
A36: =A37-$A$17 -> 20 | B36: =IF(ISBLANK(B$4),0,IF(LEFT(B$4)="c",((MAX($A36-B$5,0)*B$3)-(B$8*B$3)),IF(LEFT(B$4)="p",((MAX(B$5-$A36,0)*B$3)-(B$8*B$3)),($A36-B$5)*B$3))) -> -5 | C36: 0.79427076 | D36: 0 | E36: 0 | F36: 0 | G36: 0 | H36: 0 | I36: 0 | J36: 0 | K36: 0 | L36: =SUM(B36:K36) -> -4.20572924 | M36: =IF(OR(AND(L36>0,L37>0),(AND(L36<0,L37<0))),0,INTERCEPT(A36:A37,L36:L37)) -> 0
A37: =A38-$A$17 -> 21 | B37: -4 | C37: 0.79427076 | D37: 0 | E37: 0 | F37: 0 | G37: 0 | H37: 0 | I37: 0 | J37: 0 | K37: 0 | L37: =SUM(B37:K37) -> -3.20572924 | M37: =IF(OR(AND(L37>0,L38>0),(AND(L37<0,L38<0))),0,INTERCEPT(A37:A38,L37:L38)) -> 0
A38: =A39-$A$17 -> 22 | B38: -3 | C38: 0.79427076 | D38: 0 | E38: 0 | F38: 0 | G38: 0 | H38: 0 | I38: 0 | J38: 0 | K38: 0 | L38: -2.20572924 | M38: 0
A39: =A40-$A$17 -> 23 | B39: -2 | C39: 0.79427076 | D39: 0 | E39: 0 | F39: 0 | G39: 0 | H39: 0 | I39: 0 | J39: 0 | K39: 0 | L39: -1.20572924 | M39: 0
A40: =A41-$A$17 -> 24 | B40: -1 | C40: 0.79427076 | D40: 0 | E40: 0 | F40: 0 | G40: 0 | H40: 0 | I40: 0 | J40: 0 | K40: 0 | L40: -0.20572924 | M40: 24.20572924
A41: =OptionPage!A2 -> 25 | B41: 0 | C41: 0.79427076 | D41: 0 | E41: 0 | F41: 0 | G41: 0 | H41: 0 | I41: 0 | J41: 0 | K41: 0 | L41: 0.79427076 | M41: 0
A42: =A41+$A$17 -> 26 | B42: 1 | C42: -0.20572924 | D42: 0 | E42: 0 | F42: 0 | G42: 0 | H42: 0 | I42: 0 | J42: 0 | K42: 0 | L42: 0.79427076 | M42: 0
A43: =A42+$A$17 -> 27 | B43: 2 | C43: -1.20572924 | D43: 0 | E43: 0 | F43: 0 | G43: 0 | H43: 0 | I43: 0 | J43: 0 | K43: 0 | L43: 0.79427076 | M43: 0
A44: =A43+$A$17 -> 28 | B44: 3 | C44: -2.20572924 | D44: 0 | E44: 0 | F44: 0 | G44: 0 | H44: 0 | I44: 0 | J44: 0 | K44: 0 | L44: 0.79427076 | M44: 0
A45: =A44+$A$17 -> 29 | B45: 4 | C45: -3.20572924 | D45: 0 | E45: 0 | F45: 0 | G45: 0 | H45: 0 | I45: 0 | J45: 0 | K45: 0 | L45: 0.79427076 | M45: 0
A46: =A45+$A$17 -> 30 | B46: =IF(ISBLANK(B$4),0,IF(LEFT(B$4)="c",((MAX($A46-B$5,0)*B$3)-(B$8*B$3)),IF(LEFT(B$4)="p",((MAX(B$5-$A46,0)*B$3)-(B$8*B$3)),($A46-B$5)*B$3))) -> 5 | C46: -4.20572924 | D46: 0 | E46: 0 | F46: 0 | G46: 0 | H46: 0 | I46: 0 | J46: 0 | K46: 0 | L46: 0.79427076
B48: Current Theoretical P&L Relative to Underlying Price Changes
A49: Underlying Price | B49: Strat1 | C49: Strat2 | D49: Strat3 | E49: Strat4 | F49: Strat5 | G49: Strat6 | H49: Strat7 | I49: Strat8 | J49: Strat9 | K49: Strat10 | L49: P&L
A50: =A51-$A$17 -> 20 | B50: =IF(ISBLANK(B$4),0,IF(LEFT(B$4,1)="c",(CallOption($A50,B$5,OptionPage!$A$9,OptionPage!$A$6,OptionPage!$A$4,OptionPage!$A$7)*B$3)-(B$3*B$8),IF(LEFT(B$4)="p",(PutOption($A50,B$5,OptionPage!$A$9,OptionPage!$A$6,OptionPage!$A$4,OptionPage!$A$7)*B$3)-(B$3*B$8),($A50-B$5)*B$3))) -> -5 | C50: =IF(ISBLANK(C$4),0,IF(LEFT(C$4,1)="c",(CallOption($A50,C$5,OptionPage!$A$9,OptionPage!$A$6,OptionPage!$A$4,OptionPage!$A$7)*C$3)-(C$3*C$8),IF(LEFT(C$4)="p",(PutOption($A50,C$5,OptionPage!$A$9,OptionPage!$A$6,OptionPage!$A$4,OptionPage!$A$7)*C$3)-(C$3*C$8),($A50-C$5)*C$3))) -> 0.7930621244 | D50: =IF(ISBLANK(D$4),0,IF(LEFT(D$4,1)="c",(CallOption($A50,D$5,OptionPage!$A$9,OptionPage!$A$6,OptionPage!$A$4,OptionPage!$A$7)*D$3)-(D$3*D$8),IF(LEFT(D$4)="p",(PutOption($A50,D$5,OptionPage!$A$9,OptionPage!$A$6,OptionPage!$A$4,OptionPage!$A$7)*D$3)-(D$3*D$8),($A50-D$5)*D$3))) -> 0 | E50: =IF(ISBLANK(E$4),0,IF(LEFT(E$4,1)="c",(CallOption($A50,E$5,OptionPage!$A$9,OptionPage!$A$6,OptionPage!$A$4,OptionPage!$A$7)*E$3)-(E$3*E$8),IF(LEFT(E$4)="p",(PutOption($A50,E$5,OptionPage!$A$9,OptionPage!$A$6,OptionPage!$A$4,OptionPage!$A$7)*E$3)-(E$3*E$8),($A50-E$5)*E$3))) -> 0 | F50: =IF(ISBLANK(F$4),0,IF(LEFT(F$4,1)="c",(CallOption($A50,F$5,OptionPage!$A$9,OptionPage!$A$6,OptionPage!$A$4,OptionPage!$A$7)*F$3)-(F$3*F$8),IF(LEFT(F$4)="p",(PutOption($A50,F$5,OptionPage!$A$9,OptionPage!$A$6,OptionPage!$A$4,OptionPage!$A$7)*F$3)-(F$3*F$8),($A50-F$5)*F$3))) -> 0 | G50: =IF(ISBLANK(G$4),0,IF(LEFT(G$4,1)="c",(CallOption($A50,G$5,OptionPage!$A$9,OptionPage!$A$6,OptionPage!$A$4,OptionPage!$A$7)*G$3)-(G$3*G$8),IF(LEFT(G$4)="p",(PutOption($A50,G$5,OptionPage!$A$9,OptionPage!$A$6,OptionPage!$A$4,OptionPage!$A$7)*G$3)-(G$3*G$8),($A50-G$5)*G$3))) -> 0 | H50: =IF(ISBLANK(H$4),0,IF(LEFT(H$4,1)="c",(CallOption($A50,H$5,OptionPage!$A$9,OptionPage!$A$6,OptionPage!$A$4,OptionPage!$A$7)*H$3)-(H$3*H$8),IF(LEFT(H$4)="p",(PutOption($A50,H$5,OptionPage!$A$9,OptionPage!$A$6,OptionPage!$A$4,OptionPage!$A$7)*H$3)-(H$3*H$8),($A50-H$5)*H$3))) -> 0 | I50: =IF(ISBLANK(I$4),0,IF(LEFT(I$4,1)="c",(CallOption($A50,I$5,OptionPage!$A$9,OptionPage!$A$6,OptionPage!$A$4,OptionPage!$A$7)*I$3)-(I$3*I$8),IF(LEFT(I$4)="p",(PutOption($A50,I$5,OptionPage!$A$9,OptionPage!$A$6,OptionPage!$A$4,OptionPage!$A$7)*I$3)-(I$3*I$8),($A50-I$5)*I$3))) -> 0 | J50: =IF(ISBLANK(J$4),0,IF(LEFT(J$4,1)="c",(CallOption($A50,J$5,OptionPage!$A$9,OptionPage!$A$6,OptionPage!$A$4,OptionPage!$A$7)*J$3)-(J$3*J$8),IF(LEFT(J$4)="p",(PutOption($A50,J$5,OptionPage!$A$9,OptionPage!$A$6,OptionPage!$A$4,OptionPage!$A$7)*J$3)-(J$3*J$8),($A50-J$5)*J$3))) -> 0 | K50: =IF(ISBLANK(K$4),0,IF(LEFT(K$4,1)="c",(CallOption($A50,K$5,OptionPage!$A$9,OptionPage!$A$6,OptionPage!$A$4,OptionPage!$A$7)*K$3)-(K$3*K$8),IF(LEFT(K$4)="p",(PutOption($A50,K$5,OptionPage!$A$9,OptionPage!$A$6,OptionPage!$A$4,OptionPage!$A$7)*K$3)-(K$3*K$8),($A50-K$5)*K$3))) -> 0 | L50: =SUM(B50:K50) -> -4.206937876
A51: =A52-$A$17 -> 21 | B51: =IF(ISBLANK(B$4),0,IF(LEFT(B$4,1)="c",(CallOption($A51,B$5,OptionPage!$A$9,OptionPage!$A$6,OptionPage!$A$4,OptionPage!$A$7)*B$3)-(B$3*B$8),IF(LEFT(B$4)="p",(PutOption($A51,B$5,OptionPage!$A$9,OptionPage!$A$6,OptionPage!$A$4,OptionPage!$A$7)*B$3)-(B$3*B$8),($A51-B$5)*B$3))) -> -4 | C51: =IF(ISBLANK(C$4),0,IF(LEFT(C$4,1)="c",(CallOption($A51,C$5,OptionPage!$A$9,OptionPage!$A$6,OptionPage!$A$4,OptionPage!$A$7)*C$3)-(C$3*C$8),IF(LEFT(C$4)="p",(PutOption($A51,C$5,OptionPage!$A$9,OptionPage!$A$6,OptionPage!$A$4,OptionPage!$A$7)*C$3)-(C$3*C$8),($A51-C$5)*C$3))) -> 0.7856887636 | D51: =IF(ISBLANK(D$4),0,IF(LEFT(D$4,1)="c",(CallOption($A51,D$5,OptionPage!$A$9,OptionPage!$A$6,OptionPage!$A$4,OptionPage!$A$7)*D$3)-(D$3*D$8),IF(LEFT(D$4)="p",(PutOption($A51,D$5,OptionPage!$A$9,OptionPage!$A$6,OptionPage!$A$4,OptionPage!$A$7)*D$3)-(D$3*D$8),($A51-D$5)*D$3))) -> 0 | E51: =IF(ISBLANK(E$4),0,IF(LEFT(E$4,1)="c",(CallOption($A51,E$5,OptionPage!$A$9,OptionPage!$A$6,OptionPage!$A$4,OptionPage!$A$7)*E$3)-(E$3*E$8),IF(LEFT(E$4)="p",(PutOption($A51,E$5,OptionPage!$A$9,OptionPage!$A$6,OptionPage!$A$4,OptionPage!$A$7)*E$3)-(E$3*E$8),($A51-E$5)*E$3))) -> 0 | F51: =IF(ISBLANK(F$4),0,IF(LEFT(F$4,1)="c",(CallOption($A51,F$5,OptionPage!$A$9,OptionPage!$A$6,OptionPage!$A$4,OptionPage!$A$7)*F$3)-(F$3*F$8),IF(LEFT(F$4)="p",(PutOption($A51,F$5,OptionPage!$A$9,OptionPage!$A$6,OptionPage!$A$4,OptionPage!$A$7)*F$3)-(F$3*F$8),($A51-F$5)*F$3))) -> 0 | G51: =IF(ISBLANK(G$4),0,IF(LEFT(G$4,1)="c",(CallOption($A51,G$5,OptionPage!$A$9,OptionPage!$A$6,OptionPage!$A$4,OptionPage!$A$7)*G$3)-(G$3*G$8),IF(LEFT(G$4)="p",(PutOption($A51,G$5,OptionPage!$A$9,OptionPage!$A$6,OptionPage!$A$4,OptionPage!$A$7)*G$3)-(G$3*G$8),($A51-G$5)*G$3))) -> 0 | H51: =IF(ISBLANK(H$4),0,IF(LEFT(H$4,1)="c",(CallOption($A51,H$5,OptionPage!$A$9,OptionPage!$A$6,OptionPage!$A$4,OptionPage!$A$7)*H$3)-(H$3*H$8),IF(LEFT(H$4)="p",(PutOption($A51,H$5,OptionPage!$A$9,OptionPage!$A$6,OptionPage!$A$4,OptionPage!$A$7)*H$3)-(H$3*H$8),($A51-H$5)*H$3))) -> 0 | I51: =IF(ISBLANK(I$4),0,IF(LEFT(I$4,1)="c",(CallOption($A51,I$5,OptionPage!$A$9,OptionPage!$A$6,OptionPage!$A$4,OptionPage!$A$7)*I$3)-(I$3*I$8),IF(LEFT(I$4)="p",(PutOption($A51,I$5,OptionPage!$A$9,OptionPage!$A$6,OptionPage!$A$4,OptionPage!$A$7)*I$3)-(I$3*I$8),($A51-I$5)*I$3))) -> 0 | J51: =IF(ISBLANK(J$4),0,IF(LEFT(J$4,1)="c",(CallOption($A51,J$5,OptionPage!$A$9,OptionPage!$A$6,OptionPage!$A$4,OptionPage!$A$7)*J$3)-(J$3*J$8),IF(LEFT(J$4)="p",(PutOption($A51,J$5,OptionPage!$A$9,OptionPage!$A$6,OptionPage!$A$4,OptionPage!$A$7)*J$3)-(J$3*J$8),($A51-J$5)*J$3))) -> 0 | K51: =IF(ISBLANK(K$4),0,IF(LEFT(K$4,1)="c",(CallOption($A51,K$5,OptionPage!$A$9,OptionPage!$A$6,OptionPage!$A$4,OptionPage!$A$7)*K$3)-(K$3*K$8),IF(LEFT(K$4)="p",(PutOption($A51,K$5,OptionPage!$A$9,OptionPage!$A$6,OptionPage!$A$4,OptionPage!$A$7)*K$3)-(K$3*K$8),($A51-K$5)*K$3))) -> 0 | L51: -3.214311236
A52: =A53-$A$17 -> 22 | B52: =IF(ISBLANK(B$4),0,IF(LEFT(B$4,1)="c",(CallOption($A52,B$5,OptionPage!$A$9,OptionPage!$A$6,OptionPage!$A$4,OptionPage!$A$7)*B$3)-(B$3*B$8),IF(LEFT(B$4)="p",(PutOption($A52,B$5,OptionPage!$A$9,OptionPage!$A$6,OptionPage!$A$4,OptionPage!$A$7)*B$3)-(B$3*B$8),($A52-B$5)*B$3))) -> -3 | C52: =IF(ISBLANK(C$4),0,IF(LEFT(C$4,1)="c",(CallOption($A52,C$5,OptionPage!$A$9,OptionPage!$A$6,OptionPage!$A$4,OptionPage!$A$7)*C$3)-(C$3*C$8),IF(LEFT(C$4)="p",(PutOption($A52,C$5,OptionPage!$A$9,OptionPage!$A$6,OptionPage!$A$4,OptionPage!$A$7)*C$3)-(C$3*C$8),($A52-C$5)*C$3))) -> 0.7530752382 | D52: =IF(ISBLANK(D$4),0,IF(LEFT(D$4,1)="c",(CallOption($A52,D$5,OptionPage!$A$9,OptionPage!$A$6,OptionPage!$A$4,OptionPage!$A$7)*D$3)-(D$3*D$8),IF(LEFT(D$4)="p",(PutOption($A52,D$5,OptionPage!$A$9,OptionPage!$A$6,OptionPage!$A$4,OptionPage!$A$7)*D$3)-(D$3*D$8),($A52-D$5)*D$3))) -> 0 | E52: =IF(ISBLANK(E$4),0,IF(LEFT(E$4,1)="c",(CallOption($A52,E$5,OptionPage!$A$9,OptionPage!$A$6,OptionPage!$A$4,OptionPage!$A$7)*E$3)-(E$3*E$8),IF(LEFT(E$4)="p",(PutOption($A52,E$5,OptionPage!$A$9,OptionPage!$A$6,OptionPage!$A$4,OptionPage!$A$7)*E$3)-(E$3*E$8),($A52-E$5)*E$3))) -> 0 | F52: =IF(ISBLANK(F$4),0,IF(LEFT(F$4,1)="c",(CallOption($A52,F$5,OptionPage!$A$9,OptionPage!$A$6,OptionPage!$A$4,OptionPage!$A$7)*F$3)-(F$3*F$8),IF(LEFT(F$4)="p",(PutOption($A52,F$5,OptionPage!$A$9,OptionPage!$A$6,OptionPage!$A$4,OptionPage!$A$7)*F$3)-(F$3*F$8),($A52-F$5)*F$3))) -> 0 | G52: =IF(ISBLANK(G$4),0,IF(LEFT(G$4,1)="c",(CallOption($A52,G$5,OptionPage!$A$9,OptionPage!$A$6,OptionPage!$A$4,OptionPage!$A$7)*G$3)-(G$3*G$8),IF(LEFT(G$4)="p",(PutOption($A52,G$5,OptionPage!$A$9,OptionPage!$A$6,OptionPage!$A$4,OptionPage!$A$7)*G$3)-(G$3*G$8),($A52-G$5)*G$3))) -> 0 | H52: =IF(ISBLANK(H$4),0,IF(LEFT(H$4,1)="c",(CallOption($A52,H$5,OptionPage!$A$9,OptionPage!$A$6,OptionPage!$A$4,OptionPage!$A$7)*H$3)-(H$3*H$8),IF(LEFT(H$4)="p",(PutOption($A52,H$5,OptionPage!$A$9,OptionPage!$A$6,OptionPage!$A$4,OptionPage!$A$7)*H$3)-(H$3*H$8),($A52-H$5)*H$3))) -> 0 | I52: =IF(ISBLANK(I$4),0,IF(LEFT(I$4,1)="c",(CallOption($A52,I$5,OptionPage!$A$9,OptionPage!$A$6,OptionPage!$A$4,OptionPage!$A$7)*I$3)-(I$3*I$8),IF(LEFT(I$4)="p",(PutOption($A52,I$5,OptionPage!$A$9,OptionPage!$A$6,OptionPage!$A$4,OptionPage!$A$7)*I$3)-(I$3*I$8),($A52-I$5)*I$3))) -> 0 | J52: =IF(ISBLANK(J$4),0,IF(LEFT(J$4,1)="c",(CallOption($A52,J$5,OptionPage!$A$9,OptionPage!$A$6,OptionPage!$A$4,OptionPage!$A$7)*J$3)-(J$3*J$8),IF(LEFT(J$4)="p",(PutOption($A52,J$5,OptionPage!$A$9,OptionPage!$A$6,OptionPage!$A$4,OptionPage!$A$7)*J$3)-(J$3*J$8),($A52-J$5)*J$3))) -> 0 | K52: =IF(ISBLANK(K$4),0,IF(LEFT(K$4,1)="c",(CallOption($A52,K$5,OptionPage!$A$9,OptionPage!$A$6,OptionPage!$A$4,OptionPage!$A$7)*K$3)-(K$3*K$8),IF(LEFT(K$4)="p",(PutOption($A52,K$5,OptionPage!$A$9,OptionPage!$A$6,OptionPage!$A$4,OptionPage!$A$7)*K$3)-(K$3*K$8),($A52-K$5)*K$3))) -> 0 | L52: -2.246924762
A53: =A54-$A$17 -> 23 | B53: =IF(ISBLANK(B$4),0,IF(LEFT(B$4,1)="c",(CallOption($A53,B$5,OptionPage!$A$9,OptionPage!$A$6,OptionPage!$A$4,OptionPage!$A$7)*B$3)-(B$3*B$8),IF(LEFT(B$4)="p",(PutOption($A53,B$5,OptionPage!$A$9,OptionPage!$A$6,OptionPage!$A$4,OptionPage!$A$7)*B$3)-(B$3*B$8),($A53-B$5)*B$3))) -> -2 | C53: =IF(ISBLANK(C$4),0,IF(LEFT(C$4,1)="c",(CallOption($A53,C$5,OptionPage!$A$9,OptionPage!$A$6,OptionPage!$A$4,OptionPage!$A$7)*C$3)-(C$3*C$8),IF(LEFT(C$4)="p",(PutOption($A53,C$5,OptionPage!$A$9,OptionPage!$A$6,OptionPage!$A$4,OptionPage!$A$7)*C$3)-(C$3*C$8),($A53-C$5)*C$3))) -> 0.6518282444 | D53: =IF(ISBLANK(D$4),0,IF(LEFT(D$4,1)="c",(CallOption($A53,D$5,OptionPage!$A$9,OptionPage!$A$6,OptionPage!$A$4,OptionPage!$A$7)*D$3)-(D$3*D$8),IF(LEFT(D$4)="p",(PutOption($A53,D$5,OptionPage!$A$9,OptionPage!$A$6,OptionPage!$A$4,OptionPage!$A$7)*D$3)-(D$3*D$8),($A53-D$5)*D$3))) -> 0 | E53: =IF(ISBLANK(E$4),0,IF(LEFT(E$4,1)="c",(CallOption($A53,E$5,OptionPage!$A$9,OptionPage!$A$6,OptionPage!$A$4,OptionPage!$A$7)*E$3)-(E$3*E$8),IF(LEFT(E$4)="p",(PutOption($A53,E$5,OptionPage!$A$9,OptionPage!$A$6,OptionPage!$A$4,OptionPage!$A$7)*E$3)-(E$3*E$8),($A53-E$5)*E$3))) -> 0 | F53: =IF(ISBLANK(F$4),0,IF(LEFT(F$4,1)="c",(CallOption($A53,F$5,OptionPage!$A$9,OptionPage!$A$6,OptionPage!$A$4,OptionPage!$A$7)*F$3)-(F$3*F$8),IF(LEFT(F$4)="p",(PutOption($A53,F$5,OptionPage!$A$9,OptionPage!$A$6,OptionPage!$A$4,OptionPage!$A$7)*F$3)-(F$3*F$8),($A53-F$5)*F$3))) -> 0 | G53: =IF(ISBLANK(G$4),0,IF(LEFT(G$4,1)="c",(CallOption($A53,G$5,OptionPage!$A$9,OptionPage!$A$6,OptionPage!$A$4,OptionPage!$A$7)*G$3)-(G$3*G$8),IF(LEFT(G$4)="p",(PutOption($A53,G$5,OptionPage!$A$9,OptionPage!$A$6,OptionPage!$A$4,OptionPage!$A$7)*G$3)-(G$3*G$8),($A53-G$5)*G$3))) -> 0 | H53: =IF(ISBLANK(H$4),0,IF(LEFT(H$4,1)="c",(CallOption($A53,H$5,OptionPage!$A$9,OptionPage!$A$6,OptionPage!$A$4,OptionPage!$A$7)*H$3)-(H$3*H$8),IF(LEFT(H$4)="p",(PutOption($A53,H$5,OptionPage!$A$9,OptionPage!$A$6,OptionPage!$A$4,OptionPage!$A$7)*H$3)-(H$3*H$8),($A53-H$5)*H$3))) -> 0 | I53: =IF(ISBLANK(I$4),0,IF(LEFT(I$4,1)="c",(CallOption($A53,I$5,OptionPage!$A$9,OptionPage!$A$6,OptionPage!$A$4,OptionPage!$A$7)*I$3)-(I$3*I$8),IF(LEFT(I$4)="p",(PutOption($A53,I$5,OptionPage!$A$9,OptionPage!$A$6,OptionPage!$A$4,OptionPage!$A$7)*I$3)-(I$3*I$8),($A53-I$5)*I$3))) -> 0 | J53: =IF(ISBLANK(J$4),0,IF(LEFT(J$4,1)="c",(CallOption($A53,J$5,OptionPage!$A$9,OptionPage!$A$6,OptionPage!$A$4,OptionPage!$A$7)*J$3)-(J$3*J$8),IF(LEFT(J$4)="p",(PutOption($A53,J$5,OptionPage!$A$9,OptionPage!$A$6,OptionPage!$A$4,OptionPage!$A$7)*J$3)-(J$3*J$8),($A53-J$5)*J$3))) -> 0 | K53: =IF(ISBLANK(K$4),0,IF(LEFT(K$4,1)="c",(CallOption($A53,K$5,OptionPage!$A$9,OptionPage!$A$6,OptionPage!$A$4,OptionPage!$A$7)*K$3)-(K$3*K$8),IF(LEFT(K$4)="p",(PutOption($A53,K$5,OptionPage!$A$9,OptionPage!$A$6,OptionPage!$A$4,OptionPage!$A$7)*K$3)-(K$3*K$8),($A53-K$5)*K$3))) -> 0 | L53: -1.348171756
A54: =A55-$A$17 -> 24 | B54: =IF(ISBLANK(B$4),0,IF(LEFT(B$4,1)="c",(CallOption($A54,B$5,OptionPage!$A$9,OptionPage!$A$6,OptionPage!$A$4,OptionPage!$A$7)*B$3)-(B$3*B$8),IF(LEFT(B$4)="p",(PutOption($A54,B$5,OptionPage!$A$9,OptionPage!$A$6,OptionPage!$A$4,OptionPage!$A$7)*B$3)-(B$3*B$8),($A54-B$5)*B$3))) -> -1 | C54: =IF(ISBLANK(C$4),0,IF(LEFT(C$4,1)="c",(CallOption($A54,C$5,OptionPage!$A$9,OptionPage!$A$6,OptionPage!$A$4,OptionPage!$A$7)*C$3)-(C$3*C$8),IF(LEFT(C$4)="p",(PutOption($A54,C$5,OptionPage!$A$9,OptionPage!$A$6,OptionPage!$A$4,OptionPage!$A$7)*C$3)-(C$3*C$8),($A54-C$5)*C$3))) -> 0.4187769272 | D54: =IF(ISBLANK(D$4),0,IF(LEFT(D$4,1)="c",(CallOption($A54,D$5,OptionPage!$A$9,OptionPage!$A$6,OptionPage!$A$4,OptionPage!$A$7)*D$3)-(D$3*D$8),IF(LEFT(D$4)="p",(PutOption($A54,D$5,OptionPage!$A$9,OptionPage!$A$6,OptionPage!$A$4,OptionPage!$A$7)*D$3)-(D$3*D$8),($A54-D$5)*D$3))) -> 0 | E54: =IF(ISBLANK(E$4),0,IF(LEFT(E$4,1)="c",(CallOption($A54,E$5,OptionPage!$A$9,OptionPage!$A$6,OptionPage!$A$4,OptionPage!$A$7)*E$3)-(E$3*E$8),IF(LEFT(E$4)="p",(PutOption($A54,E$5,OptionPage!$A$9,OptionPage!$A$6,OptionPage!$A$4,OptionPage!$A$7)*E$3)-(E$3*E$8),($A54-E$5)*E$3))) -> 0 | F54: =IF(ISBLANK(F$4),0,IF(LEFT(F$4,1)="c",(CallOption($A54,F$5,OptionPage!$A$9,OptionPage!$A$6,OptionPage!$A$4,OptionPage!$A$7)*F$3)-(F$3*F$8),IF(LEFT(F$4)="p",(PutOption($A54,F$5,OptionPage!$A$9,OptionPage!$A$6,OptionPage!$A$4,OptionPage!$A$7)*F$3)-(F$3*F$8),($A54-F$5)*F$3))) -> 0 | G54: =IF(ISBLANK(G$4),0,IF(LEFT(G$4,1)="c",(CallOption($A54,G$5,OptionPage!$A$9,OptionPage!$A$6,OptionPage!$A$4,OptionPage!$A$7)*G$3)-(G$3*G$8),IF(LEFT(G$4)="p",(PutOption($A54,G$5,OptionPage!$A$9,OptionPage!$A$6,OptionPage!$A$4,OptionPage!$A$7)*G$3)-(G$3*G$8),($A54-G$5)*G$3))) -> 0 | H54: =IF(ISBLANK(H$4),0,IF(LEFT(H$4,1)="c",(CallOption($A54,H$5,OptionPage!$A$9,OptionPage!$A$6,OptionPage!$A$4,OptionPage!$A$7)*H$3)-(H$3*H$8),IF(LEFT(H$4)="p",(PutOption($A54,H$5,OptionPage!$A$9,OptionPage!$A$6,OptionPage!$A$4,OptionPage!$A$7)*H$3)-(H$3*H$8),($A54-H$5)*H$3))) -> 0 | I54: =IF(ISBLANK(I$4),0,IF(LEFT(I$4,1)="c",(CallOption($A54,I$5,OptionPage!$A$9,OptionPage!$A$6,OptionPage!$A$4,OptionPage!$A$7)*I$3)-(I$3*I$8),IF(LEFT(I$4)="p",(PutOption($A54,I$5,OptionPage!$A$9,OptionPage!$A$6,OptionPage!$A$4,OptionPage!$A$7)*I$3)-(I$3*I$8),($A54-I$5)*I$3))) -> 0 | J54: =IF(ISBLANK(J$4),0,IF(LEFT(J$4,1)="c",(CallOption($A54,J$5,OptionPage!$A$9,OptionPage!$A$6,OptionPage!$A$4,OptionPage!$A$7)*J$3)-(J$3*J$8),IF(LEFT(J$4)="p",(PutOption($A54,J$5,OptionPage!$A$9,OptionPage!$A$6,OptionPage!$A$4,OptionPage!$A$7)*J$3)-(J$3*J$8),($A54-J$5)*J$3))) -> 0 | K54: =IF(ISBLANK(K$4),0,IF(LEFT(K$4,1)="c",(CallOption($A54,K$5,OptionPage!$A$9,OptionPage!$A$6,OptionPage!$A$4,OptionPage!$A$7)*K$3)-(K$3*K$8),IF(LEFT(K$4)="p",(PutOption($A54,K$5,OptionPage!$A$9,OptionPage!$A$6,OptionPage!$A$4,OptionPage!$A$7)*K$3)-(K$3*K$8),($A54-K$5)*K$3))) -> 0 | L54: -0.5812230728
A55: =OptionPage!A2 -> 25 | B55: =IF(ISBLANK(B$4),0,IF(LEFT(B$4,1)="c",(CallOption($A55,B$5,OptionPage!$A$9,OptionPage!$A$6,OptionPage!$A$4,OptionPage!$A$7)*B$3)-(B$3*B$8),IF(LEFT(B$4)="p",(PutOption($A55,B$5,OptionPage!$A$9,OptionPage!$A$6,OptionPage!$A$4,OptionPage!$A$7)*B$3)-(B$3*B$8),($A55-B$5)*B$3))) -> 0 | C55: =IF(ISBLANK(C$4),0,IF(LEFT(C$4,1)="c",(CallOption($A55,C$5,OptionPage!$A$9,OptionPage!$A$6,OptionPage!$A$4,OptionPage!$A$7)*C$3)-(C$3*C$8),IF(LEFT(C$4)="p",(PutOption($A55,C$5,OptionPage!$A$9,OptionPage!$A$6,OptionPage!$A$4,OptionPage!$A$7)*C$3)-(C$3*C$8),($A55-C$5)*C$3))) -> 0 | D55: =IF(ISBLANK(D$4),0,IF(LEFT(D$4,1)="c",(CallOption($A55,D$5,OptionPage!$A$9,OptionPage!$A$6,OptionPage!$A$4,OptionPage!$A$7)*D$3)-(D$3*D$8),IF(LEFT(D$4)="p",(PutOption($A55,D$5,OptionPage!$A$9,OptionPage!$A$6,OptionPage!$A$4,OptionPage!$A$7)*D$3)-(D$3*D$8),($A55-D$5)*D$3))) -> 0 | E55: =IF(ISBLANK(E$4),0,IF(LEFT(E$4,1)="c",(CallOption($A55,E$5,OptionPage!$A$9,OptionPage!$A$6,OptionPage!$A$4,OptionPage!$A$7)*E$3)-(E$3*E$8),IF(LEFT(E$4)="p",(PutOption($A55,E$5,OptionPage!$A$9,OptionPage!$A$6,OptionPage!$A$4,OptionPage!$A$7)*E$3)-(E$3*E$8),($A55-E$5)*E$3))) -> 0 | F55: =IF(ISBLANK(F$4),0,IF(LEFT(F$4,1)="c",(CallOption($A55,F$5,OptionPage!$A$9,OptionPage!$A$6,OptionPage!$A$4,OptionPage!$A$7)*F$3)-(F$3*F$8),IF(LEFT(F$4)="p",(PutOption($A55,F$5,OptionPage!$A$9,OptionPage!$A$6,OptionPage!$A$4,OptionPage!$A$7)*F$3)-(F$3*F$8),($A55-F$5)*F$3))) -> 0 | G55: =IF(ISBLANK(G$4),0,IF(LEFT(G$4,1)="c",(CallOption($A55,G$5,OptionPage!$A$9,OptionPage!$A$6,OptionPage!$A$4,OptionPage!$A$7)*G$3)-(G$3*G$8),IF(LEFT(G$4)="p",(PutOption($A55,G$5,OptionPage!$A$9,OptionPage!$A$6,OptionPage!$A$4,OptionPage!$A$7)*G$3)-(G$3*G$8),($A55-G$5)*G$3))) -> 0 | H55: =IF(ISBLANK(H$4),0,IF(LEFT(H$4,1)="c",(CallOption($A55,H$5,OptionPage!$A$9,OptionPage!$A$6,OptionPage!$A$4,OptionPage!$A$7)*H$3)-(H$3*H$8),IF(LEFT(H$4)="p",(PutOption($A55,H$5,OptionPage!$A$9,OptionPage!$A$6,OptionPage!$A$4,OptionPage!$A$7)*H$3)-(H$3*H$8),($A55-H$5)*H$3))) -> 0 | I55: =IF(ISBLANK(I$4),0,IF(LEFT(I$4,1)="c",(CallOption($A55,I$5,OptionPage!$A$9,OptionPage!$A$6,OptionPage!$A$4,OptionPage!$A$7)*I$3)-(I$3*I$8),IF(LEFT(I$4)="p",(PutOption($A55,I$5,OptionPage!$A$9,OptionPage!$A$6,OptionPage!$A$4,OptionPage!$A$7)*I$3)-(I$3*I$8),($A55-I$5)*I$3))) -> 0 | J55: =IF(ISBLANK(J$4),0,IF(LEFT(J$4,1)="c",(CallOption($A55,J$5,OptionPage!$A$9,OptionPage!$A$6,OptionPage!$A$4,OptionPage!$A$7)*J$3)-(J$3*J$8),IF(LEFT(J$4)="p",(PutOption($A55,J$5,OptionPage!$A$9,OptionPage!$A$6,OptionPage!$A$4,OptionPage!$A$7)*J$3)-(J$3*J$8),($A55-J$5)*J$3))) -> 0 | K55: =IF(ISBLANK(K$4),0,IF(LEFT(K$4,1)="c",(CallOption($A55,K$5,OptionPage!$A$9,OptionPage!$A$6,OptionPage!$A$4,OptionPage!$A$7)*K$3)-(K$3*K$8),IF(LEFT(K$4)="p",(PutOption($A55,K$5,OptionPage!$A$9,OptionPage!$A$6,OptionPage!$A$4,OptionPage!$A$7)*K$3)-(K$3*K$8),($A55-K$5)*K$3))) -> 0 | L55: 0
A56: =A55+$A$17 -> 26 | B56: =IF(ISBLANK(B$4),0,IF(LEFT(B$4,1)="c",(CallOption($A56,B$5,OptionPage!$A$9,OptionPage!$A$6,OptionPage!$A$4,OptionPage!$A$7)*B$3)-(B$3*B$8),IF(LEFT(B$4)="p",(PutOption($A56,B$5,OptionPage!$A$9,OptionPage!$A$6,OptionPage!$A$4,OptionPage!$A$7)*B$3)-(B$3*B$8),($A56-B$5)*B$3))) -> 1 | C56: =IF(ISBLANK(C$4),0,IF(LEFT(C$4,1)="c",(CallOption($A56,C$5,OptionPage!$A$9,OptionPage!$A$6,OptionPage!$A$4,OptionPage!$A$7)*C$3)-(C$3*C$8),IF(LEFT(C$4)="p",(PutOption($A56,C$5,OptionPage!$A$9,OptionPage!$A$6,OptionPage!$A$4,OptionPage!$A$7)*C$3)-(C$3*C$8),($A56-C$5)*C$3))) -> -0.6173029255 | D56: =IF(ISBLANK(D$4),0,IF(LEFT(D$4,1)="c",(CallOption($A56,D$5,OptionPage!$A$9,OptionPage!$A$6,OptionPage!$A$4,OptionPage!$A$7)*D$3)-(D$3*D$8),IF(LEFT(D$4)="p",(PutOption($A56,D$5,OptionPage!$A$9,OptionPage!$A$6,OptionPage!$A$4,OptionPage!$A$7)*D$3)-(D$3*D$8),($A56-D$5)*D$3))) -> 0 | E56: =IF(ISBLANK(E$4),0,IF(LEFT(E$4,1)="c",(CallOption($A56,E$5,OptionPage!$A$9,OptionPage!$A$6,OptionPage!$A$4,OptionPage!$A$7)*E$3)-(E$3*E$8),IF(LEFT(E$4)="p",(PutOption($A56,E$5,OptionPage!$A$9,OptionPage!$A$6,OptionPage!$A$4,OptionPage!$A$7)*E$3)-(E$3*E$8),($A56-E$5)*E$3))) -> 0 | F56: =IF(ISBLANK(F$4),0,IF(LEFT(F$4,1)="c",(CallOption($A56,F$5,OptionPage!$A$9,OptionPage!$A$6,OptionPage!$A$4,OptionPage!$A$7)*F$3)-(F$3*F$8),IF(LEFT(F$4)="p",(PutOption($A56,F$5,OptionPage!$A$9,OptionPage!$A$6,OptionPage!$A$4,OptionPage!$A$7)*F$3)-(F$3*F$8),($A56-F$5)*F$3))) -> 0 | G56: =IF(ISBLANK(G$4),0,IF(LEFT(G$4,1)="c",(CallOption($A56,G$5,OptionPage!$A$9,OptionPage!$A$6,OptionPage!$A$4,OptionPage!$A$7)*G$3)-(G$3*G$8),IF(LEFT(G$4)="p",(PutOption($A56,G$5,OptionPage!$A$9,OptionPage!$A$6,OptionPage!$A$4,OptionPage!$A$7)*G$3)-(G$3*G$8),($A56-G$5)*G$3))) -> 0 | H56: =IF(ISBLANK(H$4),0,IF(LEFT(H$4,1)="c",(CallOption($A56,H$5,OptionPage!$A$9,OptionPage!$A$6,OptionPage!$A$4,OptionPage!$A$7)*H$3)-(H$3*H$8),IF(LEFT(H$4)="p",(PutOption($A56,H$5,OptionPage!$A$9,OptionPage!$A$6,OptionPage!$A$4,OptionPage!$A$7)*H$3)-(H$3*H$8),($A56-H$5)*H$3))) -> 0 | I56: =IF(ISBLANK(I$4),0,IF(LEFT(I$4,1)="c",(CallOption($A56,I$5,OptionPage!$A$9,OptionPage!$A$6,OptionPage!$A$4,OptionPage!$A$7)*I$3)-(I$3*I$8),IF(LEFT(I$4)="p",(PutOption($A56,I$5,OptionPage!$A$9,OptionPage!$A$6,OptionPage!$A$4,OptionPage!$A$7)*I$3)-(I$3*I$8),($A56-I$5)*I$3))) -> 0 | J56: =IF(ISBLANK(J$4),0,IF(LEFT(J$4,1)="c",(CallOption($A56,J$5,OptionPage!$A$9,OptionPage!$A$6,OptionPage!$A$4,OptionPage!$A$7)*J$3)-(J$3*J$8),IF(LEFT(J$4)="p",(PutOption($A56,J$5,OptionPage!$A$9,OptionPage!$A$6,OptionPage!$A$4,OptionPage!$A$7)*J$3)-(J$3*J$8),($A56-J$5)*J$3))) -> 0 | K56: =IF(ISBLANK(K$4),0,IF(LEFT(K$4,1)="c",(CallOption($A56,K$5,OptionPage!$A$9,OptionPage!$A$6,OptionPage!$A$4,OptionPage!$A$7)*K$3)-(K$3*K$8),IF(LEFT(K$4)="p",(PutOption($A56,K$5,OptionPage!$A$9,OptionPage!$A$6,OptionPage!$A$4,OptionPage!$A$7)*K$3)-(K$3*K$8),($A56-K$5)*K$3))) -> 0 | L56: 0.3826970745
A57: =A56+$A$17 -> 27 | B57: =IF(ISBLANK(B$4),0,IF(LEFT(B$4,1)="c",(CallOption($A57,B$5,OptionPage!$A$9,OptionPage!$A$6,OptionPage!$A$4,OptionPage!$A$7)*B$3)-(B$3*B$8),IF(LEFT(B$4)="p",(PutOption($A57,B$5,OptionPage!$A$9,OptionPage!$A$6,OptionPage!$A$4,OptionPage!$A$7)*B$3)-(B$3*B$8),($A57-B$5)*B$3))) -> 2 | C57: =IF(ISBLANK(C$4),0,IF(LEFT(C$4,1)="c",(CallOption($A57,C$5,OptionPage!$A$9,OptionPage!$A$6,OptionPage!$A$4,OptionPage!$A$7)*C$3)-(C$3*C$8),IF(LEFT(C$4)="p",(PutOption($A57,C$5,OptionPage!$A$9,OptionPage!$A$6,OptionPage!$A$4,OptionPage!$A$7)*C$3)-(C$3*C$8),($A57-C$5)*C$3))) -> -1.400346455 | D57: =IF(ISBLANK(D$4),0,IF(LEFT(D$4,1)="c",(CallOption($A57,D$5,OptionPage!$A$9,OptionPage!$A$6,OptionPage!$A$4,OptionPage!$A$7)*D$3)-(D$3*D$8),IF(LEFT(D$4)="p",(PutOption($A57,D$5,OptionPage!$A$9,OptionPage!$A$6,OptionPage!$A$4,OptionPage!$A$7)*D$3)-(D$3*D$8),($A57-D$5)*D$3))) -> 0 | E57: =IF(ISBLANK(E$4),0,IF(LEFT(E$4,1)="c",(CallOption($A57,E$5,OptionPage!$A$9,OptionPage!$A$6,OptionPage!$A$4,OptionPage!$A$7)*E$3)-(E$3*E$8),IF(LEFT(E$4)="p",(PutOption($A57,E$5,OptionPage!$A$9,OptionPage!$A$6,OptionPage!$A$4,OptionPage!$A$7)*E$3)-(E$3*E$8),($A57-E$5)*E$3))) -> 0 | F57: =IF(ISBLANK(F$4),0,IF(LEFT(F$4,1)="c",(CallOption($A57,F$5,OptionPage!$A$9,OptionPage!$A$6,OptionPage!$A$4,OptionPage!$A$7)*F$3)-(F$3*F$8),IF(LEFT(F$4)="p",(PutOption($A57,F$5,OptionPage!$A$9,OptionPage!$A$6,OptionPage!$A$4,OptionPage!$A$7)*F$3)-(F$3*F$8),($A57-F$5)*F$3))) -> 0 | G57: =IF(ISBLANK(G$4),0,IF(LEFT(G$4,1)="c",(CallOption($A57,G$5,OptionPage!$A$9,OptionPage!$A$6,OptionPage!$A$4,OptionPage!$A$7)*G$3)-(G$3*G$8),IF(LEFT(G$4)="p",(PutOption($A57,G$5,OptionPage!$A$9,OptionPage!$A$6,OptionPage!$A$4,OptionPage!$A$7)*G$3)-(G$3*G$8),($A57-G$5)*G$3))) -> 0 | H57: =IF(ISBLANK(H$4),0,IF(LEFT(H$4,1)="c",(CallOption($A57,H$5,OptionPage!$A$9,OptionPage!$A$6,OptionPage!$A$4,OptionPage!$A$7)*H$3)-(H$3*H$8),IF(LEFT(H$4)="p",(PutOption($A57,H$5,OptionPage!$A$9,OptionPage!$A$6,OptionPage!$A$4,OptionPage!$A$7)*H$3)-(H$3*H$8),($A57-H$5)*H$3))) -> 0 | I57: =IF(ISBLANK(I$4),0,IF(LEFT(I$4,1)="c",(CallOption($A57,I$5,OptionPage!$A$9,OptionPage!$A$6,OptionPage!$A$4,OptionPage!$A$7)*I$3)-(I$3*I$8),IF(LEFT(I$4)="p",(PutOption($A57,I$5,OptionPage!$A$9,OptionPage!$A$6,OptionPage!$A$4,OptionPage!$A$7)*I$3)-(I$3*I$8),($A57-I$5)*I$3))) -> 0 | J57: =IF(ISBLANK(J$4),0,IF(LEFT(J$4,1)="c",(CallOption($A57,J$5,OptionPage!$A$9,OptionPage!$A$6,OptionPage!$A$4,OptionPage!$A$7)*J$3)-(J$3*J$8),IF(LEFT(J$4)="p",(PutOption($A57,J$5,OptionPage!$A$9,OptionPage!$A$6,OptionPage!$A$4,OptionPage!$A$7)*J$3)-(J$3*J$8),($A57-J$5)*J$3))) -> 0 | K57: =IF(ISBLANK(K$4),0,IF(LEFT(K$4,1)="c",(CallOption($A57,K$5,OptionPage!$A$9,OptionPage!$A$6,OptionPage!$A$4,OptionPage!$A$7)*K$3)-(K$3*K$8),IF(LEFT(K$4)="p",(PutOption($A57,K$5,OptionPage!$A$9,OptionPage!$A$6,OptionPage!$A$4,OptionPage!$A$7)*K$3)-(K$3*K$8),($A57-K$5)*K$3))) -> 0 | L57: 0.5996535448
A58: =A57+$A$17 -> 28 | B58: =IF(ISBLANK(B$4),0,IF(LEFT(B$4,1)="c",(CallOption($A58,B$5,OptionPage!$A$9,OptionPage!$A$6,OptionPage!$A$4,OptionPage!$A$7)*B$3)-(B$3*B$8),IF(LEFT(B$4)="p",(PutOption($A58,B$5,OptionPage!$A$9,OptionPage!$A$6,OptionPage!$A$4,OptionPage!$A$7)*B$3)-(B$3*B$8),($A58-B$5)*B$3))) -> 3 | C58: =IF(ISBLANK(C$4),0,IF(LEFT(C$4,1)="c",(CallOption($A58,C$5,OptionPage!$A$9,OptionPage!$A$6,OptionPage!$A$4,OptionPage!$A$7)*C$3)-(C$3*C$8),IF(LEFT(C$4)="p",(PutOption($A58,C$5,OptionPage!$A$9,OptionPage!$A$6,OptionPage!$A$4,OptionPage!$A$7)*C$3)-(C$3*C$8),($A58-C$5)*C$3))) -> -2.294268827 | D58: =IF(ISBLANK(D$4),0,IF(LEFT(D$4,1)="c",(CallOption($A58,D$5,OptionPage!$A$9,OptionPage!$A$6,OptionPage!$A$4,OptionPage!$A$7)*D$3)-(D$3*D$8),IF(LEFT(D$4)="p",(PutOption($A58,D$5,OptionPage!$A$9,OptionPage!$A$6,OptionPage!$A$4,OptionPage!$A$7)*D$3)-(D$3*D$8),($A58-D$5)*D$3))) -> 0 | E58: =IF(ISBLANK(E$4),0,IF(LEFT(E$4,1)="c",(CallOption($A58,E$5,OptionPage!$A$9,OptionPage!$A$6,OptionPage!$A$4,OptionPage!$A$7)*E$3)-(E$3*E$8),IF(LEFT(E$4)="p",(PutOption($A58,E$5,OptionPage!$A$9,OptionPage!$A$6,OptionPage!$A$4,OptionPage!$A$7)*E$3)-(E$3*E$8),($A58-E$5)*E$3))) -> 0 | F58: =IF(ISBLANK(F$4),0,IF(LEFT(F$4,1)="c",(CallOption($A58,F$5,OptionPage!$A$9,OptionPage!$A$6,OptionPage!$A$4,OptionPage!$A$7)*F$3)-(F$3*F$8),IF(LEFT(F$4)="p",(PutOption($A58,F$5,OptionPage!$A$9,OptionPage!$A$6,OptionPage!$A$4,OptionPage!$A$7)*F$3)-(F$3*F$8),($A58-F$5)*F$3))) -> 0 | G58: =IF(ISBLANK(G$4),0,IF(LEFT(G$4,1)="c",(CallOption($A58,G$5,OptionPage!$A$9,OptionPage!$A$6,OptionPage!$A$4,OptionPage!$A$7)*G$3)-(G$3*G$8),IF(LEFT(G$4)="p",(PutOption($A58,G$5,OptionPage!$A$9,OptionPage!$A$6,OptionPage!$A$4,OptionPage!$A$7)*G$3)-(G$3*G$8),($A58-G$5)*G$3))) -> 0 | H58: =IF(ISBLANK(H$4),0,IF(LEFT(H$4,1)="c",(CallOption($A58,H$5,OptionPage!$A$9,OptionPage!$A$6,OptionPage!$A$4,OptionPage!$A$7)*H$3)-(H$3*H$8),IF(LEFT(H$4)="p",(PutOption($A58,H$5,OptionPage!$A$9,OptionPage!$A$6,OptionPage!$A$4,OptionPage!$A$7)*H$3)-(H$3*H$8),($A58-H$5)*H$3))) -> 0 | I58: =IF(ISBLANK(I$4),0,IF(LEFT(I$4,1)="c",(CallOption($A58,I$5,OptionPage!$A$9,OptionPage!$A$6,OptionPage!$A$4,OptionPage!$A$7)*I$3)-(I$3*I$8),IF(LEFT(I$4)="p",(PutOption($A58,I$5,OptionPage!$A$9,OptionPage!$A$6,OptionPage!$A$4,OptionPage!$A$7)*I$3)-(I$3*I$8),($A58-I$5)*I$3))) -> 0 | J58: =IF(ISBLANK(J$4),0,IF(LEFT(J$4,1)="c",(CallOption($A58,J$5,OptionPage!$A$9,OptionPage!$A$6,OptionPage!$A$4,OptionPage!$A$7)*J$3)-(J$3*J$8),IF(LEFT(J$4)="p",(PutOption($A58,J$5,OptionPage!$A$9,OptionPage!$A$6,OptionPage!$A$4,OptionPage!$A$7)*J$3)-(J$3*J$8),($A58-J$5)*J$3))) -> 0 | K58: =IF(ISBLANK(K$4),0,IF(LEFT(K$4,1)="c",(CallOption($A58,K$5,OptionPage!$A$9,OptionPage!$A$6,OptionPage!$A$4,OptionPage!$A$7)*K$3)-(K$3*K$8),IF(LEFT(K$4)="p",(PutOption($A58,K$5,OptionPage!$A$9,OptionPage!$A$6,OptionPage!$A$4,OptionPage!$A$7)*K$3)-(K$3*K$8),($A58-K$5)*K$3))) -> 0 | L58: 0.7057311732
A59: =A58+$A$17 -> 29 | B59: =IF(ISBLANK(B$4),0,IF(LEFT(B$4,1)="c",(CallOption($A59,B$5,OptionPage!$A$9,OptionPage!$A$6,OptionPage!$A$4,OptionPage!$A$7)*B$3)-(B$3*B$8),IF(LEFT(B$4)="p",(PutOption($A59,B$5,OptionPage!$A$9,OptionPage!$A$6,OptionPage!$A$4,OptionPage!$A$7)*B$3)-(B$3*B$8),($A59-B$5)*B$3))) -> 4 | C59: =IF(ISBLANK(C$4),0,IF(LEFT(C$4,1)="c",(CallOption($A59,C$5,OptionPage!$A$9,OptionPage!$A$6,OptionPage!$A$4,OptionPage!$A$7)*C$3)-(C$3*C$8),IF(LEFT(C$4)="p",(PutOption($A59,C$5,OptionPage!$A$9,OptionPage!$A$6,OptionPage!$A$4,OptionPage!$A$7)*C$3)-(C$3*C$8),($A59-C$5)*C$3))) -> -3.248992953 | D59: =IF(ISBLANK(D$4),0,IF(LEFT(D$4,1)="c",(CallOption($A59,D$5,OptionPage!$A$9,OptionPage!$A$6,OptionPage!$A$4,OptionPage!$A$7)*D$3)-(D$3*D$8),IF(LEFT(D$4)="p",(PutOption($A59,D$5,OptionPage!$A$9,OptionPage!$A$6,OptionPage!$A$4,OptionPage!$A$7)*D$3)-(D$3*D$8),($A59-D$5)*D$3))) -> 0 | E59: =IF(ISBLANK(E$4),0,IF(LEFT(E$4,1)="c",(CallOption($A59,E$5,OptionPage!$A$9,OptionPage!$A$6,OptionPage!$A$4,OptionPage!$A$7)*E$3)-(E$3*E$8),IF(LEFT(E$4)="p",(PutOption($A59,E$5,OptionPage!$A$9,OptionPage!$A$6,OptionPage!$A$4,OptionPage!$A$7)*E$3)-(E$3*E$8),($A59-E$5)*E$3))) -> 0 | F59: =IF(ISBLANK(F$4),0,IF(LEFT(F$4,1)="c",(CallOption($A59,F$5,OptionPage!$A$9,OptionPage!$A$6,OptionPage!$A$4,OptionPage!$A$7)*F$3)-(F$3*F$8),IF(LEFT(F$4)="p",(PutOption($A59,F$5,OptionPage!$A$9,OptionPage!$A$6,OptionPage!$A$4,OptionPage!$A$7)*F$3)-(F$3*F$8),($A59-F$5)*F$3))) -> 0 | G59: =IF(ISBLANK(G$4),0,IF(LEFT(G$4,1)="c",(CallOption($A59,G$5,OptionPage!$A$9,OptionPage!$A$6,OptionPage!$A$4,OptionPage!$A$7)*G$3)-(G$3*G$8),IF(LEFT(G$4)="p",(PutOption($A59,G$5,OptionPage!$A$9,OptionPage!$A$6,OptionPage!$A$4,OptionPage!$A$7)*G$3)-(G$3*G$8),($A59-G$5)*G$3))) -> 0 | H59: =IF(ISBLANK(H$4),0,IF(LEFT(H$4,1)="c",(CallOption($A59,H$5,OptionPage!$A$9,OptionPage!$A$6,OptionPage!$A$4,OptionPage!$A$7)*H$3)-(H$3*H$8),IF(LEFT(H$4)="p",(PutOption($A59,H$5,OptionPage!$A$9,OptionPage!$A$6,OptionPage!$A$4,OptionPage!$A$7)*H$3)-(H$3*H$8),($A59-H$5)*H$3))) -> 0 | I59: =IF(ISBLANK(I$4),0,IF(LEFT(I$4,1)="c",(CallOption($A59,I$5,OptionPage!$A$9,OptionPage!$A$6,OptionPage!$A$4,OptionPage!$A$7)*I$3)-(I$3*I$8),IF(LEFT(I$4)="p",(PutOption($A59,I$5,OptionPage!$A$9,OptionPage!$A$6,OptionPage!$A$4,OptionPage!$A$7)*I$3)-(I$3*I$8),($A59-I$5)*I$3))) -> 0 | J59: =IF(ISBLANK(J$4),0,IF(LEFT(J$4,1)="c",(CallOption($A59,J$5,OptionPage!$A$9,OptionPage!$A$6,OptionPage!$A$4,OptionPage!$A$7)*J$3)-(J$3*J$8),IF(LEFT(J$4)="p",(PutOption($A59,J$5,OptionPage!$A$9,OptionPage!$A$6,OptionPage!$A$4,OptionPage!$A$7)*J$3)-(J$3*J$8),($A59-J$5)*J$3))) -> 0 | K59: =IF(ISBLANK(K$4),0,IF(LEFT(K$4,1)="c",(CallOption($A59,K$5,OptionPage!$A$9,OptionPage!$A$6,OptionPage!$A$4,OptionPage!$A$7)*K$3)-(K$3*K$8),IF(LEFT(K$4)="p",(PutOption($A59,K$5,OptionPage!$A$9,OptionPage!$A$6,OptionPage!$A$4,OptionPage!$A$7)*K$3)-(K$3*K$8),($A59-K$5)*K$3))) -> 0 | L59: 0.7510070474
A60: =A59+$A$17 -> 30 | B60: =IF(ISBLANK(B$4),0,IF(LEFT(B$4,1)="c",(CallOption($A60,B$5,OptionPage!$A$9,OptionPage!$A$6,OptionPage!$A$4,OptionPage!$A$7)*B$3)-(B$3*B$8),IF(LEFT(B$4)="p",(PutOption($A60,B$5,OptionPage!$A$9,OptionPage!$A$6,OptionPage!$A$4,OptionPage!$A$7)*B$3)-(B$3*B$8),($A60-B$5)*B$3))) -> 5 | C60: =IF(ISBLANK(C$4),0,IF(LEFT(C$4,1)="c",(CallOption($A60,C$5,OptionPage!$A$9,OptionPage!$A$6,OptionPage!$A$4,OptionPage!$A$7)*C$3)-(C$3*C$8),IF(LEFT(C$4)="p",(PutOption($A60,C$5,OptionPage!$A$9,OptionPage!$A$6,OptionPage!$A$4,OptionPage!$A$7)*C$3)-(C$3*C$8),($A60-C$5)*C$3))) -> -4.231600456 | D60: =IF(ISBLANK(D$4),0,IF(LEFT(D$4,1)="c",(CallOption($A60,D$5,OptionPage!$A$9,OptionPage!$A$6,OptionPage!$A$4,OptionPage!$A$7)*D$3)-(D$3*D$8),IF(LEFT(D$4)="p",(PutOption($A60,D$5,OptionPage!$A$9,OptionPage!$A$6,OptionPage!$A$4,OptionPage!$A$7)*D$3)-(D$3*D$8),($A60-D$5)*D$3))) -> 0 | E60: =IF(ISBLANK(E$4),0,IF(LEFT(E$4,1)="c",(CallOption($A60,E$5,OptionPage!$A$9,OptionPage!$A$6,OptionPage!$A$4,OptionPage!$A$7)*E$3)-(E$3*E$8),IF(LEFT(E$4)="p",(PutOption($A60,E$5,OptionPage!$A$9,OptionPage!$A$6,OptionPage!$A$4,OptionPage!$A$7)*E$3)-(E$3*E$8),($A60-E$5)*E$3))) -> 0 | F60: =IF(ISBLANK(F$4),0,IF(LEFT(F$4,1)="c",(CallOption($A60,F$5,OptionPage!$A$9,OptionPage!$A$6,OptionPage!$A$4,OptionPage!$A$7)*F$3)-(F$3*F$8),IF(LEFT(F$4)="p",(PutOption($A60,F$5,OptionPage!$A$9,OptionPage!$A$6,OptionPage!$A$4,OptionPage!$A$7)*F$3)-(F$3*F$8),($A60-F$5)*F$3))) -> 0 | G60: =IF(ISBLANK(G$4),0,IF(LEFT(G$4,1)="c",(CallOption($A60,G$5,OptionPage!$A$9,OptionPage!$A$6,OptionPage!$A$4,OptionPage!$A$7)*G$3)-(G$3*G$8),IF(LEFT(G$4)="p",(PutOption($A60,G$5,OptionPage!$A$9,OptionPage!$A$6,OptionPage!$A$4,OptionPage!$A$7)*G$3)-(G$3*G$8),($A60-G$5)*G$3))) -> 0 | H60: =IF(ISBLANK(H$4),0,IF(LEFT(H$4,1)="c",(CallOption($A60,H$5,OptionPage!$A$9,OptionPage!$A$6,OptionPage!$A$4,OptionPage!$A$7)*H$3)-(H$3*H$8),IF(LEFT(H$4)="p",(PutOption($A60,H$5,OptionPage!$A$9,OptionPage!$A$6,OptionPage!$A$4,OptionPage!$A$7)*H$3)-(H$3*H$8),($A60-H$5)*H$3))) -> 0 | I60: =IF(ISBLANK(I$4),0,IF(LEFT(I$4,1)="c",(CallOption($A60,I$5,OptionPage!$A$9,OptionPage!$A$6,OptionPage!$A$4,OptionPage!$A$7)*I$3)-(I$3*I$8),IF(LEFT(I$4)="p",(PutOption($A60,I$5,OptionPage!$A$9,OptionPage!$A$6,OptionPage!$A$4,OptionPage!$A$7)*I$3)-(I$3*I$8),($A60-I$5)*I$3))) -> 0 | J60: =IF(ISBLANK(J$4),0,IF(LEFT(J$4,1)="c",(CallOption($A60,J$5,OptionPage!$A$9,OptionPage!$A$6,OptionPage!$A$4,OptionPage!$A$7)*J$3)-(J$3*J$8),IF(LEFT(J$4)="p",(PutOption($A60,J$5,OptionPage!$A$9,OptionPage!$A$6,OptionPage!$A$4,OptionPage!$A$7)*J$3)-(J$3*J$8),($A60-J$5)*J$3))) -> 0 | K60: =IF(ISBLANK(K$4),0,IF(LEFT(K$4,1)="c",(CallOption($A60,K$5,OptionPage!$A$9,OptionPage!$A$6,OptionPage!$A$4,OptionPage!$A$7)*K$3)-(K$3*K$8),IF(LEFT(K$4)="p",(PutOption($A60,K$5,OptionPage!$A$9,OptionPage!$A$6,OptionPage!$A$4,OptionPage!$A$7)*K$3)-(K$3*K$8),($A60-K$5)*K$3))) -> 0 | L60: 0.7683995439
B62: Current Position Delta Relative to Underlying Price Changes
A63: Underlying Price | B63: Strat1 | C63: Strat2 | D63: Strat3 | E63: Strat4 | F63: Strat5 | G63: Strat6 | H63: Strat7 | I63: Strat8 | J63: Strat9 | K63: Strat10 | L63: Total
A64: =A65-$A$17 -> 20 | B64: =IF(ISBLANK(B$4),0,IF(LEFT(B$4,1)="c",CallDelta($A64,B$5,OptionPage!$A$9,OptionPage!$A$6,OptionPage!$A$4,OptionPage!$A$7)*B$3,IF(LEFT(B$4)="p",(Putdelta($A64,B$5,OptionPage!$A$9,OptionPage!$A$6,OptionPage!$A$4,OptionPage!$A$7)*B$3),B$3))) -> 1 | C64: =IF(ISBLANK(C$4),0,IF(LEFT(C$4,1)="c",CallDelta($A64,C$5,OptionPage!$A$9,OptionPage!$A$6,OptionPage!$A$4,OptionPage!$A$7)*C$3,IF(LEFT(C$4)="p",(Putdelta($A64,C$5,OptionPage!$A$9,OptionPage!$A$6,OptionPage!$A$4,OptionPage!$A$7)*C$3),C$3))) -> -0.00263736729 | D64: =IF(ISBLANK(D$4),0,IF(LEFT(D$4,1)="c",CallDelta($A64,D$5,OptionPage!$A$9,OptionPage!$A$6,OptionPage!$A$4,OptionPage!$A$7)*D$3,IF(LEFT(D$4)="p",(Putdelta($A64,D$5,OptionPage!$A$9,OptionPage!$A$6,OptionPage!$A$4,OptionPage!$A$7)*D$3),D$3))) -> 0 | E64: =IF(ISBLANK(E$4),0,IF(LEFT(E$4,1)="c",CallDelta($A64,E$5,OptionPage!$A$9,OptionPage!$A$6,OptionPage!$A$4,OptionPage!$A$7)*E$3,IF(LEFT(E$4)="p",(Putdelta($A64,E$5,OptionPage!$A$9,OptionPage!$A$6,OptionPage!$A$4,OptionPage!$A$7)*E$3),E$3))) -> 0 | F64: =IF(ISBLANK(F$4),0,IF(LEFT(F$4,1)="c",CallDelta($A64,F$5,OptionPage!$A$9,OptionPage!$A$6,OptionPage!$A$4,OptionPage!$A$7)*F$3,IF(LEFT(F$4)="p",(Putdelta($A64,F$5,OptionPage!$A$9,OptionPage!$A$6,OptionPage!$A$4,OptionPage!$A$7)*F$3),F$3))) -> 0 | G64: =IF(ISBLANK(G$4),0,IF(LEFT(G$4,1)="c",CallDelta($A64,G$5,OptionPage!$A$9,OptionPage!$A$6,OptionPage!$A$4,OptionPage!$A$7)*G$3,IF(LEFT(G$4)="p",(Putdelta($A64,G$5,OptionPage!$A$9,OptionPage!$A$6,OptionPage!$A$4,OptionPage!$A$7)*G$3),G$3))) -> 0 | H64: =IF(ISBLANK(H$4),0,IF(LEFT(H$4,1)="c",CallDelta($A64,H$5,OptionPage!$A$9,OptionPage!$A$6,OptionPage!$A$4,OptionPage!$A$7)*H$3,IF(LEFT(H$4)="p",(Putdelta($A64,H$5,OptionPage!$A$9,OptionPage!$A$6,OptionPage!$A$4,OptionPage!$A$7)*H$3),H$3))) -> 0 | I64: =IF(ISBLANK(I$4),0,IF(LEFT(I$4,1)="c",CallDelta($A64,I$5,OptionPage!$A$9,OptionPage!$A$6,OptionPage!$A$4,OptionPage!$A$7)*I$3,IF(LEFT(I$4)="p",(Putdelta($A64,I$5,OptionPage!$A$9,OptionPage!$A$6,OptionPage!$A$4,OptionPage!$A$7)*I$3),I$3))) -> 0 | J64: =IF(ISBLANK(J$4),0,IF(LEFT(J$4,1)="c",CallDelta($A64,J$5,OptionPage!$A$9,OptionPage!$A$6,OptionPage!$A$4,OptionPage!$A$7)*J$3,IF(LEFT(J$4)="p",(Putdelta($A64,J$5,OptionPage!$A$9,OptionPage!$A$6,OptionPage!$A$4,OptionPage!$A$7)*J$3),J$3))) -> 0 | K64: =IF(ISBLANK(K$4),0,IF(LEFT(K$4,1)="c",CallDelta($A64,K$5,OptionPage!$A$9,OptionPage!$A$6,OptionPage!$A$4,OptionPage!$A$7)*K$3,IF(LEFT(K$4)="p",(Putdelta($A64,K$5,OptionPage!$A$9,OptionPage!$A$6,OptionPage!$A$4,OptionPage!$A$7)*K$3),K$3))) -> 0 | L64: =SUM(B64:K64) -> 0.9973626327
A65: =A66-$A$17 -> 21 | B65: =IF(ISBLANK(B$4),0,IF(LEFT(B$4,1)="c",CallDelta($A65,B$5,OptionPage!$A$9,OptionPage!$A$6,OptionPage!$A$4,OptionPage!$A$7)*B$3,IF(LEFT(B$4)="p",(Putdelta($A65,B$5,OptionPage!$A$9,OptionPage!$A$6,OptionPage!$A$4,OptionPage!$A$7)*B$3),B$3))) -> 1 | C65: =IF(ISBLANK(C$4),0,IF(LEFT(C$4,1)="c",CallDelta($A65,C$5,OptionPage!$A$9,OptionPage!$A$6,OptionPage!$A$4,OptionPage!$A$7)*C$3,IF(LEFT(C$4)="p",(Putdelta($A65,C$5,OptionPage!$A$9,OptionPage!$A$6,OptionPage!$A$4,OptionPage!$A$7)*C$3),C$3))) -> -0.01506658601 | D65: =IF(ISBLANK(D$4),0,IF(LEFT(D$4,1)="c",CallDelta($A65,D$5,OptionPage!$A$9,OptionPage!$A$6,OptionPage!$A$4,OptionPage!$A$7)*D$3,IF(LEFT(D$4)="p",(Putdelta($A65,D$5,OptionPage!$A$9,OptionPage!$A$6,OptionPage!$A$4,OptionPage!$A$7)*D$3),D$3))) -> 0 | E65: =IF(ISBLANK(E$4),0,IF(LEFT(E$4,1)="c",CallDelta($A65,E$5,OptionPage!$A$9,OptionPage!$A$6,OptionPage!$A$4,OptionPage!$A$7)*E$3,IF(LEFT(E$4)="p",(Putdelta($A65,E$5,OptionPage!$A$9,OptionPage!$A$6,OptionPage!$A$4,OptionPage!$A$7)*E$3),E$3))) -> 0 | F65: =IF(ISBLANK(F$4),0,IF(LEFT(F$4,1)="c",CallDelta($A65,F$5,OptionPage!$A$9,OptionPage!$A$6,OptionPage!$A$4,OptionPage!$A$7)*F$3,IF(LEFT(F$4)="p",(Putdelta($A65,F$5,OptionPage!$A$9,OptionPage!$A$6,OptionPage!$A$4,OptionPage!$A$7)*F$3),F$3))) -> 0 | G65: =IF(ISBLANK(G$4),0,IF(LEFT(G$4,1)="c",CallDelta($A65,G$5,OptionPage!$A$9,OptionPage!$A$6,OptionPage!$A$4,OptionPage!$A$7)*G$3,IF(LEFT(G$4)="p",(Putdelta($A65,G$5,OptionPage!$A$9,OptionPage!$A$6,OptionPage!$A$4,OptionPage!$A$7)*G$3),G$3))) -> 0 | H65: =IF(ISBLANK(H$4),0,IF(LEFT(H$4,1)="c",CallDelta($A65,H$5,OptionPage!$A$9,OptionPage!$A$6,OptionPage!$A$4,OptionPage!$A$7)*H$3,IF(LEFT(H$4)="p",(Putdelta($A65,H$5,OptionPage!$A$9,OptionPage!$A$6,OptionPage!$A$4,OptionPage!$A$7)*H$3),H$3))) -> 0 | I65: =IF(ISBLANK(I$4),0,IF(LEFT(I$4,1)="c",CallDelta($A65,I$5,OptionPage!$A$9,OptionPage!$A$6,OptionPage!$A$4,OptionPage!$A$7)*I$3,IF(LEFT(I$4)="p",(Putdelta($A65,I$5,OptionPage!$A$9,OptionPage!$A$6,OptionPage!$A$4,OptionPage!$A$7)*I$3),I$3))) -> 0 | J65: =IF(ISBLANK(J$4),0,IF(LEFT(J$4,1)="c",CallDelta($A65,J$5,OptionPage!$A$9,OptionPage!$A$6,OptionPage!$A$4,OptionPage!$A$7)*J$3,IF(LEFT(J$4)="p",(Putdelta($A65,J$5,OptionPage!$A$9,OptionPage!$A$6,OptionPage!$A$4,OptionPage!$A$7)*J$3),J$3))) -> 0 | K65: =IF(ISBLANK(K$4),0,IF(LEFT(K$4,1)="c",CallDelta($A65,K$5,OptionPage!$A$9,OptionPage!$A$6,OptionPage!$A$4,OptionPage!$A$7)*K$3,IF(LEFT(K$4)="p",(Putdelta($A65,K$5,OptionPage!$A$9,OptionPage!$A$6,OptionPage!$A$4,OptionPage!$A$7)*K$3),K$3))) -> 0 | L65: =SUM(B65:K65) -> 0.984933414
A66: =A67-$A$17 -> 22 | B66: =IF(ISBLANK(B$4),0,IF(LEFT(B$4,1)="c",CallDelta($A66,B$5,OptionPage!$A$9,OptionPage!$A$6,OptionPage!$A$4,OptionPage!$A$7)*B$3,IF(LEFT(B$4)="p",(Putdelta($A66,B$5,OptionPage!$A$9,OptionPage!$A$6,OptionPage!$A$4,OptionPage!$A$7)*B$3),B$3))) -> 1 | C66: =IF(ISBLANK(C$4),0,IF(LEFT(C$4,1)="c",CallDelta($A66,C$5,OptionPage!$A$9,OptionPage!$A$6,OptionPage!$A$4,OptionPage!$A$7)*C$3,IF(LEFT(C$4)="p",(Putdelta($A66,C$5,OptionPage!$A$9,OptionPage!$A$6,OptionPage!$A$4,OptionPage!$A$7)*C$3),C$3))) -> -0.05753291246 | D66: =IF(ISBLANK(D$4),0,IF(LEFT(D$4,1)="c",CallDelta($A66,D$5,OptionPage!$A$9,OptionPage!$A$6,OptionPage!$A$4,OptionPage!$A$7)*D$3,IF(LEFT(D$4)="p",(Putdelta($A66,D$5,OptionPage!$A$9,OptionPage!$A$6,OptionPage!$A$4,OptionPage!$A$7)*D$3),D$3))) -> 0 | E66: =IF(ISBLANK(E$4),0,IF(LEFT(E$4,1)="c",CallDelta($A66,E$5,OptionPage!$A$9,OptionPage!$A$6,OptionPage!$A$4,OptionPage!$A$7)*E$3,IF(LEFT(E$4)="p",(Putdelta($A66,E$5,OptionPage!$A$9,OptionPage!$A$6,OptionPage!$A$4,OptionPage!$A$7)*E$3),E$3))) -> 0 | F66: =IF(ISBLANK(F$4),0,IF(LEFT(F$4,1)="c",CallDelta($A66,F$5,OptionPage!$A$9,OptionPage!$A$6,OptionPage!$A$4,OptionPage!$A$7)*F$3,IF(LEFT(F$4)="p",(Putdelta($A66,F$5,OptionPage!$A$9,OptionPage!$A$6,OptionPage!$A$4,OptionPage!$A$7)*F$3),F$3))) -> 0 | G66: =IF(ISBLANK(G$4),0,IF(LEFT(G$4,1)="c",CallDelta($A66,G$5,OptionPage!$A$9,OptionPage!$A$6,OptionPage!$A$4,OptionPage!$A$7)*G$3,IF(LEFT(G$4)="p",(Putdelta($A66,G$5,OptionPage!$A$9,OptionPage!$A$6,OptionPage!$A$4,OptionPage!$A$7)*G$3),G$3))) -> 0 | H66: =IF(ISBLANK(H$4),0,IF(LEFT(H$4,1)="c",CallDelta($A66,H$5,OptionPage!$A$9,OptionPage!$A$6,OptionPage!$A$4,OptionPage!$A$7)*H$3,IF(LEFT(H$4)="p",(Putdelta($A66,H$5,OptionPage!$A$9,OptionPage!$A$6,OptionPage!$A$4,OptionPage!$A$7)*H$3),H$3))) -> 0 | I66: =IF(ISBLANK(I$4),0,IF(LEFT(I$4,1)="c",CallDelta($A66,I$5,OptionPage!$A$9,OptionPage!$A$6,OptionPage!$A$4,OptionPage!$A$7)*I$3,IF(LEFT(I$4)="p",(Putdelta($A66,I$5,OptionPage!$A$9,OptionPage!$A$6,OptionPage!$A$4,OptionPage!$A$7)*I$3),I$3))) -> 0 | J66: =IF(ISBLANK(J$4),0,IF(LEFT(J$4,1)="c",CallDelta($A66,J$5,OptionPage!$A$9,OptionPage!$A$6,OptionPage!$A$4,OptionPage!$A$7)*J$3,IF(LEFT(J$4)="p",(Putdelta($A66,J$5,OptionPage!$A$9,OptionPage!$A$6,OptionPage!$A$4,OptionPage!$A$7)*J$3),J$3))) -> 0 | K66: =IF(ISBLANK(K$4),0,IF(LEFT(K$4,1)="c",CallDelta($A66,K$5,OptionPage!$A$9,OptionPage!$A$6,OptionPage!$A$4,OptionPage!$A$7)*K$3,IF(LEFT(K$4)="p",(Putdelta($A66,K$5,OptionPage!$A$9,OptionPage!$A$6,OptionPage!$A$4,OptionPage!$A$7)*K$3),K$3))) -> 0 | L66: 0.9424670875
A67: =A68-$A$17 -> 23 | B67: =IF(ISBLANK(B$4),0,IF(LEFT(B$4,1)="c",CallDelta($A67,B$5,OptionPage!$A$9,OptionPage!$A$6,OptionPage!$A$4,OptionPage!$A$7)*B$3,IF(LEFT(B$4)="p",(Putdelta($A67,B$5,OptionPage!$A$9,OptionPage!$A$6,OptionPage!$A$4,OptionPage!$A$7)*B$3),B$3))) -> 1 | C67: =IF(ISBLANK(C$4),0,IF(LEFT(C$4,1)="c",CallDelta($A67,C$5,OptionPage!$A$9,OptionPage!$A$6,OptionPage!$A$4,OptionPage!$A$7)*C$3,IF(LEFT(C$4)="p",(Putdelta($A67,C$5,OptionPage!$A$9,OptionPage!$A$6,OptionPage!$A$4,OptionPage!$A$7)*C$3),C$3))) -> -0.1563291362 | D67: =IF(ISBLANK(D$4),0,IF(LEFT(D$4,1)="c",CallDelta($A67,D$5,OptionPage!$A$9,OptionPage!$A$6,OptionPage!$A$4,OptionPage!$A$7)*D$3,IF(LEFT(D$4)="p",(Putdelta($A67,D$5,OptionPage!$A$9,OptionPage!$A$6,OptionPage!$A$4,OptionPage!$A$7)*D$3),D$3))) -> 0 | E67: =IF(ISBLANK(E$4),0,IF(LEFT(E$4,1)="c",CallDelta($A67,E$5,OptionPage!$A$9,OptionPage!$A$6,OptionPage!$A$4,OptionPage!$A$7)*E$3,IF(LEFT(E$4)="p",(Putdelta($A67,E$5,OptionPage!$A$9,OptionPage!$A$6,OptionPage!$A$4,OptionPage!$A$7)*E$3),E$3))) -> 0 | F67: =IF(ISBLANK(F$4),0,IF(LEFT(F$4,1)="c",CallDelta($A67,F$5,OptionPage!$A$9,OptionPage!$A$6,OptionPage!$A$4,OptionPage!$A$7)*F$3,IF(LEFT(F$4)="p",(Putdelta($A67,F$5,OptionPage!$A$9,OptionPage!$A$6,OptionPage!$A$4,OptionPage!$A$7)*F$3),F$3))) -> 0 | G67: =IF(ISBLANK(G$4),0,IF(LEFT(G$4,1)="c",CallDelta($A67,G$5,OptionPage!$A$9,OptionPage!$A$6,OptionPage!$A$4,OptionPage!$A$7)*G$3,IF(LEFT(G$4)="p",(Putdelta($A67,G$5,OptionPage!$A$9,OptionPage!$A$6,OptionPage!$A$4,OptionPage!$A$7)*G$3),G$3))) -> 0 | H67: =IF(ISBLANK(H$4),0,IF(LEFT(H$4,1)="c",CallDelta($A67,H$5,OptionPage!$A$9,OptionPage!$A$6,OptionPage!$A$4,OptionPage!$A$7)*H$3,IF(LEFT(H$4)="p",(Putdelta($A67,H$5,OptionPage!$A$9,OptionPage!$A$6,OptionPage!$A$4,OptionPage!$A$7)*H$3),H$3))) -> 0 | I67: =IF(ISBLANK(I$4),0,IF(LEFT(I$4,1)="c",CallDelta($A67,I$5,OptionPage!$A$9,OptionPage!$A$6,OptionPage!$A$4,OptionPage!$A$7)*I$3,IF(LEFT(I$4)="p",(Putdelta($A67,I$5,OptionPage!$A$9,OptionPage!$A$6,OptionPage!$A$4,OptionPage!$A$7)*I$3),I$3))) -> 0 | J67: =IF(ISBLANK(J$4),0,IF(LEFT(J$4,1)="c",CallDelta($A67,J$5,OptionPage!$A$9,OptionPage!$A$6,OptionPage!$A$4,OptionPage!$A$7)*J$3,IF(LEFT(J$4)="p",(Putdelta($A67,J$5,OptionPage!$A$9,OptionPage!$A$6,OptionPage!$A$4,OptionPage!$A$7)*J$3),J$3))) -> 0 | K67: =IF(ISBLANK(K$4),0,IF(LEFT(K$4,1)="c",CallDelta($A67,K$5,OptionPage!$A$9,OptionPage!$A$6,OptionPage!$A$4,OptionPage!$A$7)*K$3,IF(LEFT(K$4)="p",(Putdelta($A67,K$5,OptionPage!$A$9,OptionPage!$A$6,OptionPage!$A$4,OptionPage!$A$7)*K$3),K$3))) -> 0 | L67: 0.8436708638
A68: =A69-$A$17 -> 24 | B68: =IF(ISBLANK(B$4),0,IF(LEFT(B$4,1)="c",CallDelta($A68,B$5,OptionPage!$A$9,OptionPage!$A$6,OptionPage!$A$4,OptionPage!$A$7)*B$3,IF(LEFT(B$4)="p",(Putdelta($A68,B$5,OptionPage!$A$9,OptionPage!$A$6,OptionPage!$A$4,OptionPage!$A$7)*B$3),B$3))) -> 1 | C68: =IF(ISBLANK(C$4),0,IF(LEFT(C$4,1)="c",CallDelta($A68,C$5,OptionPage!$A$9,OptionPage!$A$6,OptionPage!$A$4,OptionPage!$A$7)*C$3,IF(LEFT(C$4)="p",(Putdelta($A68,C$5,OptionPage!$A$9,OptionPage!$A$6,OptionPage!$A$4,OptionPage!$A$7)*C$3),C$3))) -> -0.3200378306 | D68: =IF(ISBLANK(D$4),0,IF(LEFT(D$4,1)="c",CallDelta($A68,D$5,OptionPage!$A$9,OptionPage!$A$6,OptionPage!$A$4,OptionPage!$A$7)*D$3,IF(LEFT(D$4)="p",(Putdelta($A68,D$5,OptionPage!$A$9,OptionPage!$A$6,OptionPage!$A$4,OptionPage!$A$7)*D$3),D$3))) -> 0 | E68: =IF(ISBLANK(E$4),0,IF(LEFT(E$4,1)="c",CallDelta($A68,E$5,OptionPage!$A$9,OptionPage!$A$6,OptionPage!$A$4,OptionPage!$A$7)*E$3,IF(LEFT(E$4)="p",(Putdelta($A68,E$5,OptionPage!$A$9,OptionPage!$A$6,OptionPage!$A$4,OptionPage!$A$7)*E$3),E$3))) -> 0 | F68: =IF(ISBLANK(F$4),0,IF(LEFT(F$4,1)="c",CallDelta($A68,F$5,OptionPage!$A$9,OptionPage!$A$6,OptionPage!$A$4,OptionPage!$A$7)*F$3,IF(LEFT(F$4)="p",(Putdelta($A68,F$5,OptionPage!$A$9,OptionPage!$A$6,OptionPage!$A$4,OptionPage!$A$7)*F$3),F$3))) -> 0 | G68: =IF(ISBLANK(G$4),0,IF(LEFT(G$4,1)="c",CallDelta($A68,G$5,OptionPage!$A$9,OptionPage!$A$6,OptionPage!$A$4,OptionPage!$A$7)*G$3,IF(LEFT(G$4)="p",(Putdelta($A68,G$5,OptionPage!$A$9,OptionPage!$A$6,OptionPage!$A$4,OptionPage!$A$7)*G$3),G$3))) -> 0 | H68: =IF(ISBLANK(H$4),0,IF(LEFT(H$4,1)="c",CallDelta($A68,H$5,OptionPage!$A$9,OptionPage!$A$6,OptionPage!$A$4,OptionPage!$A$7)*H$3,IF(LEFT(H$4)="p",(Putdelta($A68,H$5,OptionPage!$A$9,OptionPage!$A$6,OptionPage!$A$4,OptionPage!$A$7)*H$3),H$3))) -> 0 | I68: =IF(ISBLANK(I$4),0,IF(LEFT(I$4,1)="c",CallDelta($A68,I$5,OptionPage!$A$9,OptionPage!$A$6,OptionPage!$A$4,OptionPage!$A$7)*I$3,IF(LEFT(I$4)="p",(Putdelta($A68,I$5,OptionPage!$A$9,OptionPage!$A$6,OptionPage!$A$4,OptionPage!$A$7)*I$3),I$3))) -> 0 | J68: =IF(ISBLANK(J$4),0,IF(LEFT(J$4,1)="c",CallDelta($A68,J$5,OptionPage!$A$9,OptionPage!$A$6,OptionPage!$A$4,OptionPage!$A$7)*J$3,IF(LEFT(J$4)="p",(Putdelta($A68,J$5,OptionPage!$A$9,OptionPage!$A$6,OptionPage!$A$4,OptionPage!$A$7)*J$3),J$3))) -> 0 | K68: =IF(ISBLANK(K$4),0,IF(LEFT(K$4,1)="c",CallDelta($A68,K$5,OptionPage!$A$9,OptionPage!$A$6,OptionPage!$A$4,OptionPage!$A$7)*K$3,IF(LEFT(K$4)="p",(Putdelta($A68,K$5,OptionPage!$A$9,OptionPage!$A$6,OptionPage!$A$4,OptionPage!$A$7)*K$3),K$3))) -> 0 | L68: 0.6799621694
A69: =OptionPage!$A$2 -> 25 | B69: =IF(ISBLANK(B$4),0,IF(LEFT(B$4,1)="c",CallDelta($A69,B$5,OptionPage!$A$9,OptionPage!$A$6,OptionPage!$A$4,OptionPage!$A$7)*B$3,IF(LEFT(B$4)="p",(Putdelta($A69,B$5,OptionPage!$A$9,OptionPage!$A$6,OptionPage!$A$4,OptionPage!$A$7)*B$3),B$3))) -> 1 | C69: =IF(ISBLANK(C$4),0,IF(LEFT(C$4,1)="c",CallDelta($A69,C$5,OptionPage!$A$9,OptionPage!$A$6,OptionPage!$A$4,OptionPage!$A$7)*C$3,IF(LEFT(C$4)="p",(Putdelta($A69,C$5,OptionPage!$A$9,OptionPage!$A$6,OptionPage!$A$4,OptionPage!$A$7)*C$3),C$3))) -> -0.5208720623 | D69: =IF(ISBLANK(D$4),0,IF(LEFT(D$4,1)="c",CallDelta($A69,D$5,OptionPage!$A$9,OptionPage!$A$6,OptionPage!$A$4,OptionPage!$A$7)*D$3,IF(LEFT(D$4)="p",(Putdelta($A69,D$5,OptionPage!$A$9,OptionPage!$A$6,OptionPage!$A$4,OptionPage!$A$7)*D$3),D$3))) -> 0 | E69: =IF(ISBLANK(E$4),0,IF(LEFT(E$4,1)="c",CallDelta($A69,E$5,OptionPage!$A$9,OptionPage!$A$6,OptionPage!$A$4,OptionPage!$A$7)*E$3,IF(LEFT(E$4)="p",(Putdelta($A69,E$5,OptionPage!$A$9,OptionPage!$A$6,OptionPage!$A$4,OptionPage!$A$7)*E$3),E$3))) -> 0 | F69: =IF(ISBLANK(F$4),0,IF(LEFT(F$4,1)="c",CallDelta($A69,F$5,OptionPage!$A$9,OptionPage!$A$6,OptionPage!$A$4,OptionPage!$A$7)*F$3,IF(LEFT(F$4)="p",(Putdelta($A69,F$5,OptionPage!$A$9,OptionPage!$A$6,OptionPage!$A$4,OptionPage!$A$7)*F$3),F$3))) -> 0 | G69: =IF(ISBLANK(G$4),0,IF(LEFT(G$4,1)="c",CallDelta($A69,G$5,OptionPage!$A$9,OptionPage!$A$6,OptionPage!$A$4,OptionPage!$A$7)*G$3,IF(LEFT(G$4)="p",(Putdelta($A69,G$5,OptionPage!$A$9,OptionPage!$A$6,OptionPage!$A$4,OptionPage!$A$7)*G$3),G$3))) -> 0 | H69: =IF(ISBLANK(H$4),0,IF(LEFT(H$4,1)="c",CallDelta($A69,H$5,OptionPage!$A$9,OptionPage!$A$6,OptionPage!$A$4,OptionPage!$A$7)*H$3,IF(LEFT(H$4)="p",(Putdelta($A69,H$5,OptionPage!$A$9,OptionPage!$A$6,OptionPage!$A$4,OptionPage!$A$7)*H$3),H$3))) -> 0 | I69: =IF(ISBLANK(I$4),0,IF(LEFT(I$4,1)="c",CallDelta($A69,I$5,OptionPage!$A$9,OptionPage!$A$6,OptionPage!$A$4,OptionPage!$A$7)*I$3,IF(LEFT(I$4)="p",(Putdelta($A69,I$5,OptionPage!$A$9,OptionPage!$A$6,OptionPage!$A$4,OptionPage!$A$7)*I$3),I$3))) -> 0 | J69: =IF(ISBLANK(J$4),0,IF(LEFT(J$4,1)="c",CallDelta($A69,J$5,OptionPage!$A$9,OptionPage!$A$6,OptionPage!$A$4,OptionPage!$A$7)*J$3,IF(LEFT(J$4)="p",(Putdelta($A69,J$5,OptionPage!$A$9,OptionPage!$A$6,OptionPage!$A$4,OptionPage!$A$7)*J$3),J$3))) -> 0 | K69: =IF(ISBLANK(K$4),0,IF(LEFT(K$4,1)="c",CallDelta($A69,K$5,OptionPage!$A$9,OptionPage!$A$6,OptionPage!$A$4,OptionPage!$A$7)*K$3,IF(LEFT(K$4)="p",(Putdelta($A69,K$5,OptionPage!$A$9,OptionPage!$A$6,OptionPage!$A$4,OptionPage!$A$7)*K$3),K$3))) -> 0 | L69: 0.4791279377
A70: =A69+$A$17 -> 26 | B70: =IF(ISBLANK(B$4),0,IF(LEFT(B$4,1)="c",CallDelta($A70,B$5,OptionPage!$A$9,OptionPage!$A$6,OptionPage!$A$4,OptionPage!$A$7)*B$3,IF(LEFT(B$4)="p",(Putdelta($A70,B$5,OptionPage!$A$9,OptionPage!$A$6,OptionPage!$A$4,OptionPage!$A$7)*B$3),B$3))) -> 1 | C70: =IF(ISBLANK(C$4),0,IF(LEFT(C$4,1)="c",CallDelta($A70,C$5,OptionPage!$A$9,OptionPage!$A$6,OptionPage!$A$4,OptionPage!$A$7)*C$3,IF(LEFT(C$4)="p",(Putdelta($A70,C$5,OptionPage!$A$9,OptionPage!$A$6,OptionPage!$A$4,OptionPage!$A$7)*C$3),C$3))) -> -0.7094856873 | D70: =IF(ISBLANK(D$4),0,IF(LEFT(D$4,1)="c",CallDelta($A70,D$5,OptionPage!$A$9,OptionPage!$A$6,OptionPage!$A$4,OptionPage!$A$7)*D$3,IF(LEFT(D$4)="p",(Putdelta($A70,D$5,OptionPage!$A$9,OptionPage!$A$6,OptionPage!$A$4,OptionPage!$A$7)*D$3),D$3))) -> 0 | E70: =IF(ISBLANK(E$4),0,IF(LEFT(E$4,1)="c",CallDelta($A70,E$5,OptionPage!$A$9,OptionPage!$A$6,OptionPage!$A$4,OptionPage!$A$7)*E$3,IF(LEFT(E$4)="p",(Putdelta($A70,E$5,OptionPage!$A$9,OptionPage!$A$6,OptionPage!$A$4,OptionPage!$A$7)*E$3),E$3))) -> 0 | F70: =IF(ISBLANK(F$4),0,IF(LEFT(F$4,1)="c",CallDelta($A70,F$5,OptionPage!$A$9,OptionPage!$A$6,OptionPage!$A$4,OptionPage!$A$7)*F$3,IF(LEFT(F$4)="p",(Putdelta($A70,F$5,OptionPage!$A$9,OptionPage!$A$6,OptionPage!$A$4,OptionPage!$A$7)*F$3),F$3))) -> 0 | G70: =IF(ISBLANK(G$4),0,IF(LEFT(G$4,1)="c",CallDelta($A70,G$5,OptionPage!$A$9,OptionPage!$A$6,OptionPage!$A$4,OptionPage!$A$7)*G$3,IF(LEFT(G$4)="p",(Putdelta($A70,G$5,OptionPage!$A$9,OptionPage!$A$6,OptionPage!$A$4,OptionPage!$A$7)*G$3),G$3))) -> 0 | H70: =IF(ISBLANK(H$4),0,IF(LEFT(H$4,1)="c",CallDelta($A70,H$5,OptionPage!$A$9,OptionPage!$A$6,OptionPage!$A$4,OptionPage!$A$7)*H$3,IF(LEFT(H$4)="p",(Putdelta($A70,H$5,OptionPage!$A$9,OptionPage!$A$6,OptionPage!$A$4,OptionPage!$A$7)*H$3),H$3))) -> 0 | I70: =IF(ISBLANK(I$4),0,IF(LEFT(I$4,1)="c",CallDelta($A70,I$5,OptionPage!$A$9,OptionPage!$A$6,OptionPage!$A$4,OptionPage!$A$7)*I$3,IF(LEFT(I$4)="p",(Putdelta($A70,I$5,OptionPage!$A$9,OptionPage!$A$6,OptionPage!$A$4,OptionPage!$A$7)*I$3),I$3))) -> 0 | J70: =IF(ISBLANK(J$4),0,IF(LEFT(J$4,1)="c",CallDelta($A70,J$5,OptionPage!$A$9,OptionPage!$A$6,OptionPage!$A$4,OptionPage!$A$7)*J$3,IF(LEFT(J$4)="p",(Putdelta($A70,J$5,OptionPage!$A$9,OptionPage!$A$6,OptionPage!$A$4,OptionPage!$A$7)*J$3),J$3))) -> 0 | K70: =IF(ISBLANK(K$4),0,IF(LEFT(K$4,1)="c",CallDelta($A70,K$5,OptionPage!$A$9,OptionPage!$A$6,OptionPage!$A$4,OptionPage!$A$7)*K$3,IF(LEFT(K$4)="p",(Putdelta($A70,K$5,OptionPage!$A$9,OptionPage!$A$6,OptionPage!$A$4,OptionPage!$A$7)*K$3),K$3))) -> 0 | L70: 0.2905143127
A71: =A70+$A$17 -> 27 | B71: =IF(ISBLANK(B$4),0,IF(LEFT(B$4,1)="c",CallDelta($A71,B$5,OptionPage!$A$9,OptionPage!$A$6,OptionPage!$A$4,OptionPage!$A$7)*B$3,IF(LEFT(B$4)="p",(Putdelta($A71,B$5,OptionPage!$A$9,OptionPage!$A$6,OptionPage!$A$4,OptionPage!$A$7)*B$3),B$3))) -> 1 | C71: =IF(ISBLANK(C$4),0,IF(LEFT(C$4,1)="c",CallDelta($A71,C$5,OptionPage!$A$9,OptionPage!$A$6,OptionPage!$A$4,OptionPage!$A$7)*C$3,IF(LEFT(C$4)="p",(Putdelta($A71,C$5,OptionPage!$A$9,OptionPage!$A$6,OptionPage!$A$4,OptionPage!$A$7)*C$3),C$3))) -> -0.8490969786 | D71: =IF(ISBLANK(D$4),0,IF(LEFT(D$4,1)="c",CallDelta($A71,D$5,OptionPage!$A$9,OptionPage!$A$6,OptionPage!$A$4,OptionPage!$A$7)*D$3,IF(LEFT(D$4)="p",(Putdelta($A71,D$5,OptionPage!$A$9,OptionPage!$A$6,OptionPage!$A$4,OptionPage!$A$7)*D$3),D$3))) -> 0 | E71: =IF(ISBLANK(E$4),0,IF(LEFT(E$4,1)="c",CallDelta($A71,E$5,OptionPage!$A$9,OptionPage!$A$6,OptionPage!$A$4,OptionPage!$A$7)*E$3,IF(LEFT(E$4)="p",(Putdelta($A71,E$5,OptionPage!$A$9,OptionPage!$A$6,OptionPage!$A$4,OptionPage!$A$7)*E$3),E$3))) -> 0 | F71: =IF(ISBLANK(F$4),0,IF(LEFT(F$4,1)="c",CallDelta($A71,F$5,OptionPage!$A$9,OptionPage!$A$6,OptionPage!$A$4,OptionPage!$A$7)*F$3,IF(LEFT(F$4)="p",(Putdelta($A71,F$5,OptionPage!$A$9,OptionPage!$A$6,OptionPage!$A$4,OptionPage!$A$7)*F$3),F$3))) -> 0 | G71: =IF(ISBLANK(G$4),0,IF(LEFT(G$4,1)="c",CallDelta($A71,G$5,OptionPage!$A$9,OptionPage!$A$6,OptionPage!$A$4,OptionPage!$A$7)*G$3,IF(LEFT(G$4)="p",(Putdelta($A71,G$5,OptionPage!$A$9,OptionPage!$A$6,OptionPage!$A$4,OptionPage!$A$7)*G$3),G$3))) -> 0 | H71: =IF(ISBLANK(H$4),0,IF(LEFT(H$4,1)="c",CallDelta($A71,H$5,OptionPage!$A$9,OptionPage!$A$6,OptionPage!$A$4,OptionPage!$A$7)*H$3,IF(LEFT(H$4)="p",(Putdelta($A71,H$5,OptionPage!$A$9,OptionPage!$A$6,OptionPage!$A$4,OptionPage!$A$7)*H$3),H$3))) -> 0 | I71: =IF(ISBLANK(I$4),0,IF(LEFT(I$4,1)="c",CallDelta($A71,I$5,OptionPage!$A$9,OptionPage!$A$6,OptionPage!$A$4,OptionPage!$A$7)*I$3,IF(LEFT(I$4)="p",(Putdelta($A71,I$5,OptionPage!$A$9,OptionPage!$A$6,OptionPage!$A$4,OptionPage!$A$7)*I$3),I$3))) -> 0 | J71: =IF(ISBLANK(J$4),0,IF(LEFT(J$4,1)="c",CallDelta($A71,J$5,OptionPage!$A$9,OptionPage!$A$6,OptionPage!$A$4,OptionPage!$A$7)*J$3,IF(LEFT(J$4)="p",(Putdelta($A71,J$5,OptionPage!$A$9,OptionPage!$A$6,OptionPage!$A$4,OptionPage!$A$7)*J$3),J$3))) -> 0 | K71: =IF(ISBLANK(K$4),0,IF(LEFT(K$4,1)="c",CallDelta($A71,K$5,OptionPage!$A$9,OptionPage!$A$6,OptionPage!$A$4,OptionPage!$A$7)*K$3,IF(LEFT(K$4)="p",(Putdelta($A71,K$5,OptionPage!$A$9,OptionPage!$A$6,OptionPage!$A$4,OptionPage!$A$7)*K$3),K$3))) -> 0 | L71: 0.1509030214
A72: =A71+$A$17 -> 28 | B72: =IF(ISBLANK(B$4),0,IF(LEFT(B$4,1)="c",CallDelta($A72,B$5,OptionPage!$A$9,OptionPage!$A$6,OptionPage!$A$4,OptionPage!$A$7)*B$3,IF(LEFT(B$4)="p",(Putdelta($A72,B$5,OptionPage!$A$9,OptionPage!$A$6,OptionPage!$A$4,OptionPage!$A$7)*B$3),B$3))) -> 1 | C72: =IF(ISBLANK(C$4),0,IF(LEFT(C$4,1)="c",CallDelta($A72,C$5,OptionPage!$A$9,OptionPage!$A$6,OptionPage!$A$4,OptionPage!$A$7)*C$3,IF(LEFT(C$4)="p",(Putdelta($A72,C$5,OptionPage!$A$9,OptionPage!$A$6,OptionPage!$A$4,OptionPage!$A$7)*C$3),C$3))) -> -0.9326432062 | D72: =IF(ISBLANK(D$4),0,IF(LEFT(D$4,1)="c",CallDelta($A72,D$5,OptionPage!$A$9,OptionPage!$A$6,OptionPage!$A$4,OptionPage!$A$7)*D$3,IF(LEFT(D$4)="p",(Putdelta($A72,D$5,OptionPage!$A$9,OptionPage!$A$6,OptionPage!$A$4,OptionPage!$A$7)*D$3),D$3))) -> 0 | E72: =IF(ISBLANK(E$4),0,IF(LEFT(E$4,1)="c",CallDelta($A72,E$5,OptionPage!$A$9,OptionPage!$A$6,OptionPage!$A$4,OptionPage!$A$7)*E$3,IF(LEFT(E$4)="p",(Putdelta($A72,E$5,OptionPage!$A$9,OptionPage!$A$6,OptionPage!$A$4,OptionPage!$A$7)*E$3),E$3))) -> 0 | F72: =IF(ISBLANK(F$4),0,IF(LEFT(F$4,1)="c",CallDelta($A72,F$5,OptionPage!$A$9,OptionPage!$A$6,OptionPage!$A$4,OptionPage!$A$7)*F$3,IF(LEFT(F$4)="p",(Putdelta($A72,F$5,OptionPage!$A$9,OptionPage!$A$6,OptionPage!$A$4,OptionPage!$A$7)*F$3),F$3))) -> 0 | G72: =IF(ISBLANK(G$4),0,IF(LEFT(G$4,1)="c",CallDelta($A72,G$5,OptionPage!$A$9,OptionPage!$A$6,OptionPage!$A$4,OptionPage!$A$7)*G$3,IF(LEFT(G$4)="p",(Putdelta($A72,G$5,OptionPage!$A$9,OptionPage!$A$6,OptionPage!$A$4,OptionPage!$A$7)*G$3),G$3))) -> 0 | H72: =IF(ISBLANK(H$4),0,IF(LEFT(H$4,1)="c",CallDelta($A72,H$5,OptionPage!$A$9,OptionPage!$A$6,OptionPage!$A$4,OptionPage!$A$7)*H$3,IF(LEFT(H$4)="p",(Putdelta($A72,H$5,OptionPage!$A$9,OptionPage!$A$6,OptionPage!$A$4,OptionPage!$A$7)*H$3),H$3))) -> 0 | I72: =IF(ISBLANK(I$4),0,IF(LEFT(I$4,1)="c",CallDelta($A72,I$5,OptionPage!$A$9,OptionPage!$A$6,OptionPage!$A$4,OptionPage!$A$7)*I$3,IF(LEFT(I$4)="p",(Putdelta($A72,I$5,OptionPage!$A$9,OptionPage!$A$6,OptionPage!$A$4,OptionPage!$A$7)*I$3),I$3))) -> 0 | J72: =IF(ISBLANK(J$4),0,IF(LEFT(J$4,1)="c",CallDelta($A72,J$5,OptionPage!$A$9,OptionPage!$A$6,OptionPage!$A$4,OptionPage!$A$7)*J$3,IF(LEFT(J$4)="p",(Putdelta($A72,J$5,OptionPage!$A$9,OptionPage!$A$6,OptionPage!$A$4,OptionPage!$A$7)*J$3),J$3))) -> 0 | K72: =IF(ISBLANK(K$4),0,IF(LEFT(K$4,1)="c",CallDelta($A72,K$5,OptionPage!$A$9,OptionPage!$A$6,OptionPage!$A$4,OptionPage!$A$7)*K$3,IF(LEFT(K$4)="p",(Putdelta($A72,K$5,OptionPage!$A$9,OptionPage!$A$6,OptionPage!$A$4,OptionPage!$A$7)*K$3),K$3))) -> 0 | L72: 0.06735679378
A73: =A72+$A$17 -> 29 | B73: =IF(ISBLANK(B$4),0,IF(LEFT(B$4,1)="c",CallDelta($A73,B$5,OptionPage!$A$9,OptionPage!$A$6,OptionPage!$A$4,OptionPage!$A$7)*B$3,IF(LEFT(B$4)="p",(Putdelta($A73,B$5,OptionPage!$A$9,OptionPage!$A$6,OptionPage!$A$4,OptionPage!$A$7)*B$3),B$3))) -> 1 | C73: =IF(ISBLANK(C$4),0,IF(LEFT(C$4,1)="c",CallDelta($A73,C$5,OptionPage!$A$9,OptionPage!$A$6,OptionPage!$A$4,OptionPage!$A$7)*C$3,IF(LEFT(C$4)="p",(Putdelta($A73,C$5,OptionPage!$A$9,OptionPage!$A$6,OptionPage!$A$4,OptionPage!$A$7)*C$3),C$3))) -> -0.9739747512 | D73: =IF(ISBLANK(D$4),0,IF(LEFT(D$4,1)="c",CallDelta($A73,D$5,OptionPage!$A$9,OptionPage!$A$6,OptionPage!$A$4,OptionPage!$A$7)*D$3,IF(LEFT(D$4)="p",(Putdelta($A73,D$5,OptionPage!$A$9,OptionPage!$A$6,OptionPage!$A$4,OptionPage!$A$7)*D$3),D$3))) -> 0 | E73: =IF(ISBLANK(E$4),0,IF(LEFT(E$4,1)="c",CallDelta($A73,E$5,OptionPage!$A$9,OptionPage!$A$6,OptionPage!$A$4,OptionPage!$A$7)*E$3,IF(LEFT(E$4)="p",(Putdelta($A73,E$5,OptionPage!$A$9,OptionPage!$A$6,OptionPage!$A$4,OptionPage!$A$7)*E$3),E$3))) -> 0 | F73: =IF(ISBLANK(F$4),0,IF(LEFT(F$4,1)="c",CallDelta($A73,F$5,OptionPage!$A$9,OptionPage!$A$6,OptionPage!$A$4,OptionPage!$A$7)*F$3,IF(LEFT(F$4)="p",(Putdelta($A73,F$5,OptionPage!$A$9,OptionPage!$A$6,OptionPage!$A$4,OptionPage!$A$7)*F$3),F$3))) -> 0 | G73: =IF(ISBLANK(G$4),0,IF(LEFT(G$4,1)="c",CallDelta($A73,G$5,OptionPage!$A$9,OptionPage!$A$6,OptionPage!$A$4,OptionPage!$A$7)*G$3,IF(LEFT(G$4)="p",(Putdelta($A73,G$5,OptionPage!$A$9,OptionPage!$A$6,OptionPage!$A$4,OptionPage!$A$7)*G$3),G$3))) -> 0 | H73: =IF(ISBLANK(H$4),0,IF(LEFT(H$4,1)="c",CallDelta($A73,H$5,OptionPage!$A$9,OptionPage!$A$6,OptionPage!$A$4,OptionPage!$A$7)*H$3,IF(LEFT(H$4)="p",(Putdelta($A73,H$5,OptionPage!$A$9,OptionPage!$A$6,OptionPage!$A$4,OptionPage!$A$7)*H$3),H$3))) -> 0 | I73: =IF(ISBLANK(I$4),0,IF(LEFT(I$4,1)="c",CallDelta($A73,I$5,OptionPage!$A$9,OptionPage!$A$6,OptionPage!$A$4,OptionPage!$A$7)*I$3,IF(LEFT(I$4)="p",(Putdelta($A73,I$5,OptionPage!$A$9,OptionPage!$A$6,OptionPage!$A$4,OptionPage!$A$7)*I$3),I$3))) -> 0 | J73: =IF(ISBLANK(J$4),0,IF(LEFT(J$4,1)="c",CallDelta($A73,J$5,OptionPage!$A$9,OptionPage!$A$6,OptionPage!$A$4,OptionPage!$A$7)*J$3,IF(LEFT(J$4)="p",(Putdelta($A73,J$5,OptionPage!$A$9,OptionPage!$A$6,OptionPage!$A$4,OptionPage!$A$7)*J$3),J$3))) -> 0 | K73: =IF(ISBLANK(K$4),0,IF(LEFT(K$4,1)="c",CallDelta($A73,K$5,OptionPage!$A$9,OptionPage!$A$6,OptionPage!$A$4,OptionPage!$A$7)*K$3,IF(LEFT(K$4)="p",(Putdelta($A73,K$5,OptionPage!$A$9,OptionPage!$A$6,OptionPage!$A$4,OptionPage!$A$7)*K$3),K$3))) -> 0 | L73: 0.02602524885
A74: =A73+$A$17 -> 30 | B74: =IF(ISBLANK(B$4),0,IF(LEFT(B$4,1)="c",CallDelta($A74,B$5,OptionPage!$A$9,OptionPage!$A$6,OptionPage!$A$4,OptionPage!$A$7)*B$3,IF(LEFT(B$4)="p",(Putdelta($A74,B$5,OptionPage!$A$9,OptionPage!$A$6,OptionPage!$A$4,OptionPage!$A$7)*B$3),B$3))) -> 1 | C74: =IF(ISBLANK(C$4),0,IF(LEFT(C$4,1)="c",CallDelta($A74,C$5,OptionPage!$A$9,OptionPage!$A$6,OptionPage!$A$4,OptionPage!$A$7)*C$3,IF(LEFT(C$4)="p",(Putdelta($A74,C$5,OptionPage!$A$9,OptionPage!$A$6,OptionPage!$A$4,OptionPage!$A$7)*C$3),C$3))) -> -0.9912138229 | D74: =IF(ISBLANK(D$4),0,IF(LEFT(D$4,1)="c",CallDelta($A74,D$5,OptionPage!$A$9,OptionPage!$A$6,OptionPage!$A$4,OptionPage!$A$7)*D$3,IF(LEFT(D$4)="p",(Putdelta($A74,D$5,OptionPage!$A$9,OptionPage!$A$6,OptionPage!$A$4,OptionPage!$A$7)*D$3),D$3))) -> 0 | E74: =IF(ISBLANK(E$4),0,IF(LEFT(E$4,1)="c",CallDelta($A74,E$5,OptionPage!$A$9,OptionPage!$A$6,OptionPage!$A$4,OptionPage!$A$7)*E$3,IF(LEFT(E$4)="p",(Putdelta($A74,E$5,OptionPage!$A$9,OptionPage!$A$6,OptionPage!$A$4,OptionPage!$A$7)*E$3),E$3))) -> 0 | F74: =IF(ISBLANK(F$4),0,IF(LEFT(F$4,1)="c",CallDelta($A74,F$5,OptionPage!$A$9,OptionPage!$A$6,OptionPage!$A$4,OptionPage!$A$7)*F$3,IF(LEFT(F$4)="p",(Putdelta($A74,F$5,OptionPage!$A$9,OptionPage!$A$6,OptionPage!$A$4,OptionPage!$A$7)*F$3),F$3))) -> 0 | G74: =IF(ISBLANK(G$4),0,IF(LEFT(G$4,1)="c",CallDelta($A74,G$5,OptionPage!$A$9,OptionPage!$A$6,OptionPage!$A$4,OptionPage!$A$7)*G$3,IF(LEFT(G$4)="p",(Putdelta($A74,G$5,OptionPage!$A$9,OptionPage!$A$6,OptionPage!$A$4,OptionPage!$A$7)*G$3),G$3))) -> 0 | H74: =IF(ISBLANK(H$4),0,IF(LEFT(H$4,1)="c",CallDelta($A74,H$5,OptionPage!$A$9,OptionPage!$A$6,OptionPage!$A$4,OptionPage!$A$7)*H$3,IF(LEFT(H$4)="p",(Putdelta($A74,H$5,OptionPage!$A$9,OptionPage!$A$6,OptionPage!$A$4,OptionPage!$A$7)*H$3),H$3))) -> 0 | I74: =IF(ISBLANK(I$4),0,IF(LEFT(I$4,1)="c",CallDelta($A74,I$5,OptionPage!$A$9,OptionPage!$A$6,OptionPage!$A$4,OptionPage!$A$7)*I$3,IF(LEFT(I$4)="p",(Putdelta($A74,I$5,OptionPage!$A$9,OptionPage!$A$6,OptionPage!$A$4,OptionPage!$A$7)*I$3),I$3))) -> 0 | J74: =IF(ISBLANK(J$4),0,IF(LEFT(J$4,1)="c",CallDelta($A74,J$5,OptionPage!$A$9,OptionPage!$A$6,OptionPage!$A$4,OptionPage!$A$7)*J$3,IF(LEFT(J$4)="p",(Putdelta($A74,J$5,OptionPage!$A$9,OptionPage!$A$6,OptionPage!$A$4,OptionPage!$A$7)*J$3),J$3))) -> 0 | K74: =IF(ISBLANK(K$4),0,IF(LEFT(K$4,1)="c",CallDelta($A74,K$5,OptionPage!$A$9,OptionPage!$A$6,OptionPage!$A$4,OptionPage!$A$7)*K$3,IF(LEFT(K$4)="p",(Putdelta($A74,K$5,OptionPage!$A$9,OptionPage!$A$6,OptionPage!$A$4,OptionPage!$A$7)*K$3),K$3))) -> 0 | L74: 0.00878617707
B76: Current Position Gamma Relative to Underlying Price Changes
A77: Underlying Price | B77: Strat1 | C77: Strat2 | D77: Strat3 | E77: Strat4 | F77: Strat5 | G77: Strat6 | H77: Strat7 | I77: Strat8 | J77: Strat9 | K77: Strat10 | L77: Total
A78: =A79-$A$17 -> 20 | B78: =IF(OR(ISBLANK(B$4),LEFT(B$4,1)="s"),0,Gamma($A78,B$5,OptionPage!$A$9,OptionPage!$A$6,OptionPage!$A$4,OptionPage!$A$7)*B$3) -> 0 | C78: =IF(OR(ISBLANK(C$4),LEFT(C$4,1)="s"),0,Gamma($A78,C$5,OptionPage!$A$9,OptionPage!$A$6,OptionPage!$A$4,OptionPage!$A$7)*C$3) -> -0.005187186142 | D78: =IF(OR(ISBLANK(D$4),LEFT(D$4,1)="s"),0,Gamma($A78,D$5,OptionPage!$A$9,OptionPage!$A$6,OptionPage!$A$4,OptionPage!$A$7)*D$3) -> 0 | E78: =IF(OR(ISBLANK(E$4),LEFT(E$4,1)="s"),0,Gamma($A78,E$5,OptionPage!$A$9,OptionPage!$A$6,OptionPage!$A$4,OptionPage!$A$7)*E$3) -> 0 | F78: =IF(OR(ISBLANK(F$4),LEFT(F$4,1)="s"),0,Gamma($A78,F$5,OptionPage!$A$9,OptionPage!$A$6,OptionPage!$A$4,OptionPage!$A$7)*F$3) -> 0 | G78: =IF(OR(ISBLANK(G$4),LEFT(G$4,1)="s"),0,Gamma($A78,G$5,OptionPage!$A$9,OptionPage!$A$6,OptionPage!$A$4,OptionPage!$A$7)*G$3) -> 0 | H78: =IF(OR(ISBLANK(H$4),LEFT(H$4,1)="s"),0,Gamma($A78,H$5,OptionPage!$A$9,OptionPage!$A$6,OptionPage!$A$4,OptionPage!$A$7)*H$3) -> 0 | I78: =IF(OR(ISBLANK(I$4),LEFT(I$4,1)="s"),0,Gamma($A78,I$5,OptionPage!$A$9,OptionPage!$A$6,OptionPage!$A$4,OptionPage!$A$7)*I$3) -> 0 | J78: =IF(OR(ISBLANK(J$4),LEFT(J$4,1)="s"),0,Gamma($A78,J$5,OptionPage!$A$9,OptionPage!$A$6,OptionPage!$A$4,OptionPage!$A$7)*J$3) -> 0 | K78: =IF(OR(ISBLANK(K$4),LEFT(K$4,1)="s"),0,Gamma($A78,K$5,OptionPage!$A$9,OptionPage!$A$6,OptionPage!$A$4,OptionPage!$A$7)*K$3) -> 0 | L78: =SUM(B78:K78) -> -0.005187186142
A79: =A80-$A$17 -> 21 | B79: =IF(OR(ISBLANK(B$4),LEFT(B$4,1)="s"),0,Gamma($A79,B$5,OptionPage!$A$9,OptionPage!$A$6,OptionPage!$A$4,OptionPage!$A$7)*B$3) -> 0 | C79: =IF(OR(ISBLANK(C$4),LEFT(C$4,1)="s"),0,Gamma($A79,C$5,OptionPage!$A$9,OptionPage!$A$6,OptionPage!$A$4,OptionPage!$A$7)*C$3) -> -0.0230562881 | D79: =IF(OR(ISBLANK(D$4),LEFT(D$4,1)="s"),0,Gamma($A79,D$5,OptionPage!$A$9,OptionPage!$A$6,OptionPage!$A$4,OptionPage!$A$7)*D$3) -> 0 | E79: =IF(OR(ISBLANK(E$4),LEFT(E$4,1)="s"),0,Gamma($A79,E$5,OptionPage!$A$9,OptionPage!$A$6,OptionPage!$A$4,OptionPage!$A$7)*E$3) -> 0 | F79: =IF(OR(ISBLANK(F$4),LEFT(F$4,1)="s"),0,Gamma($A79,F$5,OptionPage!$A$9,OptionPage!$A$6,OptionPage!$A$4,OptionPage!$A$7)*F$3) -> 0 | G79: =IF(OR(ISBLANK(G$4),LEFT(G$4,1)="s"),0,Gamma($A79,G$5,OptionPage!$A$9,OptionPage!$A$6,OptionPage!$A$4,OptionPage!$A$7)*G$3) -> 0 | H79: =IF(OR(ISBLANK(H$4),LEFT(H$4,1)="s"),0,Gamma($A79,H$5,OptionPage!$A$9,OptionPage!$A$6,OptionPage!$A$4,OptionPage!$A$7)*H$3) -> 0 | I79: =IF(OR(ISBLANK(I$4),LEFT(I$4,1)="s"),0,Gamma($A79,I$5,OptionPage!$A$9,OptionPage!$A$6,OptionPage!$A$4,OptionPage!$A$7)*I$3) -> 0 | J79: =IF(OR(ISBLANK(J$4),LEFT(J$4,1)="s"),0,Gamma($A79,J$5,OptionPage!$A$9,OptionPage!$A$6,OptionPage!$A$4,OptionPage!$A$7)*J$3) -> 0 | K79: =IF(OR(ISBLANK(K$4),LEFT(K$4,1)="s"),0,Gamma($A79,K$5,OptionPage!$A$9,OptionPage!$A$6,OptionPage!$A$4,OptionPage!$A$7)*K$3) -> 0 | L79: =SUM(B79:K79) -> -0.0230562881
A80: =A81-$A$17 -> 22 | B80: =IF(OR(ISBLANK(B$4),LEFT(B$4,1)="s"),0,Gamma($A80,B$5,OptionPage!$A$9,OptionPage!$A$6,OptionPage!$A$4,OptionPage!$A$7)*B$3) -> 0 | C80: =IF(OR(ISBLANK(C$4),LEFT(C$4,1)="s"),0,Gamma($A80,C$5,OptionPage!$A$9,OptionPage!$A$6,OptionPage!$A$4,OptionPage!$A$7)*C$3) -> -0.06672925732 | D80: =IF(OR(ISBLANK(D$4),LEFT(D$4,1)="s"),0,Gamma($A80,D$5,OptionPage!$A$9,OptionPage!$A$6,OptionPage!$A$4,OptionPage!$A$7)*D$3) -> 0 | E80: =IF(OR(ISBLANK(E$4),LEFT(E$4,1)="s"),0,Gamma($A80,E$5,OptionPage!$A$9,OptionPage!$A$6,OptionPage!$A$4,OptionPage!$A$7)*E$3) -> 0 | F80: =IF(OR(ISBLANK(F$4),LEFT(F$4,1)="s"),0,Gamma($A80,F$5,OptionPage!$A$9,OptionPage!$A$6,OptionPage!$A$4,OptionPage!$A$7)*F$3) -> 0 | G80: =IF(OR(ISBLANK(G$4),LEFT(G$4,1)="s"),0,Gamma($A80,G$5,OptionPage!$A$9,OptionPage!$A$6,OptionPage!$A$4,OptionPage!$A$7)*G$3) -> 0 | H80: =IF(OR(ISBLANK(H$4),LEFT(H$4,1)="s"),0,Gamma($A80,H$5,OptionPage!$A$9,OptionPage!$A$6,OptionPage!$A$4,OptionPage!$A$7)*H$3) -> 0 | I80: =IF(OR(ISBLANK(I$4),LEFT(I$4,1)="s"),0,Gamma($A80,I$5,OptionPage!$A$9,OptionPage!$A$6,OptionPage!$A$4,OptionPage!$A$7)*I$3) -> 0 | J80: =IF(OR(ISBLANK(J$4),LEFT(J$4,1)="s"),0,Gamma($A80,J$5,OptionPage!$A$9,OptionPage!$A$6,OptionPage!$A$4,OptionPage!$A$7)*J$3) -> 0 | K80: =IF(OR(ISBLANK(K$4),LEFT(K$4,1)="s"),0,Gamma($A80,K$5,OptionPage!$A$9,OptionPage!$A$6,OptionPage!$A$4,OptionPage!$A$7)*K$3) -> 0 | L80: -0.06672925732
A81: =A82-$A$17 -> 23 | B81: =IF(OR(ISBLANK(B$4),LEFT(B$4,1)="s"),0,Gamma($A81,B$5,OptionPage!$A$9,OptionPage!$A$6,OptionPage!$A$4,OptionPage!$A$7)*B$3) -> 0 | C81: =IF(OR(ISBLANK(C$4),LEFT(C$4,1)="s"),0,Gamma($A81,C$5,OptionPage!$A$9,OptionPage!$A$6,OptionPage!$A$4,OptionPage!$A$7)*C$3) -> -0.1327011445 | D81: =IF(OR(ISBLANK(D$4),LEFT(D$4,1)="s"),0,Gamma($A81,D$5,OptionPage!$A$9,OptionPage!$A$6,OptionPage!$A$4,OptionPage!$A$7)*D$3) -> 0 | E81: =IF(OR(ISBLANK(E$4),LEFT(E$4,1)="s"),0,Gamma($A81,E$5,OptionPage!$A$9,OptionPage!$A$6,OptionPage!$A$4,OptionPage!$A$7)*E$3) -> 0 | F81: =IF(OR(ISBLANK(F$4),LEFT(F$4,1)="s"),0,Gamma($A81,F$5,OptionPage!$A$9,OptionPage!$A$6,OptionPage!$A$4,OptionPage!$A$7)*F$3) -> 0 | G81: =IF(OR(ISBLANK(G$4),LEFT(G$4,1)="s"),0,Gamma($A81,G$5,OptionPage!$A$9,OptionPage!$A$6,OptionPage!$A$4,OptionPage!$A$7)*G$3) -> 0 | H81: =IF(OR(ISBLANK(H$4),LEFT(H$4,1)="s"),0,Gamma($A81,H$5,OptionPage!$A$9,OptionPage!$A$6,OptionPage!$A$4,OptionPage!$A$7)*H$3) -> 0 | I81: =IF(OR(ISBLANK(I$4),LEFT(I$4,1)="s"),0,Gamma($A81,I$5,OptionPage!$A$9,OptionPage!$A$6,OptionPage!$A$4,OptionPage!$A$7)*I$3) -> 0 | J81: =IF(OR(ISBLANK(J$4),LEFT(J$4,1)="s"),0,Gamma($A81,J$5,OptionPage!$A$9,OptionPage!$A$6,OptionPage!$A$4,OptionPage!$A$7)*J$3) -> 0 | K81: =IF(OR(ISBLANK(K$4),LEFT(K$4,1)="s"),0,Gamma($A81,K$5,OptionPage!$A$9,OptionPage!$A$6,OptionPage!$A$4,OptionPage!$A$7)*K$3) -> 0 | L81: -0.1327011445
A82: =A83-$A$17 -> 24 | B82: =IF(OR(ISBLANK(B$4),LEFT(B$4,1)="s"),0,Gamma($A82,B$5,OptionPage!$A$9,OptionPage!$A$6,OptionPage!$A$4,OptionPage!$A$7)*B$3) -> 0 | C82: =IF(OR(ISBLANK(C$4),LEFT(C$4,1)="s"),0,Gamma($A82,C$5,OptionPage!$A$9,OptionPage!$A$6,OptionPage!$A$4,OptionPage!$A$7)*C$3) -> -0.1897912664 | D82: =IF(OR(ISBLANK(D$4),LEFT(D$4,1)="s"),0,Gamma($A82,D$5,OptionPage!$A$9,OptionPage!$A$6,OptionPage!$A$4,OptionPage!$A$7)*D$3) -> 0 | E82: =IF(OR(ISBLANK(E$4),LEFT(E$4,1)="s"),0,Gamma($A82,E$5,OptionPage!$A$9,OptionPage!$A$6,OptionPage!$A$4,OptionPage!$A$7)*E$3) -> 0 | F82: =IF(OR(ISBLANK(F$4),LEFT(F$4,1)="s"),0,Gamma($A82,F$5,OptionPage!$A$9,OptionPage!$A$6,OptionPage!$A$4,OptionPage!$A$7)*F$3) -> 0 | G82: =IF(OR(ISBLANK(G$4),LEFT(G$4,1)="s"),0,Gamma($A82,G$5,OptionPage!$A$9,OptionPage!$A$6,OptionPage!$A$4,OptionPage!$A$7)*G$3) -> 0 | H82: =IF(OR(ISBLANK(H$4),LEFT(H$4,1)="s"),0,Gamma($A82,H$5,OptionPage!$A$9,OptionPage!$A$6,OptionPage!$A$4,OptionPage!$A$7)*H$3) -> 0 | I82: =IF(OR(ISBLANK(I$4),LEFT(I$4,1)="s"),0,Gamma($A82,I$5,OptionPage!$A$9,OptionPage!$A$6,OptionPage!$A$4,OptionPage!$A$7)*I$3) -> 0 | J82: =IF(OR(ISBLANK(J$4),LEFT(J$4,1)="s"),0,Gamma($A82,J$5,OptionPage!$A$9,OptionPage!$A$6,OptionPage!$A$4,OptionPage!$A$7)*J$3) -> 0 | K82: =IF(OR(ISBLANK(K$4),LEFT(K$4,1)="s"),0,Gamma($A82,K$5,OptionPage!$A$9,OptionPage!$A$6,OptionPage!$A$4,OptionPage!$A$7)*K$3) -> 0 | L82: -0.1897912664
A83: =OptionPage!$A$2 -> 25 | B83: =IF(OR(ISBLANK(B$4),LEFT(B$4,1)="s"),0,Gamma($A83,B$5,OptionPage!$A$9,OptionPage!$A$6,OptionPage!$A$4,OptionPage!$A$7)*B$3) -> 0 | C83: =IF(OR(ISBLANK(C$4),LEFT(C$4,1)="s"),0,Gamma($A83,C$5,OptionPage!$A$9,OptionPage!$A$6,OptionPage!$A$4,OptionPage!$A$7)*C$3) -> -0.2029692778 | D83: =IF(OR(ISBLANK(D$4),LEFT(D$4,1)="s"),0,Gamma($A83,D$5,OptionPage!$A$9,OptionPage!$A$6,OptionPage!$A$4,OptionPage!$A$7)*D$3) -> 0 | E83: =IF(OR(ISBLANK(E$4),LEFT(E$4,1)="s"),0,Gamma($A83,E$5,OptionPage!$A$9,OptionPage!$A$6,OptionPage!$A$4,OptionPage!$A$7)*E$3) -> 0 | F83: =IF(OR(ISBLANK(F$4),LEFT(F$4,1)="s"),0,Gamma($A83,F$5,OptionPage!$A$9,OptionPage!$A$6,OptionPage!$A$4,OptionPage!$A$7)*F$3) -> 0 | G83: =IF(OR(ISBLANK(G$4),LEFT(G$4,1)="s"),0,Gamma($A83,G$5,OptionPage!$A$9,OptionPage!$A$6,OptionPage!$A$4,OptionPage!$A$7)*G$3) -> 0 | H83: =IF(OR(ISBLANK(H$4),LEFT(H$4,1)="s"),0,Gamma($A83,H$5,OptionPage!$A$9,OptionPage!$A$6,OptionPage!$A$4,OptionPage!$A$7)*H$3) -> 0 | I83: =IF(OR(ISBLANK(I$4),LEFT(I$4,1)="s"),0,Gamma($A83,I$5,OptionPage!$A$9,OptionPage!$A$6,OptionPage!$A$4,OptionPage!$A$7)*I$3) -> 0 | J83: =IF(OR(ISBLANK(J$4),LEFT(J$4,1)="s"),0,Gamma($A83,J$5,OptionPage!$A$9,OptionPage!$A$6,OptionPage!$A$4,OptionPage!$A$7)*J$3) -> 0 | K83: =IF(OR(ISBLANK(K$4),LEFT(K$4,1)="s"),0,Gamma($A83,K$5,OptionPage!$A$9,OptionPage!$A$6,OptionPage!$A$4,OptionPage!$A$7)*K$3) -> 0 | L83: -0.2029692778
A84: =A83+$A$17 -> 26 | B84: =IF(OR(ISBLANK(B$4),LEFT(B$4,1)="s"),0,Gamma($A84,B$5,OptionPage!$A$9,OptionPage!$A$6,OptionPage!$A$4,OptionPage!$A$7)*B$3) -> 0 | C84: =IF(OR(ISBLANK(C$4),LEFT(C$4,1)="s"),0,Gamma($A84,C$5,OptionPage!$A$9,OptionPage!$A$6,OptionPage!$A$4,OptionPage!$A$7)*C$3) -> -0.1678241058 | D84: =IF(OR(ISBLANK(D$4),LEFT(D$4,1)="s"),0,Gamma($A84,D$5,OptionPage!$A$9,OptionPage!$A$6,OptionPage!$A$4,OptionPage!$A$7)*D$3) -> 0 | E84: =IF(OR(ISBLANK(E$4),LEFT(E$4,1)="s"),0,Gamma($A84,E$5,OptionPage!$A$9,OptionPage!$A$6,OptionPage!$A$4,OptionPage!$A$7)*E$3) -> 0 | F84: =IF(OR(ISBLANK(F$4),LEFT(F$4,1)="s"),0,Gamma($A84,F$5,OptionPage!$A$9,OptionPage!$A$6,OptionPage!$A$4,OptionPage!$A$7)*F$3) -> 0 | G84: =IF(OR(ISBLANK(G$4),LEFT(G$4,1)="s"),0,Gamma($A84,G$5,OptionPage!$A$9,OptionPage!$A$6,OptionPage!$A$4,OptionPage!$A$7)*G$3) -> 0 | H84: =IF(OR(ISBLANK(H$4),LEFT(H$4,1)="s"),0,Gamma($A84,H$5,OptionPage!$A$9,OptionPage!$A$6,OptionPage!$A$4,OptionPage!$A$7)*H$3) -> 0 | I84: =IF(OR(ISBLANK(I$4),LEFT(I$4,1)="s"),0,Gamma($A84,I$5,OptionPage!$A$9,OptionPage!$A$6,OptionPage!$A$4,OptionPage!$A$7)*I$3) -> 0 | J84: =IF(OR(ISBLANK(J$4),LEFT(J$4,1)="s"),0,Gamma($A84,J$5,OptionPage!$A$9,OptionPage!$A$6,OptionPage!$A$4,OptionPage!$A$7)*J$3) -> 0 | K84: =IF(OR(ISBLANK(K$4),LEFT(K$4,1)="s"),0,Gamma($A84,K$5,OptionPage!$A$9,OptionPage!$A$6,OptionPage!$A$4,OptionPage!$A$7)*K$3) -> 0 | L84: -0.1678241058
A85: =A84+$A$17 -> 27 | B85: =IF(OR(ISBLANK(B$4),LEFT(B$4,1)="s"),0,Gamma($A85,B$5,OptionPage!$A$9,OptionPage!$A$6,OptionPage!$A$4,OptionPage!$A$7)*B$3) -> 0 | C85: =IF(OR(ISBLANK(C$4),LEFT(C$4,1)="s"),0,Gamma($A85,C$5,OptionPage!$A$9,OptionPage!$A$6,OptionPage!$A$4,OptionPage!$A$7)*C$3) -> -0.1104281368 | D85: =IF(OR(ISBLANK(D$4),LEFT(D$4,1)="s"),0,Gamma($A85,D$5,OptionPage!$A$9,OptionPage!$A$6,OptionPage!$A$4,OptionPage!$A$7)*D$3) -> 0 | E85: =IF(OR(ISBLANK(E$4),LEFT(E$4,1)="s"),0,Gamma($A85,E$5,OptionPage!$A$9,OptionPage!$A$6,OptionPage!$A$4,OptionPage!$A$7)*E$3) -> 0 | F85: =IF(OR(ISBLANK(F$4),LEFT(F$4,1)="s"),0,Gamma($A85,F$5,OptionPage!$A$9,OptionPage!$A$6,OptionPage!$A$4,OptionPage!$A$7)*F$3) -> 0 | G85: =IF(OR(ISBLANK(G$4),LEFT(G$4,1)="s"),0,Gamma($A85,G$5,OptionPage!$A$9,OptionPage!$A$6,OptionPage!$A$4,OptionPage!$A$7)*G$3) -> 0 | H85: =IF(OR(ISBLANK(H$4),LEFT(H$4,1)="s"),0,Gamma($A85,H$5,OptionPage!$A$9,OptionPage!$A$6,OptionPage!$A$4,OptionPage!$A$7)*H$3) -> 0 | I85: =IF(OR(ISBLANK(I$4),LEFT(I$4,1)="s"),0,Gamma($A85,I$5,OptionPage!$A$9,OptionPage!$A$6,OptionPage!$A$4,OptionPage!$A$7)*I$3) -> 0 | J85: =IF(OR(ISBLANK(J$4),LEFT(J$4,1)="s"),0,Gamma($A85,J$5,OptionPage!$A$9,OptionPage!$A$6,OptionPage!$A$4,OptionPage!$A$7)*J$3) -> 0 | K85: =IF(OR(ISBLANK(K$4),LEFT(K$4,1)="s"),0,Gamma($A85,K$5,OptionPage!$A$9,OptionPage!$A$6,OptionPage!$A$4,OptionPage!$A$7)*K$3) -> 0 | L85: -0.1104281368
A86: =A85+$A$17 -> 28 | B86: =IF(OR(ISBLANK(B$4),LEFT(B$4,1)="s"),0,Gamma($A86,B$5,OptionPage!$A$9,OptionPage!$A$6,OptionPage!$A$4,OptionPage!$A$7)*B$3) -> 0 | C86: =IF(OR(ISBLANK(C$4),LEFT(C$4,1)="s"),0,Gamma($A86,C$5,OptionPage!$A$9,OptionPage!$A$6,OptionPage!$A$4,OptionPage!$A$7)*C$3) -> -0.05928947346 | D86: =IF(OR(ISBLANK(D$4),LEFT(D$4,1)="s"),0,Gamma($A86,D$5,OptionPage!$A$9,OptionPage!$A$6,OptionPage!$A$4,OptionPage!$A$7)*D$3) -> 0 | E86: =IF(OR(ISBLANK(E$4),LEFT(E$4,1)="s"),0,Gamma($A86,E$5,OptionPage!$A$9,OptionPage!$A$6,OptionPage!$A$4,OptionPage!$A$7)*E$3) -> 0 | F86: =IF(OR(ISBLANK(F$4),LEFT(F$4,1)="s"),0,Gamma($A86,F$5,OptionPage!$A$9,OptionPage!$A$6,OptionPage!$A$4,OptionPage!$A$7)*F$3) -> 0 | G86: =IF(OR(ISBLANK(G$4),LEFT(G$4,1)="s"),0,Gamma($A86,G$5,OptionPage!$A$9,OptionPage!$A$6,OptionPage!$A$4,OptionPage!$A$7)*G$3) -> 0 | H86: =IF(OR(ISBLANK(H$4),LEFT(H$4,1)="s"),0,Gamma($A86,H$5,OptionPage!$A$9,OptionPage!$A$6,OptionPage!$A$4,OptionPage!$A$7)*H$3) -> 0 | I86: =IF(OR(ISBLANK(I$4),LEFT(I$4,1)="s"),0,Gamma($A86,I$5,OptionPage!$A$9,OptionPage!$A$6,OptionPage!$A$4,OptionPage!$A$7)*I$3) -> 0 | J86: =IF(OR(ISBLANK(J$4),LEFT(J$4,1)="s"),0,Gamma($A86,J$5,OptionPage!$A$9,OptionPage!$A$6,OptionPage!$A$4,OptionPage!$A$7)*J$3) -> 0 | K86: =IF(OR(ISBLANK(K$4),LEFT(K$4,1)="s"),0,Gamma($A86,K$5,OptionPage!$A$9,OptionPage!$A$6,OptionPage!$A$4,OptionPage!$A$7)*K$3) -> 0 | L86: -0.05928947346
A87: =A86+$A$17 -> 29 | B87: =IF(OR(ISBLANK(B$4),LEFT(B$4,1)="s"),0,Gamma($A87,B$5,OptionPage!$A$9,OptionPage!$A$6,OptionPage!$A$4,OptionPage!$A$7)*B$3) -> 0 | C87: =IF(OR(ISBLANK(C$4),LEFT(C$4,1)="s"),0,Gamma($A87,C$5,OptionPage!$A$9,OptionPage!$A$6,OptionPage!$A$4,OptionPage!$A$7)*C$3) -> -0.02654740517 | D87: =IF(OR(ISBLANK(D$4),LEFT(D$4,1)="s"),0,Gamma($A87,D$5,OptionPage!$A$9,OptionPage!$A$6,OptionPage!$A$4,OptionPage!$A$7)*D$3) -> 0 | E87: =IF(OR(ISBLANK(E$4),LEFT(E$4,1)="s"),0,Gamma($A87,E$5,OptionPage!$A$9,OptionPage!$A$6,OptionPage!$A$4,OptionPage!$A$7)*E$3) -> 0 | F87: =IF(OR(ISBLANK(F$4),LEFT(F$4,1)="s"),0,Gamma($A87,F$5,OptionPage!$A$9,OptionPage!$A$6,OptionPage!$A$4,OptionPage!$A$7)*F$3) -> 0 | G87: =IF(OR(ISBLANK(G$4),LEFT(G$4,1)="s"),0,Gamma($A87,G$5,OptionPage!$A$9,OptionPage!$A$6,OptionPage!$A$4,OptionPage!$A$7)*G$3) -> 0 | H87: =IF(OR(ISBLANK(H$4),LEFT(H$4,1)="s"),0,Gamma($A87,H$5,OptionPage!$A$9,OptionPage!$A$6,OptionPage!$A$4,OptionPage!$A$7)*H$3) -> 0 | I87: =IF(OR(ISBLANK(I$4),LEFT(I$4,1)="s"),0,Gamma($A87,I$5,OptionPage!$A$9,OptionPage!$A$6,OptionPage!$A$4,OptionPage!$A$7)*I$3) -> 0 | J87: =IF(OR(ISBLANK(J$4),LEFT(J$4,1)="s"),0,Gamma($A87,J$5,OptionPage!$A$9,OptionPage!$A$6,OptionPage!$A$4,OptionPage!$A$7)*J$3) -> 0 | K87: =IF(OR(ISBLANK(K$4),LEFT(K$4,1)="s"),0,Gamma($A87,K$5,OptionPage!$A$9,OptionPage!$A$6,OptionPage!$A$4,OptionPage!$A$7)*K$3) -> 0 | L87: -0.02654740517
A88: =A87+$A$17 -> 30 | B88: =IF(OR(ISBLANK(B$4),LEFT(B$4,1)="s"),0,Gamma($A88,B$5,OptionPage!$A$9,OptionPage!$A$6,OptionPage!$A$4,OptionPage!$A$7)*B$3) -> 0 | C88: =IF(OR(ISBLANK(C$4),LEFT(C$4,1)="s"),0,Gamma($A88,C$5,OptionPage!$A$9,OptionPage!$A$6,OptionPage!$A$4,OptionPage!$A$7)*C$3) -> -0.01010427648 | D88: =IF(OR(ISBLANK(D$4),LEFT(D$4,1)="s"),0,Gamma($A88,D$5,OptionPage!$A$9,OptionPage!$A$6,OptionPage!$A$4,OptionPage!$A$7)*D$3) -> 0 | E88: =IF(OR(ISBLANK(E$4),LEFT(E$4,1)="s"),0,Gamma($A88,E$5,OptionPage!$A$9,OptionPage!$A$6,OptionPage!$A$4,OptionPage!$A$7)*E$3) -> 0 | F88: =IF(OR(ISBLANK(F$4),LEFT(F$4,1)="s"),0,Gamma($A88,F$5,OptionPage!$A$9,OptionPage!$A$6,OptionPage!$A$4,OptionPage!$A$7)*F$3) -> 0 | G88: =IF(OR(ISBLANK(G$4),LEFT(G$4,1)="s"),0,Gamma($A88,G$5,OptionPage!$A$9,OptionPage!$A$6,OptionPage!$A$4,OptionPage!$A$7)*G$3) -> 0 | H88: =IF(OR(ISBLANK(H$4),LEFT(H$4,1)="s"),0,Gamma($A88,H$5,OptionPage!$A$9,OptionPage!$A$6,OptionPage!$A$4,OptionPage!$A$7)*H$3) -> 0 | I88: =IF(OR(ISBLANK(I$4),LEFT(I$4,1)="s"),0,Gamma($A88,I$5,OptionPage!$A$9,OptionPage!$A$6,OptionPage!$A$4,OptionPage!$A$7)*I$3) -> 0 | J88: =IF(OR(ISBLANK(J$4),LEFT(J$4,1)="s"),0,Gamma($A88,J$5,OptionPage!$A$9,OptionPage!$A$6,OptionPage!$A$4,OptionPage!$A$7)*J$3) -> 0 | K88: =IF(OR(ISBLANK(K$4),LEFT(K$4,1)="s"),0,Gamma($A88,K$5,OptionPage!$A$9,OptionPage!$A$6,OptionPage!$A$4,OptionPage!$A$7)*K$3) -> 0 | L88: -0.01010427648
B90: Current Position Theta Relative to Underlying Price Changes
A91: Underlying Price | B91: Strat1 | C91: Strat2 | D91: Strat3 | E91: Strat4 | F91: Strat5 | G91: Strat6 | H91: Strat7 | I91: Strat8 | J91: Strat9 | K91: Strat10 | L91: Total
A92: =A93-$A$17 -> 20 | B92: =IF(OR(ISBLANK(B$4),LEFT(B$4,1)="s"),0,IF(LEFT(B$4,1)="c",CallTheta($A92,B$5,OptionPage!$A$9,OptionPage!$A$6,OptionPage!$A$4,OptionPage!$A$7)*B$3,PutTheta($A92,B$5,OptionPage!$A$9,OptionPage!$A$6,OptionPage!$A$4,OptionPage!$A$7)*B$3)) -> 0 | C92: =IF(OR(ISBLANK(C$4),LEFT(C$4,1)="s"),0,IF(LEFT(C$4,1)="c",CallTheta($A92,C$5,OptionPage!$A$9,OptionPage!$A$6,OptionPage!$A$4,OptionPage!$A$7)*C$3,PutTheta($A92,C$5,OptionPage!$A$9,OptionPage!$A$6,OptionPage!$A$4,OptionPage!$A$7)*C$3)) -> 0.000260741584 | D92: =IF(OR(ISBLANK(D$4),LEFT(D$4,1)="s"),0,IF(LEFT(D$4,1)="c",CallTheta($A92,D$5,OptionPage!$A$9,OptionPage!$A$6,OptionPage!$A$4,OptionPage!$A$7)*D$3,PutTheta($A92,D$5,OptionPage!$A$9,OptionPage!$A$6,OptionPage!$A$4,OptionPage!$A$7)*D$3)) -> 0 | E92: =IF(OR(ISBLANK(E$4),LEFT(E$4,1)="s"),0,IF(LEFT(E$4,1)="c",CallTheta($A92,E$5,OptionPage!$A$9,OptionPage!$A$6,OptionPage!$A$4,OptionPage!$A$7)*E$3,PutTheta($A92,E$5,OptionPage!$A$9,OptionPage!$A$6,OptionPage!$A$4,OptionPage!$A$7)*E$3)) -> 0 | F92: =IF(OR(ISBLANK(F$4),LEFT(F$4,1)="s"),0,IF(LEFT(F$4,1)="c",CallTheta($A92,F$5,OptionPage!$A$9,OptionPage!$A$6,OptionPage!$A$4,OptionPage!$A$7)*F$3,PutTheta($A92,F$5,OptionPage!$A$9,OptionPage!$A$6,OptionPage!$A$4,OptionPage!$A$7)*F$3)) -> 0 | G92: =IF(OR(ISBLANK(G$4),LEFT(G$4,1)="s"),0,IF(LEFT(G$4,1)="c",CallTheta($A92,G$5,OptionPage!$A$9,OptionPage!$A$6,OptionPage!$A$4,OptionPage!$A$7)*G$3,PutTheta($A92,G$5,OptionPage!$A$9,OptionPage!$A$6,OptionPage!$A$4,OptionPage!$A$7)*G$3)) -> 0 | H92: =IF(OR(ISBLANK(H$4),LEFT(H$4,1)="s"),0,IF(LEFT(H$4,1)="c",CallTheta($A92,H$5,OptionPage!$A$9,OptionPage!$A$6,OptionPage!$A$4,OptionPage!$A$7)*H$3,PutTheta($A92,H$5,OptionPage!$A$9,OptionPage!$A$6,OptionPage!$A$4,OptionPage!$A$7)*H$3)) -> 0 | I92: =IF(OR(ISBLANK(I$4),LEFT(I$4,1)="s"),0,IF(LEFT(I$4,1)="c",CallTheta($A92,I$5,OptionPage!$A$9,OptionPage!$A$6,OptionPage!$A$4,OptionPage!$A$7)*I$3,PutTheta($A92,I$5,OptionPage!$A$9,OptionPage!$A$6,OptionPage!$A$4,OptionPage!$A$7)*I$3)) -> 0 | J92: =IF(OR(ISBLANK(J$4),LEFT(J$4,1)="s"),0,IF(LEFT(J$4,1)="c",CallTheta($A92,J$5,OptionPage!$A$9,OptionPage!$A$6,OptionPage!$A$4,OptionPage!$A$7)*J$3,PutTheta($A92,J$5,OptionPage!$A$9,OptionPage!$A$6,OptionPage!$A$4,OptionPage!$A$7)*J$3)) -> 0 | K92: =IF(OR(ISBLANK(K$4),LEFT(K$4,1)="s"),0,IF(LEFT(K$4,1)="c",CallTheta($A92,K$5,OptionPage!$A$9,OptionPage!$A$6,OptionPage!$A$4,OptionPage!$A$7)*K$3,PutTheta($A92,K$5,OptionPage!$A$9,OptionPage!$A$6,OptionPage!$A$4,OptionPage!$A$7)*K$3)) -> 0 | L92: =SUM(B92:K92) -> 0.000260741584
A93: =A94-$A$17 -> 21 | B93: =IF(OR(ISBLANK(B$4),LEFT(B$4,1)="s"),0,IF(LEFT(B$4,1)="c",CallTheta($A93,B$5,OptionPage!$A$9,OptionPage!$A$6,OptionPage!$A$4,OptionPage!$A$7)*B$3,PutTheta($A93,B$5,OptionPage!$A$9,OptionPage!$A$6,OptionPage!$A$4,OptionPage!$A$7)*B$3)) -> 0 | C93: =IF(OR(ISBLANK(C$4),LEFT(C$4,1)="s"),0,IF(LEFT(C$4,1)="c",CallTheta($A93,C$5,OptionPage!$A$9,OptionPage!$A$6,OptionPage!$A$4,OptionPage!$A$7)*C$3,PutTheta($A93,C$5,OptionPage!$A$9,OptionPage!$A$6,OptionPage!$A$4,OptionPage!$A$7)*C$3)) -> 0.001283042325 | D93: =IF(OR(ISBLANK(D$4),LEFT(D$4,1)="s"),0,IF(LEFT(D$4,1)="c",CallTheta($A93,D$5,OptionPage!$A$9,OptionPage!$A$6,OptionPage!$A$4,OptionPage!$A$7)*D$3,PutTheta($A93,D$5,OptionPage!$A$9,OptionPage!$A$6,OptionPage!$A$4,OptionPage!$A$7)*D$3)) -> 0 | E93: =IF(OR(ISBLANK(E$4),LEFT(E$4,1)="s"),0,IF(LEFT(E$4,1)="c",CallTheta($A93,E$5,OptionPage!$A$9,OptionPage!$A$6,OptionPage!$A$4,OptionPage!$A$7)*E$3,PutTheta($A93,E$5,OptionPage!$A$9,OptionPage!$A$6,OptionPage!$A$4,OptionPage!$A$7)*E$3)) -> 0 | F93: =IF(OR(ISBLANK(F$4),LEFT(F$4,1)="s"),0,IF(LEFT(F$4,1)="c",CallTheta($A93,F$5,OptionPage!$A$9,OptionPage!$A$6,OptionPage!$A$4,OptionPage!$A$7)*F$3,PutTheta($A93,F$5,OptionPage!$A$9,OptionPage!$A$6,OptionPage!$A$4,OptionPage!$A$7)*F$3)) -> 0 | G93: =IF(OR(ISBLANK(G$4),LEFT(G$4,1)="s"),0,IF(LEFT(G$4,1)="c",CallTheta($A93,G$5,OptionPage!$A$9,OptionPage!$A$6,OptionPage!$A$4,OptionPage!$A$7)*G$3,PutTheta($A93,G$5,OptionPage!$A$9,OptionPage!$A$6,OptionPage!$A$4,OptionPage!$A$7)*G$3)) -> 0 | H93: =IF(OR(ISBLANK(H$4),LEFT(H$4,1)="s"),0,IF(LEFT(H$4,1)="c",CallTheta($A93,H$5,OptionPage!$A$9,OptionPage!$A$6,OptionPage!$A$4,OptionPage!$A$7)*H$3,PutTheta($A93,H$5,OptionPage!$A$9,OptionPage!$A$6,OptionPage!$A$4,OptionPage!$A$7)*H$3)) -> 0 | I93: =IF(OR(ISBLANK(I$4),LEFT(I$4,1)="s"),0,IF(LEFT(I$4,1)="c",CallTheta($A93,I$5,OptionPage!$A$9,OptionPage!$A$6,OptionPage!$A$4,OptionPage!$A$7)*I$3,PutTheta($A93,I$5,OptionPage!$A$9,OptionPage!$A$6,OptionPage!$A$4,OptionPage!$A$7)*I$3)) -> 0 | J93: =IF(OR(ISBLANK(J$4),LEFT(J$4,1)="s"),0,IF(LEFT(J$4,1)="c",CallTheta($A93,J$5,OptionPage!$A$9,OptionPage!$A$6,OptionPage!$A$4,OptionPage!$A$7)*J$3,PutTheta($A93,J$5,OptionPage!$A$9,OptionPage!$A$6,OptionPage!$A$4,OptionPage!$A$7)*J$3)) -> 0 | K93: =IF(OR(ISBLANK(K$4),LEFT(K$4,1)="s"),0,IF(LEFT(K$4,1)="c",CallTheta($A93,K$5,OptionPage!$A$9,OptionPage!$A$6,OptionPage!$A$4,OptionPage!$A$7)*K$3,PutTheta($A93,K$5,OptionPage!$A$9,OptionPage!$A$6,OptionPage!$A$4,OptionPage!$A$7)*K$3)) -> 0 | L93: =SUM(B93:K93) -> 0.001283042325
A94: =A95-$A$17 -> 22 | B94: =IF(OR(ISBLANK(B$4),LEFT(B$4,1)="s"),0,IF(LEFT(B$4,1)="c",CallTheta($A94,B$5,OptionPage!$A$9,OptionPage!$A$6,OptionPage!$A$4,OptionPage!$A$7)*B$3,PutTheta($A94,B$5,OptionPage!$A$9,OptionPage!$A$6,OptionPage!$A$4,OptionPage!$A$7)*B$3)) -> 0 | C94: =IF(OR(ISBLANK(C$4),LEFT(C$4,1)="s"),0,IF(LEFT(C$4,1)="c",CallTheta($A94,C$5,OptionPage!$A$9,OptionPage!$A$6,OptionPage!$A$4,OptionPage!$A$7)*C$3,PutTheta($A94,C$5,OptionPage!$A$9,OptionPage!$A$6,OptionPage!$A$4,OptionPage!$A$7)*C$3)) -> 0.004099071452 | D94: =IF(OR(ISBLANK(D$4),LEFT(D$4,1)="s"),0,IF(LEFT(D$4,1)="c",CallTheta($A94,D$5,OptionPage!$A$9,OptionPage!$A$6,OptionPage!$A$4,OptionPage!$A$7)*D$3,PutTheta($A94,D$5,OptionPage!$A$9,OptionPage!$A$6,OptionPage!$A$4,OptionPage!$A$7)*D$3)) -> 0 | E94: =IF(OR(ISBLANK(E$4),LEFT(E$4,1)="s"),0,IF(LEFT(E$4,1)="c",CallTheta($A94,E$5,OptionPage!$A$9,OptionPage!$A$6,OptionPage!$A$4,OptionPage!$A$7)*E$3,PutTheta($A94,E$5,OptionPage!$A$9,OptionPage!$A$6,OptionPage!$A$4,OptionPage!$A$7)*E$3)) -> 0 | F94: =IF(OR(ISBLANK(F$4),LEFT(F$4,1)="s"),0,IF(LEFT(F$4,1)="c",CallTheta($A94,F$5,OptionPage!$A$9,OptionPage!$A$6,OptionPage!$A$4,OptionPage!$A$7)*F$3,PutTheta($A94,F$5,OptionPage!$A$9,OptionPage!$A$6,OptionPage!$A$4,OptionPage!$A$7)*F$3)) -> 0 | G94: =IF(OR(ISBLANK(G$4),LEFT(G$4,1)="s"),0,IF(LEFT(G$4,1)="c",CallTheta($A94,G$5,OptionPage!$A$9,OptionPage!$A$6,OptionPage!$A$4,OptionPage!$A$7)*G$3,PutTheta($A94,G$5,OptionPage!$A$9,OptionPage!$A$6,OptionPage!$A$4,OptionPage!$A$7)*G$3)) -> 0 | H94: =IF(OR(ISBLANK(H$4),LEFT(H$4,1)="s"),0,IF(LEFT(H$4,1)="c",CallTheta($A94,H$5,OptionPage!$A$9,OptionPage!$A$6,OptionPage!$A$4,OptionPage!$A$7)*H$3,PutTheta($A94,H$5,OptionPage!$A$9,OptionPage!$A$6,OptionPage!$A$4,OptionPage!$A$7)*H$3)) -> 0 | I94: =IF(OR(ISBLANK(I$4),LEFT(I$4,1)="s"),0,IF(LEFT(I$4,1)="c",CallTheta($A94,I$5,OptionPage!$A$9,OptionPage!$A$6,OptionPage!$A$4,OptionPage!$A$7)*I$3,PutTheta($A94,I$5,OptionPage!$A$9,OptionPage!$A$6,OptionPage!$A$4,OptionPage!$A$7)*I$3)) -> 0 | J94: =IF(OR(ISBLANK(J$4),LEFT(J$4,1)="s"),0,IF(LEFT(J$4,1)="c",CallTheta($A94,J$5,OptionPage!$A$9,OptionPage!$A$6,OptionPage!$A$4,OptionPage!$A$7)*J$3,PutTheta($A94,J$5,OptionPage!$A$9,OptionPage!$A$6,OptionPage!$A$4,OptionPage!$A$7)*J$3)) -> 0 | K94: =IF(OR(ISBLANK(K$4),LEFT(K$4,1)="s"),0,IF(LEFT(K$4,1)="c",CallTheta($A94,K$5,OptionPage!$A$9,OptionPage!$A$6,OptionPage!$A$4,OptionPage!$A$7)*K$3,PutTheta($A94,K$5,OptionPage!$A$9,OptionPage!$A$6,OptionPage!$A$4,OptionPage!$A$7)*K$3)) -> 0 | L94: 0.004099071452
A95: =A96-$A$17 -> 23 | B95: =IF(OR(ISBLANK(B$4),LEFT(B$4,1)="s"),0,IF(LEFT(B$4,1)="c",CallTheta($A95,B$5,OptionPage!$A$9,OptionPage!$A$6,OptionPage!$A$4,OptionPage!$A$7)*B$3,PutTheta($A95,B$5,OptionPage!$A$9,OptionPage!$A$6,OptionPage!$A$4,OptionPage!$A$7)*B$3)) -> 0 | C95: =IF(OR(ISBLANK(C$4),LEFT(C$4,1)="s"),0,IF(LEFT(C$4,1)="c",CallTheta($A95,C$5,OptionPage!$A$9,OptionPage!$A$6,OptionPage!$A$4,OptionPage!$A$7)*C$3,PutTheta($A95,C$5,OptionPage!$A$9,OptionPage!$A$6,OptionPage!$A$4,OptionPage!$A$7)*C$3)) -> 0.008985309423 | D95: =IF(OR(ISBLANK(D$4),LEFT(D$4,1)="s"),0,IF(LEFT(D$4,1)="c",CallTheta($A95,D$5,OptionPage!$A$9,OptionPage!$A$6,OptionPage!$A$4,OptionPage!$A$7)*D$3,PutTheta($A95,D$5,OptionPage!$A$9,OptionPage!$A$6,OptionPage!$A$4,OptionPage!$A$7)*D$3)) -> 0 | E95: =IF(OR(ISBLANK(E$4),LEFT(E$4,1)="s"),0,IF(LEFT(E$4,1)="c",CallTheta($A95,E$5,OptionPage!$A$9,OptionPage!$A$6,OptionPage!$A$4,OptionPage!$A$7)*E$3,PutTheta($A95,E$5,OptionPage!$A$9,OptionPage!$A$6,OptionPage!$A$4,OptionPage!$A$7)*E$3)) -> 0 | F95: =IF(OR(ISBLANK(F$4),LEFT(F$4,1)="s"),0,IF(LEFT(F$4,1)="c",CallTheta($A95,F$5,OptionPage!$A$9,OptionPage!$A$6,OptionPage!$A$4,OptionPage!$A$7)*F$3,PutTheta($A95,F$5,OptionPage!$A$9,OptionPage!$A$6,OptionPage!$A$4,OptionPage!$A$7)*F$3)) -> 0 | G95: =IF(OR(ISBLANK(G$4),LEFT(G$4,1)="s"),0,IF(LEFT(G$4,1)="c",CallTheta($A95,G$5,OptionPage!$A$9,OptionPage!$A$6,OptionPage!$A$4,OptionPage!$A$7)*G$3,PutTheta($A95,G$5,OptionPage!$A$9,OptionPage!$A$6,OptionPage!$A$4,OptionPage!$A$7)*G$3)) -> 0 | H95: =IF(OR(ISBLANK(H$4),LEFT(H$4,1)="s"),0,IF(LEFT(H$4,1)="c",CallTheta($A95,H$5,OptionPage!$A$9,OptionPage!$A$6,OptionPage!$A$4,OptionPage!$A$7)*H$3,PutTheta($A95,H$5,OptionPage!$A$9,OptionPage!$A$6,OptionPage!$A$4,OptionPage!$A$7)*H$3)) -> 0 | I95: =IF(OR(ISBLANK(I$4),LEFT(I$4,1)="s"),0,IF(LEFT(I$4,1)="c",CallTheta($A95,I$5,OptionPage!$A$9,OptionPage!$A$6,OptionPage!$A$4,OptionPage!$A$7)*I$3,PutTheta($A95,I$5,OptionPage!$A$9,OptionPage!$A$6,OptionPage!$A$4,OptionPage!$A$7)*I$3)) -> 0 | J95: =IF(OR(ISBLANK(J$4),LEFT(J$4,1)="s"),0,IF(LEFT(J$4,1)="c",CallTheta($A95,J$5,OptionPage!$A$9,OptionPage!$A$6,OptionPage!$A$4,OptionPage!$A$7)*J$3,PutTheta($A95,J$5,OptionPage!$A$9,OptionPage!$A$6,OptionPage!$A$4,OptionPage!$A$7)*J$3)) -> 0 | K95: =IF(OR(ISBLANK(K$4),LEFT(K$4,1)="s"),0,IF(LEFT(K$4,1)="c",CallTheta($A95,K$5,OptionPage!$A$9,OptionPage!$A$6,OptionPage!$A$4,OptionPage!$A$7)*K$3,PutTheta($A95,K$5,OptionPage!$A$9,OptionPage!$A$6,OptionPage!$A$4,OptionPage!$A$7)*K$3)) -> 0 | L95: 0.008985309423
A96: =A97-$A$17 -> 24 | B96: =IF(OR(ISBLANK(B$4),LEFT(B$4,1)="s"),0,IF(LEFT(B$4,1)="c",CallTheta($A96,B$5,OptionPage!$A$9,OptionPage!$A$6,OptionPage!$A$4,OptionPage!$A$7)*B$3,PutTheta($A96,B$5,OptionPage!$A$9,OptionPage!$A$6,OptionPage!$A$4,OptionPage!$A$7)*B$3)) -> 0 | C96: =IF(OR(ISBLANK(C$4),LEFT(C$4,1)="s"),0,IF(LEFT(C$4,1)="c",CallTheta($A96,C$5,OptionPage!$A$9,OptionPage!$A$6,OptionPage!$A$4,OptionPage!$A$7)*C$3,PutTheta($A96,C$5,OptionPage!$A$9,OptionPage!$A$6,OptionPage!$A$4,OptionPage!$A$7)*C$3)) -> 0.01417729071 | D96: =IF(OR(ISBLANK(D$4),LEFT(D$4,1)="s"),0,IF(LEFT(D$4,1)="c",CallTheta($A96,D$5,OptionPage!$A$9,OptionPage!$A$6,OptionPage!$A$4,OptionPage!$A$7)*D$3,PutTheta($A96,D$5,OptionPage!$A$9,OptionPage!$A$6,OptionPage!$A$4,OptionPage!$A$7)*D$3)) -> 0 | E96: =IF(OR(ISBLANK(E$4),LEFT(E$4,1)="s"),0,IF(LEFT(E$4,1)="c",CallTheta($A96,E$5,OptionPage!$A$9,OptionPage!$A$6,OptionPage!$A$4,OptionPage!$A$7)*E$3,PutTheta($A96,E$5,OptionPage!$A$9,OptionPage!$A$6,OptionPage!$A$4,OptionPage!$A$7)*E$3)) -> 0 | F96: =IF(OR(ISBLANK(F$4),LEFT(F$4,1)="s"),0,IF(LEFT(F$4,1)="c",CallTheta($A96,F$5,OptionPage!$A$9,OptionPage!$A$6,OptionPage!$A$4,OptionPage!$A$7)*F$3,PutTheta($A96,F$5,OptionPage!$A$9,OptionPage!$A$6,OptionPage!$A$4,OptionPage!$A$7)*F$3)) -> 0 | G96: =IF(OR(ISBLANK(G$4),LEFT(G$4,1)="s"),0,IF(LEFT(G$4,1)="c",CallTheta($A96,G$5,OptionPage!$A$9,OptionPage!$A$6,OptionPage!$A$4,OptionPage!$A$7)*G$3,PutTheta($A96,G$5,OptionPage!$A$9,OptionPage!$A$6,OptionPage!$A$4,OptionPage!$A$7)*G$3)) -> 0 | H96: =IF(OR(ISBLANK(H$4),LEFT(H$4,1)="s"),0,IF(LEFT(H$4,1)="c",CallTheta($A96,H$5,OptionPage!$A$9,OptionPage!$A$6,OptionPage!$A$4,OptionPage!$A$7)*H$3,PutTheta($A96,H$5,OptionPage!$A$9,OptionPage!$A$6,OptionPage!$A$4,OptionPage!$A$7)*H$3)) -> 0 | I96: =IF(OR(ISBLANK(I$4),LEFT(I$4,1)="s"),0,IF(LEFT(I$4,1)="c",CallTheta($A96,I$5,OptionPage!$A$9,OptionPage!$A$6,OptionPage!$A$4,OptionPage!$A$7)*I$3,PutTheta($A96,I$5,OptionPage!$A$9,OptionPage!$A$6,OptionPage!$A$4,OptionPage!$A$7)*I$3)) -> 0 | J96: =IF(OR(ISBLANK(J$4),LEFT(J$4,1)="s"),0,IF(LEFT(J$4,1)="c",CallTheta($A96,J$5,OptionPage!$A$9,OptionPage!$A$6,OptionPage!$A$4,OptionPage!$A$7)*J$3,PutTheta($A96,J$5,OptionPage!$A$9,OptionPage!$A$6,OptionPage!$A$4,OptionPage!$A$7)*J$3)) -> 0 | K96: =IF(OR(ISBLANK(K$4),LEFT(K$4,1)="s"),0,IF(LEFT(K$4,1)="c",CallTheta($A96,K$5,OptionPage!$A$9,OptionPage!$A$6,OptionPage!$A$4,OptionPage!$A$7)*K$3,PutTheta($A96,K$5,OptionPage!$A$9,OptionPage!$A$6,OptionPage!$A$4,OptionPage!$A$7)*K$3)) -> 0 | L96: 0.01417729071
A97: =OptionPage!$A$2 -> 25 | B97: =IF(OR(ISBLANK(B$4),LEFT(B$4,1)="s"),0,IF(LEFT(B$4,1)="c",CallTheta($A97,B$5,OptionPage!$A$9,OptionPage!$A$6,OptionPage!$A$4,OptionPage!$A$7)*B$3,PutTheta($A97,B$5,OptionPage!$A$9,OptionPage!$A$6,OptionPage!$A$4,OptionPage!$A$7)*B$3)) -> 0 | C97: =IF(OR(ISBLANK(C$4),LEFT(C$4,1)="s"),0,IF(LEFT(C$4,1)="c",CallTheta($A97,C$5,OptionPage!$A$9,OptionPage!$A$6,OptionPage!$A$4,OptionPage!$A$7)*C$3,PutTheta($A97,C$5,OptionPage!$A$9,OptionPage!$A$6,OptionPage!$A$4,OptionPage!$A$7)*C$3)) -> 0.01681054962 | D97: =IF(OR(ISBLANK(D$4),LEFT(D$4,1)="s"),0,IF(LEFT(D$4,1)="c",CallTheta($A97,D$5,OptionPage!$A$9,OptionPage!$A$6,OptionPage!$A$4,OptionPage!$A$7)*D$3,PutTheta($A97,D$5,OptionPage!$A$9,OptionPage!$A$6,OptionPage!$A$4,OptionPage!$A$7)*D$3)) -> 0 | E97: =IF(OR(ISBLANK(E$4),LEFT(E$4,1)="s"),0,IF(LEFT(E$4,1)="c",CallTheta($A97,E$5,OptionPage!$A$9,OptionPage!$A$6,OptionPage!$A$4,OptionPage!$A$7)*E$3,PutTheta($A97,E$5,OptionPage!$A$9,OptionPage!$A$6,OptionPage!$A$4,OptionPage!$A$7)*E$3)) -> 0 | F97: =IF(OR(ISBLANK(F$4),LEFT(F$4,1)="s"),0,IF(LEFT(F$4,1)="c",CallTheta($A97,F$5,OptionPage!$A$9,OptionPage!$A$6,OptionPage!$A$4,OptionPage!$A$7)*F$3,PutTheta($A97,F$5,OptionPage!$A$9,OptionPage!$A$6,OptionPage!$A$4,OptionPage!$A$7)*F$3)) -> 0 | G97: =IF(OR(ISBLANK(G$4),LEFT(G$4,1)="s"),0,IF(LEFT(G$4,1)="c",CallTheta($A97,G$5,OptionPage!$A$9,OptionPage!$A$6,OptionPage!$A$4,OptionPage!$A$7)*G$3,PutTheta($A97,G$5,OptionPage!$A$9,OptionPage!$A$6,OptionPage!$A$4,OptionPage!$A$7)*G$3)) -> 0 | H97: =IF(OR(ISBLANK(H$4),LEFT(H$4,1)="s"),0,IF(LEFT(H$4,1)="c",CallTheta($A97,H$5,OptionPage!$A$9,OptionPage!$A$6,OptionPage!$A$4,OptionPage!$A$7)*H$3,PutTheta($A97,H$5,OptionPage!$A$9,OptionPage!$A$6,OptionPage!$A$4,OptionPage!$A$7)*H$3)) -> 0 | I97: =IF(OR(ISBLANK(I$4),LEFT(I$4,1)="s"),0,IF(LEFT(I$4,1)="c",CallTheta($A97,I$5,OptionPage!$A$9,OptionPage!$A$6,OptionPage!$A$4,OptionPage!$A$7)*I$3,PutTheta($A97,I$5,OptionPage!$A$9,OptionPage!$A$6,OptionPage!$A$4,OptionPage!$A$7)*I$3)) -> 0 | J97: =IF(OR(ISBLANK(J$4),LEFT(J$4,1)="s"),0,IF(LEFT(J$4,1)="c",CallTheta($A97,J$5,OptionPage!$A$9,OptionPage!$A$6,OptionPage!$A$4,OptionPage!$A$7)*J$3,PutTheta($A97,J$5,OptionPage!$A$9,OptionPage!$A$6,OptionPage!$A$4,OptionPage!$A$7)*J$3)) -> 0 | K97: =IF(OR(ISBLANK(K$4),LEFT(K$4,1)="s"),0,IF(LEFT(K$4,1)="c",CallTheta($A97,K$5,OptionPage!$A$9,OptionPage!$A$6,OptionPage!$A$4,OptionPage!$A$7)*K$3,PutTheta($A97,K$5,OptionPage!$A$9,OptionPage!$A$6,OptionPage!$A$4,OptionPage!$A$7)*K$3)) -> 0 | L97: 0.01681054962
A98: =A97+$A$17 -> 26 | B98: =IF(OR(ISBLANK(B$4),LEFT(B$4,1)="s"),0,IF(LEFT(B$4,1)="c",CallTheta($A98,B$5,OptionPage!$A$9,OptionPage!$A$6,OptionPage!$A$4,OptionPage!$A$7)*B$3,PutTheta($A98,B$5,OptionPage!$A$9,OptionPage!$A$6,OptionPage!$A$4,OptionPage!$A$7)*B$3)) -> 0 | C98: =IF(OR(ISBLANK(C$4),LEFT(C$4,1)="s"),0,IF(LEFT(C$4,1)="c",CallTheta($A98,C$5,OptionPage!$A$9,OptionPage!$A$6,OptionPage!$A$4,OptionPage!$A$7)*C$3,PutTheta($A98,C$5,OptionPage!$A$9,OptionPage!$A$6,OptionPage!$A$4,OptionPage!$A$7)*C$3)) -> 0.0156179517 | D98: =IF(OR(ISBLANK(D$4),LEFT(D$4,1)="s"),0,IF(LEFT(D$4,1)="c",CallTheta($A98,D$5,OptionPage!$A$9,OptionPage!$A$6,OptionPage!$A$4,OptionPage!$A$7)*D$3,PutTheta($A98,D$5,OptionPage!$A$9,OptionPage!$A$6,OptionPage!$A$4,OptionPage!$A$7)*D$3)) -> 0 | E98: =IF(OR(ISBLANK(E$4),LEFT(E$4,1)="s"),0,IF(LEFT(E$4,1)="c",CallTheta($A98,E$5,OptionPage!$A$9,OptionPage!$A$6,OptionPage!$A$4,OptionPage!$A$7)*E$3,PutTheta($A98,E$5,OptionPage!$A$9,OptionPage!$A$6,OptionPage!$A$4,OptionPage!$A$7)*E$3)) -> 0 | F98: =IF(OR(ISBLANK(F$4),LEFT(F$4,1)="s"),0,IF(LEFT(F$4,1)="c",CallTheta($A98,F$5,OptionPage!$A$9,OptionPage!$A$6,OptionPage!$A$4,OptionPage!$A$7)*F$3,PutTheta($A98,F$5,OptionPage!$A$9,OptionPage!$A$6,OptionPage!$A$4,OptionPage!$A$7)*F$3)) -> 0 | G98: =IF(OR(ISBLANK(G$4),LEFT(G$4,1)="s"),0,IF(LEFT(G$4,1)="c",CallTheta($A98,G$5,OptionPage!$A$9,OptionPage!$A$6,OptionPage!$A$4,OptionPage!$A$7)*G$3,PutTheta($A98,G$5,OptionPage!$A$9,OptionPage!$A$6,OptionPage!$A$4,OptionPage!$A$7)*G$3)) -> 0 | H98: =IF(OR(ISBLANK(H$4),LEFT(H$4,1)="s"),0,IF(LEFT(H$4,1)="c",CallTheta($A98,H$5,OptionPage!$A$9,OptionPage!$A$6,OptionPage!$A$4,OptionPage!$A$7)*H$3,PutTheta($A98,H$5,OptionPage!$A$9,OptionPage!$A$6,OptionPage!$A$4,OptionPage!$A$7)*H$3)) -> 0 | I98: =IF(OR(ISBLANK(I$4),LEFT(I$4,1)="s"),0,IF(LEFT(I$4,1)="c",CallTheta($A98,I$5,OptionPage!$A$9,OptionPage!$A$6,OptionPage!$A$4,OptionPage!$A$7)*I$3,PutTheta($A98,I$5,OptionPage!$A$9,OptionPage!$A$6,OptionPage!$A$4,OptionPage!$A$7)*I$3)) -> 0 | J98: =IF(OR(ISBLANK(J$4),LEFT(J$4,1)="s"),0,IF(LEFT(J$4,1)="c",CallTheta($A98,J$5,OptionPage!$A$9,OptionPage!$A$6,OptionPage!$A$4,OptionPage!$A$7)*J$3,PutTheta($A98,J$5,OptionPage!$A$9,OptionPage!$A$6,OptionPage!$A$4,OptionPage!$A$7)*J$3)) -> 0 | K98: =IF(OR(ISBLANK(K$4),LEFT(K$4,1)="s"),0,IF(LEFT(K$4,1)="c",CallTheta($A98,K$5,OptionPage!$A$9,OptionPage!$A$6,OptionPage!$A$4,OptionPage!$A$7)*K$3,PutTheta($A98,K$5,OptionPage!$A$9,OptionPage!$A$6,OptionPage!$A$4,OptionPage!$A$7)*K$3)) -> 0 | L98: 0.0156179517
A99: =A98+$A$17 -> 27 | B99: =IF(OR(ISBLANK(B$4),LEFT(B$4,1)="s"),0,IF(LEFT(B$4,1)="c",CallTheta($A99,B$5,OptionPage!$A$9,OptionPage!$A$6,OptionPage!$A$4,OptionPage!$A$7)*B$3,PutTheta($A99,B$5,OptionPage!$A$9,OptionPage!$A$6,OptionPage!$A$4,OptionPage!$A$7)*B$3)) -> 0 | C99: =IF(OR(ISBLANK(C$4),LEFT(C$4,1)="s"),0,IF(LEFT(C$4,1)="c",CallTheta($A99,C$5,OptionPage!$A$9,OptionPage!$A$6,OptionPage!$A$4,OptionPage!$A$7)*C$3,PutTheta($A99,C$5,OptionPage!$A$9,OptionPage!$A$6,OptionPage!$A$4,OptionPage!$A$7)*C$3)) -> 0.01190981273 | D99: =IF(OR(ISBLANK(D$4),LEFT(D$4,1)="s"),0,IF(LEFT(D$4,1)="c",CallTheta($A99,D$5,OptionPage!$A$9,OptionPage!$A$6,OptionPage!$A$4,OptionPage!$A$7)*D$3,PutTheta($A99,D$5,OptionPage!$A$9,OptionPage!$A$6,OptionPage!$A$4,OptionPage!$A$7)*D$3)) -> 0 | E99: =IF(OR(ISBLANK(E$4),LEFT(E$4,1)="s"),0,IF(LEFT(E$4,1)="c",CallTheta($A99,E$5,OptionPage!$A$9,OptionPage!$A$6,OptionPage!$A$4,OptionPage!$A$7)*E$3,PutTheta($A99,E$5,OptionPage!$A$9,OptionPage!$A$6,OptionPage!$A$4,OptionPage!$A$7)*E$3)) -> 0 | F99: =IF(OR(ISBLANK(F$4),LEFT(F$4,1)="s"),0,IF(LEFT(F$4,1)="c",CallTheta($A99,F$5,OptionPage!$A$9,OptionPage!$A$6,OptionPage!$A$4,OptionPage!$A$7)*F$3,PutTheta($A99,F$5,OptionPage!$A$9,OptionPage!$A$6,OptionPage!$A$4,OptionPage!$A$7)*F$3)) -> 0 | G99: =IF(OR(ISBLANK(G$4),LEFT(G$4,1)="s"),0,IF(LEFT(G$4,1)="c",CallTheta($A99,G$5,OptionPage!$A$9,OptionPage!$A$6,OptionPage!$A$4,OptionPage!$A$7)*G$3,PutTheta($A99,G$5,OptionPage!$A$9,OptionPage!$A$6,OptionPage!$A$4,OptionPage!$A$7)*G$3)) -> 0 | H99: =IF(OR(ISBLANK(H$4),LEFT(H$4,1)="s"),0,IF(LEFT(H$4,1)="c",CallTheta($A99,H$5,OptionPage!$A$9,OptionPage!$A$6,OptionPage!$A$4,OptionPage!$A$7)*H$3,PutTheta($A99,H$5,OptionPage!$A$9,OptionPage!$A$6,OptionPage!$A$4,OptionPage!$A$7)*H$3)) -> 0 | I99: =IF(OR(ISBLANK(I$4),LEFT(I$4,1)="s"),0,IF(LEFT(I$4,1)="c",CallTheta($A99,I$5,OptionPage!$A$9,OptionPage!$A$6,OptionPage!$A$4,OptionPage!$A$7)*I$3,PutTheta($A99,I$5,OptionPage!$A$9,OptionPage!$A$6,OptionPage!$A$4,OptionPage!$A$7)*I$3)) -> 0 | J99: =IF(OR(ISBLANK(J$4),LEFT(J$4,1)="s"),0,IF(LEFT(J$4,1)="c",CallTheta($A99,J$5,OptionPage!$A$9,OptionPage!$A$6,OptionPage!$A$4,OptionPage!$A$7)*J$3,PutTheta($A99,J$5,OptionPage!$A$9,OptionPage!$A$6,OptionPage!$A$4,OptionPage!$A$7)*J$3)) -> 0 | K99: =IF(OR(ISBLANK(K$4),LEFT(K$4,1)="s"),0,IF(LEFT(K$4,1)="c",CallTheta($A99,K$5,OptionPage!$A$9,OptionPage!$A$6,OptionPage!$A$4,OptionPage!$A$7)*K$3,PutTheta($A99,K$5,OptionPage!$A$9,OptionPage!$A$6,OptionPage!$A$4,OptionPage!$A$7)*K$3)) -> 0 | L99: 0.01190981273
A100: =A99+$A$17 -> 28 | B100: =IF(OR(ISBLANK(B$4),LEFT(B$4,1)="s"),0,IF(LEFT(B$4,1)="c",CallTheta($A100,B$5,OptionPage!$A$9,OptionPage!$A$6,OptionPage!$A$4,OptionPage!$A$7)*B$3,PutTheta($A100,B$5,OptionPage!$A$9,OptionPage!$A$6,OptionPage!$A$4,OptionPage!$A$7)*B$3)) -> 0 | C100: =IF(OR(ISBLANK(C$4),LEFT(C$4,1)="s"),0,IF(LEFT(C$4,1)="c",CallTheta($A100,C$5,OptionPage!$A$9,OptionPage!$A$6,OptionPage!$A$4,OptionPage!$A$7)*C$3,PutTheta($A100,C$5,OptionPage!$A$9,OptionPage!$A$6,OptionPage!$A$4,OptionPage!$A$7)*C$3)) -> 0.007935268208 | D100: =IF(OR(ISBLANK(D$4),LEFT(D$4,1)="s"),0,IF(LEFT(D$4,1)="c",CallTheta($A100,D$5,OptionPage!$A$9,OptionPage!$A$6,OptionPage!$A$4,OptionPage!$A$7)*D$3,PutTheta($A100,D$5,OptionPage!$A$9,OptionPage!$A$6,OptionPage!$A$4,OptionPage!$A$7)*D$3)) -> 0 | E100: =IF(OR(ISBLANK(E$4),LEFT(E$4,1)="s"),0,IF(LEFT(E$4,1)="c",CallTheta($A100,E$5,OptionPage!$A$9,OptionPage!$A$6,OptionPage!$A$4,OptionPage!$A$7)*E$3,PutTheta($A100,E$5,OptionPage!$A$9,OptionPage!$A$6,OptionPage!$A$4,OptionPage!$A$7)*E$3)) -> 0 | F100: =IF(OR(ISBLANK(F$4),LEFT(F$4,1)="s"),0,IF(LEFT(F$4,1)="c",CallTheta($A100,F$5,OptionPage!$A$9,OptionPage!$A$6,OptionPage!$A$4,OptionPage!$A$7)*F$3,PutTheta($A100,F$5,OptionPage!$A$9,OptionPage!$A$6,OptionPage!$A$4,OptionPage!$A$7)*F$3)) -> 0 | G100: =IF(OR(ISBLANK(G$4),LEFT(G$4,1)="s"),0,IF(LEFT(G$4,1)="c",CallTheta($A100,G$5,OptionPage!$A$9,OptionPage!$A$6,OptionPage!$A$4,OptionPage!$A$7)*G$3,PutTheta($A100,G$5,OptionPage!$A$9,OptionPage!$A$6,OptionPage!$A$4,OptionPage!$A$7)*G$3)) -> 0 | H100: =IF(OR(ISBLANK(H$4),LEFT(H$4,1)="s"),0,IF(LEFT(H$4,1)="c",CallTheta($A100,H$5,OptionPage!$A$9,OptionPage!$A$6,OptionPage!$A$4,OptionPage!$A$7)*H$3,PutTheta($A100,H$5,OptionPage!$A$9,OptionPage!$A$6,OptionPage!$A$4,OptionPage!$A$7)*H$3)) -> 0 | I100: =IF(OR(ISBLANK(I$4),LEFT(I$4,1)="s"),0,IF(LEFT(I$4,1)="c",CallTheta($A100,I$5,OptionPage!$A$9,OptionPage!$A$6,OptionPage!$A$4,OptionPage!$A$7)*I$3,PutTheta($A100,I$5,OptionPage!$A$9,OptionPage!$A$6,OptionPage!$A$4,OptionPage!$A$7)*I$3)) -> 0 | J100: =IF(OR(ISBLANK(J$4),LEFT(J$4,1)="s"),0,IF(LEFT(J$4,1)="c",CallTheta($A100,J$5,OptionPage!$A$9,OptionPage!$A$6,OptionPage!$A$4,OptionPage!$A$7)*J$3,PutTheta($A100,J$5,OptionPage!$A$9,OptionPage!$A$6,OptionPage!$A$4,OptionPage!$A$7)*J$3)) -> 0 | K100: =IF(OR(ISBLANK(K$4),LEFT(K$4,1)="s"),0,IF(LEFT(K$4,1)="c",CallTheta($A100,K$5,OptionPage!$A$9,OptionPage!$A$6,OptionPage!$A$4,OptionPage!$A$7)*K$3,PutTheta($A100,K$5,OptionPage!$A$9,OptionPage!$A$6,OptionPage!$A$4,OptionPage!$A$7)*K$3)) -> 0 | L100: 0.007935268208
A101: =A100+$A$17 -> 29 | B101: =IF(OR(ISBLANK(B$4),LEFT(B$4,1)="s"),0,IF(LEFT(B$4,1)="c",CallTheta($A101,B$5,OptionPage!$A$9,OptionPage!$A$6,OptionPage!$A$4,OptionPage!$A$7)*B$3,PutTheta($A101,B$5,OptionPage!$A$9,OptionPage!$A$6,OptionPage!$A$4,OptionPage!$A$7)*B$3)) -> 0 | C101: =IF(OR(ISBLANK(C$4),LEFT(C$4,1)="s"),0,IF(LEFT(C$4,1)="c",CallTheta($A101,C$5,OptionPage!$A$9,OptionPage!$A$6,OptionPage!$A$4,OptionPage!$A$7)*C$3,PutTheta($A101,C$5,OptionPage!$A$9,OptionPage!$A$6,OptionPage!$A$4,OptionPage!$A$7)*C$3)) -> 0.005069598337 | D101: =IF(OR(ISBLANK(D$4),LEFT(D$4,1)="s"),0,IF(LEFT(D$4,1)="c",CallTheta($A101,D$5,OptionPage!$A$9,OptionPage!$A$6,OptionPage!$A$4,OptionPage!$A$7)*D$3,PutTheta($A101,D$5,OptionPage!$A$9,OptionPage!$A$6,OptionPage!$A$4,OptionPage!$A$7)*D$3)) -> 0 | E101: =IF(OR(ISBLANK(E$4),LEFT(E$4,1)="s"),0,IF(LEFT(E$4,1)="c",CallTheta($A101,E$5,OptionPage!$A$9,OptionPage!$A$6,OptionPage!$A$4,OptionPage!$A$7)*E$3,PutTheta($A101,E$5,OptionPage!$A$9,OptionPage!$A$6,OptionPage!$A$4,OptionPage!$A$7)*E$3)) -> 0 | F101: =IF(OR(ISBLANK(F$4),LEFT(F$4,1)="s"),0,IF(LEFT(F$4,1)="c",CallTheta($A101,F$5,OptionPage!$A$9,OptionPage!$A$6,OptionPage!$A$4,OptionPage!$A$7)*F$3,PutTheta($A101,F$5,OptionPage!$A$9,OptionPage!$A$6,OptionPage!$A$4,OptionPage!$A$7)*F$3)) -> 0 | G101: =IF(OR(ISBLANK(G$4),LEFT(G$4,1)="s"),0,IF(LEFT(G$4,1)="c",CallTheta($A101,G$5,OptionPage!$A$9,OptionPage!$A$6,OptionPage!$A$4,OptionPage!$A$7)*G$3,PutTheta($A101,G$5,OptionPage!$A$9,OptionPage!$A$6,OptionPage!$A$4,OptionPage!$A$7)*G$3)) -> 0 | H101: =IF(OR(ISBLANK(H$4),LEFT(H$4,1)="s"),0,IF(LEFT(H$4,1)="c",CallTheta($A101,H$5,OptionPage!$A$9,OptionPage!$A$6,OptionPage!$A$4,OptionPage!$A$7)*H$3,PutTheta($A101,H$5,OptionPage!$A$9,OptionPage!$A$6,OptionPage!$A$4,OptionPage!$A$7)*H$3)) -> 0 | I101: =IF(OR(ISBLANK(I$4),LEFT(I$4,1)="s"),0,IF(LEFT(I$4,1)="c",CallTheta($A101,I$5,OptionPage!$A$9,OptionPage!$A$6,OptionPage!$A$4,OptionPage!$A$7)*I$3,PutTheta($A101,I$5,OptionPage!$A$9,OptionPage!$A$6,OptionPage!$A$4,OptionPage!$A$7)*I$3)) -> 0 | J101: =IF(OR(ISBLANK(J$4),LEFT(J$4,1)="s"),0,IF(LEFT(J$4,1)="c",CallTheta($A101,J$5,OptionPage!$A$9,OptionPage!$A$6,OptionPage!$A$4,OptionPage!$A$7)*J$3,PutTheta($A101,J$5,OptionPage!$A$9,OptionPage!$A$6,OptionPage!$A$4,OptionPage!$A$7)*J$3)) -> 0 | K101: =IF(OR(ISBLANK(K$4),LEFT(K$4,1)="s"),0,IF(LEFT(K$4,1)="c",CallTheta($A101,K$5,OptionPage!$A$9,OptionPage!$A$6,OptionPage!$A$4,OptionPage!$A$7)*K$3,PutTheta($A101,K$5,OptionPage!$A$9,OptionPage!$A$6,OptionPage!$A$4,OptionPage!$A$7)*K$3)) -> 0 | L101: 0.005069598337
A102: =A101+$A$17 -> 30 | B102: =IF(OR(ISBLANK(B$4),LEFT(B$4,1)="s"),0,IF(LEFT(B$4,1)="c",CallTheta($A102,B$5,OptionPage!$A$9,OptionPage!$A$6,OptionPage!$A$4,OptionPage!$A$7)*B$3,PutTheta($A102,B$5,OptionPage!$A$9,OptionPage!$A$6,OptionPage!$A$4,OptionPage!$A$7)*B$3)) -> 0 | C102: =IF(OR(ISBLANK(C$4),LEFT(C$4,1)="s"),0,IF(LEFT(C$4,1)="c",CallTheta($A102,C$5,OptionPage!$A$9,OptionPage!$A$6,OptionPage!$A$4,OptionPage!$A$7)*C$3,PutTheta($A102,C$5,OptionPage!$A$9,OptionPage!$A$6,OptionPage!$A$4,OptionPage!$A$7)*C$3)) -> 0.00348676021 | D102: =IF(OR(ISBLANK(D$4),LEFT(D$4,1)="s"),0,IF(LEFT(D$4,1)="c",CallTheta($A102,D$5,OptionPage!$A$9,OptionPage!$A$6,OptionPage!$A$4,OptionPage!$A$7)*D$3,PutTheta($A102,D$5,OptionPage!$A$9,OptionPage!$A$6,OptionPage!$A$4,OptionPage!$A$7)*D$3)) -> 0 | E102: =IF(OR(ISBLANK(E$4),LEFT(E$4,1)="s"),0,IF(LEFT(E$4,1)="c",CallTheta($A102,E$5,OptionPage!$A$9,OptionPage!$A$6,OptionPage!$A$4,OptionPage!$A$7)*E$3,PutTheta($A102,E$5,OptionPage!$A$9,OptionPage!$A$6,OptionPage!$A$4,OptionPage!$A$7)*E$3)) -> 0 | F102: =IF(OR(ISBLANK(F$4),LEFT(F$4,1)="s"),0,IF(LEFT(F$4,1)="c",CallTheta($A102,F$5,OptionPage!$A$9,OptionPage!$A$6,OptionPage!$A$4,OptionPage!$A$7)*F$3,PutTheta($A102,F$5,OptionPage!$A$9,OptionPage!$A$6,OptionPage!$A$4,OptionPage!$A$7)*F$3)) -> 0 | G102: =IF(OR(ISBLANK(G$4),LEFT(G$4,1)="s"),0,IF(LEFT(G$4,1)="c",CallTheta($A102,G$5,OptionPage!$A$9,OptionPage!$A$6,OptionPage!$A$4,OptionPage!$A$7)*G$3,PutTheta($A102,G$5,OptionPage!$A$9,OptionPage!$A$6,OptionPage!$A$4,OptionPage!$A$7)*G$3)) -> 0 | H102: =IF(OR(ISBLANK(H$4),LEFT(H$4,1)="s"),0,IF(LEFT(H$4,1)="c",CallTheta($A102,H$5,OptionPage!$A$9,OptionPage!$A$6,OptionPage!$A$4,OptionPage!$A$7)*H$3,PutTheta($A102,H$5,OptionPage!$A$9,OptionPage!$A$6,OptionPage!$A$4,OptionPage!$A$7)*H$3)) -> 0 | I102: =IF(OR(ISBLANK(I$4),LEFT(I$4,1)="s"),0,IF(LEFT(I$4,1)="c",CallTheta($A102,I$5,OptionPage!$A$9,OptionPage!$A$6,OptionPage!$A$4,OptionPage!$A$7)*I$3,PutTheta($A102,I$5,OptionPage!$A$9,OptionPage!$A$6,OptionPage!$A$4,OptionPage!$A$7)*I$3)) -> 0 | J102: =IF(OR(ISBLANK(J$4),LEFT(J$4,1)="s"),0,IF(LEFT(J$4,1)="c",CallTheta($A102,J$5,OptionPage!$A$9,OptionPage!$A$6,OptionPage!$A$4,OptionPage!$A$7)*J$3,PutTheta($A102,J$5,OptionPage!$A$9,OptionPage!$A$6,OptionPage!$A$4,OptionPage!$A$7)*J$3)) -> 0 | K102: =IF(OR(ISBLANK(K$4),LEFT(K$4,1)="s"),0,IF(LEFT(K$4,1)="c",CallTheta($A102,K$5,OptionPage!$A$9,OptionPage!$A$6,OptionPage!$A$4,OptionPage!$A$7)*K$3,PutTheta($A102,K$5,OptionPage!$A$9,OptionPage!$A$6,OptionPage!$A$4,OptionPage!$A$7)*K$3)) -> 0 | L102: 0.00348676021
B104: Current Position Vega Relative to Underlying Price Changes
A105: Underlying Price | B105: Strat1 | C105: Strat2 | D105: Strat3 | E105: Strat4 | F105: Strat5 | G105: Strat6 | H105: Strat7 | I105: Strat8 | J105: Strat9 | K105: Strat10 | L105: Total
A106: =A107-$A$17 -> 20 | B106: =IF(OR(ISBLANK(B$4),LEFT(B$4,1)="s"),0,vega($A106,B$5,OptionPage!$A$9,OptionPage!$A$6,OptionPage!$A$4,OptionPage!$A$7)*B$3) -> 0 | C106: =IF(OR(ISBLANK(C$4),LEFT(C$4,1)="s"),0,vega($A106,C$5,OptionPage!$A$9,OptionPage!$A$6,OptionPage!$A$4,OptionPage!$A$7)*C$3) -> -0.0004263440665 | D106: =IF(OR(ISBLANK(D$4),LEFT(D$4,1)="s"),0,vega($A106,D$5,OptionPage!$A$9,OptionPage!$A$6,OptionPage!$A$4,OptionPage!$A$7)*D$3) -> 0 | E106: =IF(OR(ISBLANK(E$4),LEFT(E$4,1)="s"),0,vega($A106,E$5,OptionPage!$A$9,OptionPage!$A$6,OptionPage!$A$4,OptionPage!$A$7)*E$3) -> 0 | F106: =IF(OR(ISBLANK(F$4),LEFT(F$4,1)="s"),0,vega($A106,F$5,OptionPage!$A$9,OptionPage!$A$6,OptionPage!$A$4,OptionPage!$A$7)*F$3) -> 0 | G106: =IF(OR(ISBLANK(G$4),LEFT(G$4,1)="s"),0,vega($A106,G$5,OptionPage!$A$9,OptionPage!$A$6,OptionPage!$A$4,OptionPage!$A$7)*G$3) -> 0 | H106: =IF(OR(ISBLANK(H$4),LEFT(H$4,1)="s"),0,vega($A106,H$5,OptionPage!$A$9,OptionPage!$A$6,OptionPage!$A$4,OptionPage!$A$7)*H$3) -> 0 | I106: =IF(OR(ISBLANK(I$4),LEFT(I$4,1)="s"),0,vega($A106,I$5,OptionPage!$A$9,OptionPage!$A$6,OptionPage!$A$4,OptionPage!$A$7)*I$3) -> 0 | J106: =IF(OR(ISBLANK(J$4),LEFT(J$4,1)="s"),0,vega($A106,J$5,OptionPage!$A$9,OptionPage!$A$6,OptionPage!$A$4,OptionPage!$A$7)*J$3) -> 0 | K106: =IF(OR(ISBLANK(K$4),LEFT(K$4,1)="s"),0,vega($A106,K$5,OptionPage!$A$9,OptionPage!$A$6,OptionPage!$A$4,OptionPage!$A$7)*K$3) -> 0 | L106: =SUM(B106:K106) -> -0.0004263440665
A107: =A108-$A$17 -> 21 | B107: =IF(OR(ISBLANK(B$4),LEFT(B$4,1)="s"),0,vega($A107,B$5,OptionPage!$A$9,OptionPage!$A$6,OptionPage!$A$4,OptionPage!$A$7)*B$3) -> 0 | C107: =IF(OR(ISBLANK(C$4),LEFT(C$4,1)="s"),0,vega($A107,C$5,OptionPage!$A$9,OptionPage!$A$6,OptionPage!$A$4,OptionPage!$A$7)*C$3) -> -0.002089278709 | D107: =IF(OR(ISBLANK(D$4),LEFT(D$4,1)="s"),0,vega($A107,D$5,OptionPage!$A$9,OptionPage!$A$6,OptionPage!$A$4,OptionPage!$A$7)*D$3) -> 0 | E107: =IF(OR(ISBLANK(E$4),LEFT(E$4,1)="s"),0,vega($A107,E$5,OptionPage!$A$9,OptionPage!$A$6,OptionPage!$A$4,OptionPage!$A$7)*E$3) -> 0 | F107: =IF(OR(ISBLANK(F$4),LEFT(F$4,1)="s"),0,vega($A107,F$5,OptionPage!$A$9,OptionPage!$A$6,OptionPage!$A$4,OptionPage!$A$7)*F$3) -> 0 | G107: =IF(OR(ISBLANK(G$4),LEFT(G$4,1)="s"),0,vega($A107,G$5,OptionPage!$A$9,OptionPage!$A$6,OptionPage!$A$4,OptionPage!$A$7)*G$3) -> 0 | H107: =IF(OR(ISBLANK(H$4),LEFT(H$4,1)="s"),0,vega($A107,H$5,OptionPage!$A$9,OptionPage!$A$6,OptionPage!$A$4,OptionPage!$A$7)*H$3) -> 0 | I107: =IF(OR(ISBLANK(I$4),LEFT(I$4,1)="s"),0,vega($A107,I$5,OptionPage!$A$9,OptionPage!$A$6,OptionPage!$A$4,OptionPage!$A$7)*I$3) -> 0 | J107: =IF(OR(ISBLANK(J$4),LEFT(J$4,1)="s"),0,vega($A107,J$5,OptionPage!$A$9,OptionPage!$A$6,OptionPage!$A$4,OptionPage!$A$7)*J$3) -> 0 | K107: =IF(OR(ISBLANK(K$4),LEFT(K$4,1)="s"),0,vega($A107,K$5,OptionPage!$A$9,OptionPage!$A$6,OptionPage!$A$4,OptionPage!$A$7)*K$3) -> 0 | L107: =SUM(B107:K107) -> -0.002089278709
A108: =A109-$A$17 -> 22 | B108: =IF(OR(ISBLANK(B$4),LEFT(B$4,1)="s"),0,vega($A108,B$5,OptionPage!$A$9,OptionPage!$A$6,OptionPage!$A$4,OptionPage!$A$7)*B$3) -> 0 | C108: =IF(OR(ISBLANK(C$4),LEFT(C$4,1)="s"),0,vega($A108,C$5,OptionPage!$A$9,OptionPage!$A$6,OptionPage!$A$4,OptionPage!$A$7)*C$3) -> -0.006636361756 | D108: =IF(OR(ISBLANK(D$4),LEFT(D$4,1)="s"),0,vega($A108,D$5,OptionPage!$A$9,OptionPage!$A$6,OptionPage!$A$4,OptionPage!$A$7)*D$3) -> 0 | E108: =IF(OR(ISBLANK(E$4),LEFT(E$4,1)="s"),0,vega($A108,E$5,OptionPage!$A$9,OptionPage!$A$6,OptionPage!$A$4,OptionPage!$A$7)*E$3) -> 0 | F108: =IF(OR(ISBLANK(F$4),LEFT(F$4,1)="s"),0,vega($A108,F$5,OptionPage!$A$9,OptionPage!$A$6,OptionPage!$A$4,OptionPage!$A$7)*F$3) -> 0 | G108: =IF(OR(ISBLANK(G$4),LEFT(G$4,1)="s"),0,vega($A108,G$5,OptionPage!$A$9,OptionPage!$A$6,OptionPage!$A$4,OptionPage!$A$7)*G$3) -> 0 | H108: =IF(OR(ISBLANK(H$4),LEFT(H$4,1)="s"),0,vega($A108,H$5,OptionPage!$A$9,OptionPage!$A$6,OptionPage!$A$4,OptionPage!$A$7)*H$3) -> 0 | I108: =IF(OR(ISBLANK(I$4),LEFT(I$4,1)="s"),0,vega($A108,I$5,OptionPage!$A$9,OptionPage!$A$6,OptionPage!$A$4,OptionPage!$A$7)*I$3) -> 0 | J108: =IF(OR(ISBLANK(J$4),LEFT(J$4,1)="s"),0,vega($A108,J$5,OptionPage!$A$9,OptionPage!$A$6,OptionPage!$A$4,OptionPage!$A$7)*J$3) -> 0 | K108: =IF(OR(ISBLANK(K$4),LEFT(K$4,1)="s"),0,vega($A108,K$5,OptionPage!$A$9,OptionPage!$A$6,OptionPage!$A$4,OptionPage!$A$7)*K$3) -> 0 | L108: -0.006636361756
A109: =A110-$A$17 -> 23 | B109: =IF(OR(ISBLANK(B$4),LEFT(B$4,1)="s"),0,vega($A109,B$5,OptionPage!$A$9,OptionPage!$A$6,OptionPage!$A$4,OptionPage!$A$7)*B$3) -> 0 | C109: =IF(OR(ISBLANK(C$4),LEFT(C$4,1)="s"),0,vega($A109,C$5,OptionPage!$A$9,OptionPage!$A$6,OptionPage!$A$4,OptionPage!$A$7)*C$3) -> -0.01442443263 | D109: =IF(OR(ISBLANK(D$4),LEFT(D$4,1)="s"),0,vega($A109,D$5,OptionPage!$A$9,OptionPage!$A$6,OptionPage!$A$4,OptionPage!$A$7)*D$3) -> 0 | E109: =IF(OR(ISBLANK(E$4),LEFT(E$4,1)="s"),0,vega($A109,E$5,OptionPage!$A$9,OptionPage!$A$6,OptionPage!$A$4,OptionPage!$A$7)*E$3) -> 0 | F109: =IF(OR(ISBLANK(F$4),LEFT(F$4,1)="s"),0,vega($A109,F$5,OptionPage!$A$9,OptionPage!$A$6,OptionPage!$A$4,OptionPage!$A$7)*F$3) -> 0 | G109: =IF(OR(ISBLANK(G$4),LEFT(G$4,1)="s"),0,vega($A109,G$5,OptionPage!$A$9,OptionPage!$A$6,OptionPage!$A$4,OptionPage!$A$7)*G$3) -> 0 | H109: =IF(OR(ISBLANK(H$4),LEFT(H$4,1)="s"),0,vega($A109,H$5,OptionPage!$A$9,OptionPage!$A$6,OptionPage!$A$4,OptionPage!$A$7)*H$3) -> 0 | I109: =IF(OR(ISBLANK(I$4),LEFT(I$4,1)="s"),0,vega($A109,I$5,OptionPage!$A$9,OptionPage!$A$6,OptionPage!$A$4,OptionPage!$A$7)*I$3) -> 0 | J109: =IF(OR(ISBLANK(J$4),LEFT(J$4,1)="s"),0,vega($A109,J$5,OptionPage!$A$9,OptionPage!$A$6,OptionPage!$A$4,OptionPage!$A$7)*J$3) -> 0 | K109: =IF(OR(ISBLANK(K$4),LEFT(K$4,1)="s"),0,vega($A109,K$5,OptionPage!$A$9,OptionPage!$A$6,OptionPage!$A$4,OptionPage!$A$7)*K$3) -> 0 | L109: -0.01442443263
A110: =A111-$A$17 -> 24 | B110: =IF(OR(ISBLANK(B$4),LEFT(B$4,1)="s"),0,vega($A110,B$5,OptionPage!$A$9,OptionPage!$A$6,OptionPage!$A$4,OptionPage!$A$7)*B$3) -> 0 | C110: =IF(OR(ISBLANK(C$4),LEFT(C$4,1)="s"),0,vega($A110,C$5,OptionPage!$A$9,OptionPage!$A$6,OptionPage!$A$4,OptionPage!$A$7)*C$3) -> -0.02246296633 | D110: =IF(OR(ISBLANK(D$4),LEFT(D$4,1)="s"),0,vega($A110,D$5,OptionPage!$A$9,OptionPage!$A$6,OptionPage!$A$4,OptionPage!$A$7)*D$3) -> 0 | E110: =IF(OR(ISBLANK(E$4),LEFT(E$4,1)="s"),0,vega($A110,E$5,OptionPage!$A$9,OptionPage!$A$6,OptionPage!$A$4,OptionPage!$A$7)*E$3) -> 0 | F110: =IF(OR(ISBLANK(F$4),LEFT(F$4,1)="s"),0,vega($A110,F$5,OptionPage!$A$9,OptionPage!$A$6,OptionPage!$A$4,OptionPage!$A$7)*F$3) -> 0 | G110: =IF(OR(ISBLANK(G$4),LEFT(G$4,1)="s"),0,vega($A110,G$5,OptionPage!$A$9,OptionPage!$A$6,OptionPage!$A$4,OptionPage!$A$7)*G$3) -> 0 | H110: =IF(OR(ISBLANK(H$4),LEFT(H$4,1)="s"),0,vega($A110,H$5,OptionPage!$A$9,OptionPage!$A$6,OptionPage!$A$4,OptionPage!$A$7)*H$3) -> 0 | I110: =IF(OR(ISBLANK(I$4),LEFT(I$4,1)="s"),0,vega($A110,I$5,OptionPage!$A$9,OptionPage!$A$6,OptionPage!$A$4,OptionPage!$A$7)*I$3) -> 0 | J110: =IF(OR(ISBLANK(J$4),LEFT(J$4,1)="s"),0,vega($A110,J$5,OptionPage!$A$9,OptionPage!$A$6,OptionPage!$A$4,OptionPage!$A$7)*J$3) -> 0 | K110: =IF(OR(ISBLANK(K$4),LEFT(K$4,1)="s"),0,vega($A110,K$5,OptionPage!$A$9,OptionPage!$A$6,OptionPage!$A$4,OptionPage!$A$7)*K$3) -> 0 | L110: -0.02246296633
A111: =OptionPage!$A$2 -> 25 | B111: =IF(OR(ISBLANK(B$4),LEFT(B$4,1)="s"),0,vega($A111,B$5,OptionPage!$A$9,OptionPage!$A$6,OptionPage!$A$4,OptionPage!$A$7)*B$3) -> 0 | C111: =IF(OR(ISBLANK(C$4),LEFT(C$4,1)="s"),0,vega($A111,C$5,OptionPage!$A$9,OptionPage!$A$6,OptionPage!$A$4,OptionPage!$A$7)*C$3) -> -0.02606625999 | D111: =IF(OR(ISBLANK(D$4),LEFT(D$4,1)="s"),0,vega($A111,D$5,OptionPage!$A$9,OptionPage!$A$6,OptionPage!$A$4,OptionPage!$A$7)*D$3) -> 0 | E111: =IF(OR(ISBLANK(E$4),LEFT(E$4,1)="s"),0,vega($A111,E$5,OptionPage!$A$9,OptionPage!$A$6,OptionPage!$A$4,OptionPage!$A$7)*E$3) -> 0 | F111: =IF(OR(ISBLANK(F$4),LEFT(F$4,1)="s"),0,vega($A111,F$5,OptionPage!$A$9,OptionPage!$A$6,OptionPage!$A$4,OptionPage!$A$7)*F$3) -> 0 | G111: =IF(OR(ISBLANK(G$4),LEFT(G$4,1)="s"),0,vega($A111,G$5,OptionPage!$A$9,OptionPage!$A$6,OptionPage!$A$4,OptionPage!$A$7)*G$3) -> 0 | H111: =IF(OR(ISBLANK(H$4),LEFT(H$4,1)="s"),0,vega($A111,H$5,OptionPage!$A$9,OptionPage!$A$6,OptionPage!$A$4,OptionPage!$A$7)*H$3) -> 0 | I111: =IF(OR(ISBLANK(I$4),LEFT(I$4,1)="s"),0,vega($A111,I$5,OptionPage!$A$9,OptionPage!$A$6,OptionPage!$A$4,OptionPage!$A$7)*I$3) -> 0 | J111: =IF(OR(ISBLANK(J$4),LEFT(J$4,1)="s"),0,vega($A111,J$5,OptionPage!$A$9,OptionPage!$A$6,OptionPage!$A$4,OptionPage!$A$7)*J$3) -> 0 | K111: =IF(OR(ISBLANK(K$4),LEFT(K$4,1)="s"),0,vega($A111,K$5,OptionPage!$A$9,OptionPage!$A$6,OptionPage!$A$4,OptionPage!$A$7)*K$3) -> 0 | L111: -0.02606625999
A112: =A111+$A$17 -> 26 | B112: =IF(OR(ISBLANK(B$4),LEFT(B$4,1)="s"),0,vega($A112,B$5,OptionPage!$A$9,OptionPage!$A$6,OptionPage!$A$4,OptionPage!$A$7)*B$3) -> 0 | C112: =IF(OR(ISBLANK(C$4),LEFT(C$4,1)="s"),0,vega($A112,C$5,OptionPage!$A$9,OptionPage!$A$6,OptionPage!$A$4,OptionPage!$A$7)*C$3) -> -0.02331145798 | D112: =IF(OR(ISBLANK(D$4),LEFT(D$4,1)="s"),0,vega($A112,D$5,OptionPage!$A$9,OptionPage!$A$6,OptionPage!$A$4,OptionPage!$A$7)*D$3) -> 0 | E112: =IF(OR(ISBLANK(E$4),LEFT(E$4,1)="s"),0,vega($A112,E$5,OptionPage!$A$9,OptionPage!$A$6,OptionPage!$A$4,OptionPage!$A$7)*E$3) -> 0 | F112: =IF(OR(ISBLANK(F$4),LEFT(F$4,1)="s"),0,vega($A112,F$5,OptionPage!$A$9,OptionPage!$A$6,OptionPage!$A$4,OptionPage!$A$7)*F$3) -> 0 | G112: =IF(OR(ISBLANK(G$4),LEFT(G$4,1)="s"),0,vega($A112,G$5,OptionPage!$A$9,OptionPage!$A$6,OptionPage!$A$4,OptionPage!$A$7)*G$3) -> 0 | H112: =IF(OR(ISBLANK(H$4),LEFT(H$4,1)="s"),0,vega($A112,H$5,OptionPage!$A$9,OptionPage!$A$6,OptionPage!$A$4,OptionPage!$A$7)*H$3) -> 0 | I112: =IF(OR(ISBLANK(I$4),LEFT(I$4,1)="s"),0,vega($A112,I$5,OptionPage!$A$9,OptionPage!$A$6,OptionPage!$A$4,OptionPage!$A$7)*I$3) -> 0 | J112: =IF(OR(ISBLANK(J$4),LEFT(J$4,1)="s"),0,vega($A112,J$5,OptionPage!$A$9,OptionPage!$A$6,OptionPage!$A$4,OptionPage!$A$7)*J$3) -> 0 | K112: =IF(OR(ISBLANK(K$4),LEFT(K$4,1)="s"),0,vega($A112,K$5,OptionPage!$A$9,OptionPage!$A$6,OptionPage!$A$4,OptionPage!$A$7)*K$3) -> 0 | L112: -0.02331145798
A113: =A112+$A$17 -> 27 | B113: =IF(OR(ISBLANK(B$4),LEFT(B$4,1)="s"),0,vega($A113,B$5,OptionPage!$A$9,OptionPage!$A$6,OptionPage!$A$4,OptionPage!$A$7)*B$3) -> 0 | C113: =IF(OR(ISBLANK(C$4),LEFT(C$4,1)="s"),0,vega($A113,C$5,OptionPage!$A$9,OptionPage!$A$6,OptionPage!$A$4,OptionPage!$A$7)*C$3) -> -0.0165415298 | D113: =IF(OR(ISBLANK(D$4),LEFT(D$4,1)="s"),0,vega($A113,D$5,OptionPage!$A$9,OptionPage!$A$6,OptionPage!$A$4,OptionPage!$A$7)*D$3) -> 0 | E113: =IF(OR(ISBLANK(E$4),LEFT(E$4,1)="s"),0,vega($A113,E$5,OptionPage!$A$9,OptionPage!$A$6,OptionPage!$A$4,OptionPage!$A$7)*E$3) -> 0 | F113: =IF(OR(ISBLANK(F$4),LEFT(F$4,1)="s"),0,vega($A113,F$5,OptionPage!$A$9,OptionPage!$A$6,OptionPage!$A$4,OptionPage!$A$7)*F$3) -> 0 | G113: =IF(OR(ISBLANK(G$4),LEFT(G$4,1)="s"),0,vega($A113,G$5,OptionPage!$A$9,OptionPage!$A$6,OptionPage!$A$4,OptionPage!$A$7)*G$3) -> 0 | H113: =IF(OR(ISBLANK(H$4),LEFT(H$4,1)="s"),0,vega($A113,H$5,OptionPage!$A$9,OptionPage!$A$6,OptionPage!$A$4,OptionPage!$A$7)*H$3) -> 0 | I113: =IF(OR(ISBLANK(I$4),LEFT(I$4,1)="s"),0,vega($A113,I$5,OptionPage!$A$9,OptionPage!$A$6,OptionPage!$A$4,OptionPage!$A$7)*I$3) -> 0 | J113: =IF(OR(ISBLANK(J$4),LEFT(J$4,1)="s"),0,vega($A113,J$5,OptionPage!$A$9,OptionPage!$A$6,OptionPage!$A$4,OptionPage!$A$7)*J$3) -> 0 | K113: =IF(OR(ISBLANK(K$4),LEFT(K$4,1)="s"),0,vega($A113,K$5,OptionPage!$A$9,OptionPage!$A$6,OptionPage!$A$4,OptionPage!$A$7)*K$3) -> 0 | L113: -0.0165415298
A114: =A113+$A$17 -> 28 | B114: =IF(OR(ISBLANK(B$4),LEFT(B$4,1)="s"),0,vega($A114,B$5,OptionPage!$A$9,OptionPage!$A$6,OptionPage!$A$4,OptionPage!$A$7)*B$3) -> 0 | C114: =IF(OR(ISBLANK(C$4),LEFT(C$4,1)="s"),0,vega($A114,C$5,OptionPage!$A$9,OptionPage!$A$6,OptionPage!$A$4,OptionPage!$A$7)*C$3) -> -0.00955129052 | D114: =IF(OR(ISBLANK(D$4),LEFT(D$4,1)="s"),0,vega($A114,D$5,OptionPage!$A$9,OptionPage!$A$6,OptionPage!$A$4,OptionPage!$A$7)*D$3) -> 0 | E114: =IF(OR(ISBLANK(E$4),LEFT(E$4,1)="s"),0,vega($A114,E$5,OptionPage!$A$9,OptionPage!$A$6,OptionPage!$A$4,OptionPage!$A$7)*E$3) -> 0 | F114: =IF(OR(ISBLANK(F$4),LEFT(F$4,1)="s"),0,vega($A114,F$5,OptionPage!$A$9,OptionPage!$A$6,OptionPage!$A$4,OptionPage!$A$7)*F$3) -> 0 | G114: =IF(OR(ISBLANK(G$4),LEFT(G$4,1)="s"),0,vega($A114,G$5,OptionPage!$A$9,OptionPage!$A$6,OptionPage!$A$4,OptionPage!$A$7)*G$3) -> 0 | H114: =IF(OR(ISBLANK(H$4),LEFT(H$4,1)="s"),0,vega($A114,H$5,OptionPage!$A$9,OptionPage!$A$6,OptionPage!$A$4,OptionPage!$A$7)*H$3) -> 0 | I114: =IF(OR(ISBLANK(I$4),LEFT(I$4,1)="s"),0,vega($A114,I$5,OptionPage!$A$9,OptionPage!$A$6,OptionPage!$A$4,OptionPage!$A$7)*I$3) -> 0 | J114: =IF(OR(ISBLANK(J$4),LEFT(J$4,1)="s"),0,vega($A114,J$5,OptionPage!$A$9,OptionPage!$A$6,OptionPage!$A$4,OptionPage!$A$7)*J$3) -> 0 | K114: =IF(OR(ISBLANK(K$4),LEFT(K$4,1)="s"),0,vega($A114,K$5,OptionPage!$A$9,OptionPage!$A$6,OptionPage!$A$4,OptionPage!$A$7)*K$3) -> 0 | L114: -0.00955129052
A115: =A114+$A$17 -> 29 | B115: =IF(OR(ISBLANK(B$4),LEFT(B$4,1)="s"),0,vega($A115,B$5,OptionPage!$A$9,OptionPage!$A$6,OptionPage!$A$4,OptionPage!$A$7)*B$3) -> 0 | C115: =IF(OR(ISBLANK(C$4),LEFT(C$4,1)="s"),0,vega($A115,C$5,OptionPage!$A$9,OptionPage!$A$6,OptionPage!$A$4,OptionPage!$A$7)*C$3) -> -0.00458760981 | D115: =IF(OR(ISBLANK(D$4),LEFT(D$4,1)="s"),0,vega($A115,D$5,OptionPage!$A$9,OptionPage!$A$6,OptionPage!$A$4,OptionPage!$A$7)*D$3) -> 0 | E115: =IF(OR(ISBLANK(E$4),LEFT(E$4,1)="s"),0,vega($A115,E$5,OptionPage!$A$9,OptionPage!$A$6,OptionPage!$A$4,OptionPage!$A$7)*E$3) -> 0 | F115: =IF(OR(ISBLANK(F$4),LEFT(F$4,1)="s"),0,vega($A115,F$5,OptionPage!$A$9,OptionPage!$A$6,OptionPage!$A$4,OptionPage!$A$7)*F$3) -> 0 | G115: =IF(OR(ISBLANK(G$4),LEFT(G$4,1)="s"),0,vega($A115,G$5,OptionPage!$A$9,OptionPage!$A$6,OptionPage!$A$4,OptionPage!$A$7)*G$3) -> 0 | H115: =IF(OR(ISBLANK(H$4),LEFT(H$4,1)="s"),0,vega($A115,H$5,OptionPage!$A$9,OptionPage!$A$6,OptionPage!$A$4,OptionPage!$A$7)*H$3) -> 0 | I115: =IF(OR(ISBLANK(I$4),LEFT(I$4,1)="s"),0,vega($A115,I$5,OptionPage!$A$9,OptionPage!$A$6,OptionPage!$A$4,OptionPage!$A$7)*I$3) -> 0 | J115: =IF(OR(ISBLANK(J$4),LEFT(J$4,1)="s"),0,vega($A115,J$5,OptionPage!$A$9,OptionPage!$A$6,OptionPage!$A$4,OptionPage!$A$7)*J$3) -> 0 | K115: =IF(OR(ISBLANK(K$4),LEFT(K$4,1)="s"),0,vega($A115,K$5,OptionPage!$A$9,OptionPage!$A$6,OptionPage!$A$4,OptionPage!$A$7)*K$3) -> 0 | L115: -0.00458760981
A116: =A115+$A$17 -> 30 | B116: =IF(OR(ISBLANK(B$4),LEFT(B$4,1)="s"),0,vega($A116,B$5,OptionPage!$A$9,OptionPage!$A$6,OptionPage!$A$4,OptionPage!$A$7)*B$3) -> 0 | C116: =IF(OR(ISBLANK(C$4),LEFT(C$4,1)="s"),0,vega($A116,C$5,OptionPage!$A$9,OptionPage!$A$6,OptionPage!$A$4,OptionPage!$A$7)*C$3) -> -0.001868599075 | D116: =IF(OR(ISBLANK(D$4),LEFT(D$4,1)="s"),0,vega($A116,D$5,OptionPage!$A$9,OptionPage!$A$6,OptionPage!$A$4,OptionPage!$A$7)*D$3) -> 0 | E116: =IF(OR(ISBLANK(E$4),LEFT(E$4,1)="s"),0,vega($A116,E$5,OptionPage!$A$9,OptionPage!$A$6,OptionPage!$A$4,OptionPage!$A$7)*E$3) -> 0 | F116: =IF(OR(ISBLANK(F$4),LEFT(F$4,1)="s"),0,vega($A116,F$5,OptionPage!$A$9,OptionPage!$A$6,OptionPage!$A$4,OptionPage!$A$7)*F$3) -> 0 | G116: =IF(OR(ISBLANK(G$4),LEFT(G$4,1)="s"),0,vega($A116,G$5,OptionPage!$A$9,OptionPage!$A$6,OptionPage!$A$4,OptionPage!$A$7)*G$3) -> 0 | H116: =IF(OR(ISBLANK(H$4),LEFT(H$4,1)="s"),0,vega($A116,H$5,OptionPage!$A$9,OptionPage!$A$6,OptionPage!$A$4,OptionPage!$A$7)*H$3) -> 0 | I116: =IF(OR(ISBLANK(I$4),LEFT(I$4,1)="s"),0,vega($A116,I$5,OptionPage!$A$9,OptionPage!$A$6,OptionPage!$A$4,OptionPage!$A$7)*I$3) -> 0 | J116: =IF(OR(ISBLANK(J$4),LEFT(J$4,1)="s"),0,vega($A116,J$5,OptionPage!$A$9,OptionPage!$A$6,OptionPage!$A$4,OptionPage!$A$7)*J$3) -> 0 | K116: =IF(OR(ISBLANK(K$4),LEFT(K$4,1)="s"),0,vega($A116,K$5,OptionPage!$A$9,OptionPage!$A$6,OptionPage!$A$4,OptionPage!$A$7)*K$3) -> 0 | L116: -0.001868599075
B118: Current Position Rho Relative to Underlying Price Changes
A119: Underlying Price | B119: Strat1 | C119: Strat2 | D119: Strat3 | E119: Strat4 | F119: Strat5 | G119: Strat6 | H119: Strat7 | I119: Strat8 | J119: Strat9 | K119: Strat10 | L119: Total
A120: =A121-$A$17 -> 20 | B120: =IF(OR(ISBLANK(B$4),LEFT(B$4,1)="s"),0,IF(LEFT(B$4,1)="c",CallRho($A120,B$5,OptionPage!$A$9,OptionPage!$A$6,OptionPage!$A$4,OptionPage!$A$7)*B$3,PutRho($A120,B$5,OptionPage!$A$9,OptionPage!$A$6,OptionPage!$A$4,OptionPage!$A$7)*B$3)) -> 0 | C120: =IF(OR(ISBLANK(C$4),LEFT(C$4,1)="s"),0,IF(LEFT(C$4,1)="c",CallRho($A120,C$5,OptionPage!$A$9,OptionPage!$A$6,OptionPage!$A$4,OptionPage!$A$7)*C$3,PutRho($A120,C$5,OptionPage!$A$9,OptionPage!$A$6,OptionPage!$A$4,OptionPage!$A$7)*C$3)) -> -3.52510295e-05 | D120: =IF(OR(ISBLANK(D$4),LEFT(D$4,1)="s"),0,IF(LEFT(D$4,1)="c",CallRho($A120,D$5,OptionPage!$A$9,OptionPage!$A$6,OptionPage!$A$4,OptionPage!$A$7)*D$3,PutRho($A120,D$5,OptionPage!$A$9,OptionPage!$A$6,OptionPage!$A$4,OptionPage!$A$7)*D$3)) -> 0 | E120: =IF(OR(ISBLANK(E$4),LEFT(E$4,1)="s"),0,IF(LEFT(E$4,1)="c",CallRho($A120,E$5,OptionPage!$A$9,OptionPage!$A$6,OptionPage!$A$4,OptionPage!$A$7)*E$3,PutRho($A120,E$5,OptionPage!$A$9,OptionPage!$A$6,OptionPage!$A$4,OptionPage!$A$7)*E$3)) -> 0 | F120: =IF(OR(ISBLANK(F$4),LEFT(F$4,1)="s"),0,IF(LEFT(F$4,1)="c",CallRho($A120,F$5,OptionPage!$A$9,OptionPage!$A$6,OptionPage!$A$4,OptionPage!$A$7)*F$3,PutRho($A120,F$5,OptionPage!$A$9,OptionPage!$A$6,OptionPage!$A$4,OptionPage!$A$7)*F$3)) -> 0 | G120: =IF(OR(ISBLANK(G$4),LEFT(G$4,1)="s"),0,IF(LEFT(G$4,1)="c",CallRho($A120,G$5,OptionPage!$A$9,OptionPage!$A$6,OptionPage!$A$4,OptionPage!$A$7)*G$3,PutRho($A120,G$5,OptionPage!$A$9,OptionPage!$A$6,OptionPage!$A$4,OptionPage!$A$7)*G$3)) -> 0 | H120: =IF(OR(ISBLANK(H$4),LEFT(H$4,1)="s"),0,IF(LEFT(H$4,1)="c",CallRho($A120,H$5,OptionPage!$A$9,OptionPage!$A$6,OptionPage!$A$4,OptionPage!$A$7)*H$3,PutRho($A120,H$5,OptionPage!$A$9,OptionPage!$A$6,OptionPage!$A$4,OptionPage!$A$7)*H$3)) -> 0 | I120: =IF(OR(ISBLANK(I$4),LEFT(I$4,1)="s"),0,IF(LEFT(I$4,1)="c",CallRho($A120,I$5,OptionPage!$A$9,OptionPage!$A$6,OptionPage!$A$4,OptionPage!$A$7)*I$3,PutRho($A120,I$5,OptionPage!$A$9,OptionPage!$A$6,OptionPage!$A$4,OptionPage!$A$7)*I$3)) -> 0 | J120: =IF(OR(ISBLANK(J$4),LEFT(J$4,1)="s"),0,IF(LEFT(J$4,1)="c",CallRho($A120,J$5,OptionPage!$A$9,OptionPage!$A$6,OptionPage!$A$4,OptionPage!$A$7)*J$3,PutRho($A120,J$5,OptionPage!$A$9,OptionPage!$A$6,OptionPage!$A$4,OptionPage!$A$7)*J$3)) -> 0 | K120: =IF(OR(ISBLANK(K$4),LEFT(K$4,1)="s"),0,IF(LEFT(K$4,1)="c",CallRho($A120,K$5,OptionPage!$A$9,OptionPage!$A$6,OptionPage!$A$4,OptionPage!$A$7)*K$3,PutRho($A120,K$5,OptionPage!$A$9,OptionPage!$A$6,OptionPage!$A$4,OptionPage!$A$7)*K$3)) -> 0 | L120: =SUM(B120:K120) -> -3.52510295e-05
A121: =A122-$A$17 -> 21 | B121: =IF(OR(ISBLANK(B$4),LEFT(B$4,1)="s"),0,IF(LEFT(B$4,1)="c",CallRho($A121,B$5,OptionPage!$A$9,OptionPage!$A$6,OptionPage!$A$4,OptionPage!$A$7)*B$3,PutRho($A121,B$5,OptionPage!$A$9,OptionPage!$A$6,OptionPage!$A$4,OptionPage!$A$7)*B$3)) -> 0 | C121: =IF(OR(ISBLANK(C$4),LEFT(C$4,1)="s"),0,IF(LEFT(C$4,1)="c",CallRho($A121,C$5,OptionPage!$A$9,OptionPage!$A$6,OptionPage!$A$4,OptionPage!$A$7)*C$3,PutRho($A121,C$5,OptionPage!$A$9,OptionPage!$A$6,OptionPage!$A$4,OptionPage!$A$7)*C$3)) -> -0.0002105364276 | D121: =IF(OR(ISBLANK(D$4),LEFT(D$4,1)="s"),0,IF(LEFT(D$4,1)="c",CallRho($A121,D$5,OptionPage!$A$9,OptionPage!$A$6,OptionPage!$A$4,OptionPage!$A$7)*D$3,PutRho($A121,D$5,OptionPage!$A$9,OptionPage!$A$6,OptionPage!$A$4,OptionPage!$A$7)*D$3)) -> 0 | E121: =IF(OR(ISBLANK(E$4),LEFT(E$4,1)="s"),0,IF(LEFT(E$4,1)="c",CallRho($A121,E$5,OptionPage!$A$9,OptionPage!$A$6,OptionPage!$A$4,OptionPage!$A$7)*E$3,PutRho($A121,E$5,OptionPage!$A$9,OptionPage!$A$6,OptionPage!$A$4,OptionPage!$A$7)*E$3)) -> 0 | F121: =IF(OR(ISBLANK(F$4),LEFT(F$4,1)="s"),0,IF(LEFT(F$4,1)="c",CallRho($A121,F$5,OptionPage!$A$9,OptionPage!$A$6,OptionPage!$A$4,OptionPage!$A$7)*F$3,PutRho($A121,F$5,OptionPage!$A$9,OptionPage!$A$6,OptionPage!$A$4,OptionPage!$A$7)*F$3)) -> 0 | G121: =IF(OR(ISBLANK(G$4),LEFT(G$4,1)="s"),0,IF(LEFT(G$4,1)="c",CallRho($A121,G$5,OptionPage!$A$9,OptionPage!$A$6,OptionPage!$A$4,OptionPage!$A$7)*G$3,PutRho($A121,G$5,OptionPage!$A$9,OptionPage!$A$6,OptionPage!$A$4,OptionPage!$A$7)*G$3)) -> 0 | H121: =IF(OR(ISBLANK(H$4),LEFT(H$4,1)="s"),0,IF(LEFT(H$4,1)="c",CallRho($A121,H$5,OptionPage!$A$9,OptionPage!$A$6,OptionPage!$A$4,OptionPage!$A$7)*H$3,PutRho($A121,H$5,OptionPage!$A$9,OptionPage!$A$6,OptionPage!$A$4,OptionPage!$A$7)*H$3)) -> 0 | I121: =IF(OR(ISBLANK(I$4),LEFT(I$4,1)="s"),0,IF(LEFT(I$4,1)="c",CallRho($A121,I$5,OptionPage!$A$9,OptionPage!$A$6,OptionPage!$A$4,OptionPage!$A$7)*I$3,PutRho($A121,I$5,OptionPage!$A$9,OptionPage!$A$6,OptionPage!$A$4,OptionPage!$A$7)*I$3)) -> 0 | J121: =IF(OR(ISBLANK(J$4),LEFT(J$4,1)="s"),0,IF(LEFT(J$4,1)="c",CallRho($A121,J$5,OptionPage!$A$9,OptionPage!$A$6,OptionPage!$A$4,OptionPage!$A$7)*J$3,PutRho($A121,J$5,OptionPage!$A$9,OptionPage!$A$6,OptionPage!$A$4,OptionPage!$A$7)*J$3)) -> 0 | K121: =IF(OR(ISBLANK(K$4),LEFT(K$4,1)="s"),0,IF(LEFT(K$4,1)="c",CallRho($A121,K$5,OptionPage!$A$9,OptionPage!$A$6,OptionPage!$A$4,OptionPage!$A$7)*K$3,PutRho($A121,K$5,OptionPage!$A$9,OptionPage!$A$6,OptionPage!$A$4,OptionPage!$A$7)*K$3)) -> 0 | L121: =SUM(B121:K121) -> -0.0002105364276
A122: =A123-$A$17 -> 22 | B122: =IF(OR(ISBLANK(B$4),LEFT(B$4,1)="s"),0,IF(LEFT(B$4,1)="c",CallRho($A122,B$5,OptionPage!$A$9,OptionPage!$A$6,OptionPage!$A$4,OptionPage!$A$7)*B$3,PutRho($A122,B$5,OptionPage!$A$9,OptionPage!$A$6,OptionPage!$A$4,OptionPage!$A$7)*B$3)) -> 0 | C122: =IF(OR(ISBLANK(C$4),LEFT(C$4,1)="s"),0,IF(LEFT(C$4,1)="c",CallRho($A122,C$5,OptionPage!$A$9,OptionPage!$A$6,OptionPage!$A$4,OptionPage!$A$7)*C$3,PutRho($A122,C$5,OptionPage!$A$9,OptionPage!$A$6,OptionPage!$A$4,OptionPage!$A$7)*C$3)) -> -0.0008375314183 | D122: =IF(OR(ISBLANK(D$4),LEFT(D$4,1)="s"),0,IF(LEFT(D$4,1)="c",CallRho($A122,D$5,OptionPage!$A$9,OptionPage!$A$6,OptionPage!$A$4,OptionPage!$A$7)*D$3,PutRho($A122,D$5,OptionPage!$A$9,OptionPage!$A$6,OptionPage!$A$4,OptionPage!$A$7)*D$3)) -> 0 | E122: =IF(OR(ISBLANK(E$4),LEFT(E$4,1)="s"),0,IF(LEFT(E$4,1)="c",CallRho($A122,E$5,OptionPage!$A$9,OptionPage!$A$6,OptionPage!$A$4,OptionPage!$A$7)*E$3,PutRho($A122,E$5,OptionPage!$A$9,OptionPage!$A$6,OptionPage!$A$4,OptionPage!$A$7)*E$3)) -> 0 | F122: =IF(OR(ISBLANK(F$4),LEFT(F$4,1)="s"),0,IF(LEFT(F$4,1)="c",CallRho($A122,F$5,OptionPage!$A$9,OptionPage!$A$6,OptionPage!$A$4,OptionPage!$A$7)*F$3,PutRho($A122,F$5,OptionPage!$A$9,OptionPage!$A$6,OptionPage!$A$4,OptionPage!$A$7)*F$3)) -> 0 | G122: =IF(OR(ISBLANK(G$4),LEFT(G$4,1)="s"),0,IF(LEFT(G$4,1)="c",CallRho($A122,G$5,OptionPage!$A$9,OptionPage!$A$6,OptionPage!$A$4,OptionPage!$A$7)*G$3,PutRho($A122,G$5,OptionPage!$A$9,OptionPage!$A$6,OptionPage!$A$4,OptionPage!$A$7)*G$3)) -> 0 | H122: =IF(OR(ISBLANK(H$4),LEFT(H$4,1)="s"),0,IF(LEFT(H$4,1)="c",CallRho($A122,H$5,OptionPage!$A$9,OptionPage!$A$6,OptionPage!$A$4,OptionPage!$A$7)*H$3,PutRho($A122,H$5,OptionPage!$A$9,OptionPage!$A$6,OptionPage!$A$4,OptionPage!$A$7)*H$3)) -> 0 | I122: =IF(OR(ISBLANK(I$4),LEFT(I$4,1)="s"),0,IF(LEFT(I$4,1)="c",CallRho($A122,I$5,OptionPage!$A$9,OptionPage!$A$6,OptionPage!$A$4,OptionPage!$A$7)*I$3,PutRho($A122,I$5,OptionPage!$A$9,OptionPage!$A$6,OptionPage!$A$4,OptionPage!$A$7)*I$3)) -> 0 | J122: =IF(OR(ISBLANK(J$4),LEFT(J$4,1)="s"),0,IF(LEFT(J$4,1)="c",CallRho($A122,J$5,OptionPage!$A$9,OptionPage!$A$6,OptionPage!$A$4,OptionPage!$A$7)*J$3,PutRho($A122,J$5,OptionPage!$A$9,OptionPage!$A$6,OptionPage!$A$4,OptionPage!$A$7)*J$3)) -> 0 | K122: =IF(OR(ISBLANK(K$4),LEFT(K$4,1)="s"),0,IF(LEFT(K$4,1)="c",CallRho($A122,K$5,OptionPage!$A$9,OptionPage!$A$6,OptionPage!$A$4,OptionPage!$A$7)*K$3,PutRho($A122,K$5,OptionPage!$A$9,OptionPage!$A$6,OptionPage!$A$4,OptionPage!$A$7)*K$3)) -> 0 | L122: -0.0008375314183
A123: =A124-$A$17 -> 23 | B123: =IF(OR(ISBLANK(B$4),LEFT(B$4,1)="s"),0,IF(LEFT(B$4,1)="c",CallRho($A123,B$5,OptionPage!$A$9,OptionPage!$A$6,OptionPage!$A$4,OptionPage!$A$7)*B$3,PutRho($A123,B$5,OptionPage!$A$9,OptionPage!$A$6,OptionPage!$A$4,OptionPage!$A$7)*B$3)) -> 0 | C123: =IF(OR(ISBLANK(C$4),LEFT(C$4,1)="s"),0,IF(LEFT(C$4,1)="c",CallRho($A123,C$5,OptionPage!$A$9,OptionPage!$A$6,OptionPage!$A$4,OptionPage!$A$7)*C$3,PutRho($A123,C$5,OptionPage!$A$9,OptionPage!$A$6,OptionPage!$A$4,OptionPage!$A$7)*C$3)) -> -0.002361784623 | D123: =IF(OR(ISBLANK(D$4),LEFT(D$4,1)="s"),0,IF(LEFT(D$4,1)="c",CallRho($A123,D$5,OptionPage!$A$9,OptionPage!$A$6,OptionPage!$A$4,OptionPage!$A$7)*D$3,PutRho($A123,D$5,OptionPage!$A$9,OptionPage!$A$6,OptionPage!$A$4,OptionPage!$A$7)*D$3)) -> 0 | E123: =IF(OR(ISBLANK(E$4),LEFT(E$4,1)="s"),0,IF(LEFT(E$4,1)="c",CallRho($A123,E$5,OptionPage!$A$9,OptionPage!$A$6,OptionPage!$A$4,OptionPage!$A$7)*E$3,PutRho($A123,E$5,OptionPage!$A$9,OptionPage!$A$6,OptionPage!$A$4,OptionPage!$A$7)*E$3)) -> 0 | F123: =IF(OR(ISBLANK(F$4),LEFT(F$4,1)="s"),0,IF(LEFT(F$4,1)="c",CallRho($A123,F$5,OptionPage!$A$9,OptionPage!$A$6,OptionPage!$A$4,OptionPage!$A$7)*F$3,PutRho($A123,F$5,OptionPage!$A$9,OptionPage!$A$6,OptionPage!$A$4,OptionPage!$A$7)*F$3)) -> 0 | G123: =IF(OR(ISBLANK(G$4),LEFT(G$4,1)="s"),0,IF(LEFT(G$4,1)="c",CallRho($A123,G$5,OptionPage!$A$9,OptionPage!$A$6,OptionPage!$A$4,OptionPage!$A$7)*G$3,PutRho($A123,G$5,OptionPage!$A$9,OptionPage!$A$6,OptionPage!$A$4,OptionPage!$A$7)*G$3)) -> 0 | H123: =IF(OR(ISBLANK(H$4),LEFT(H$4,1)="s"),0,IF(LEFT(H$4,1)="c",CallRho($A123,H$5,OptionPage!$A$9,OptionPage!$A$6,OptionPage!$A$4,OptionPage!$A$7)*H$3,PutRho($A123,H$5,OptionPage!$A$9,OptionPage!$A$6,OptionPage!$A$4,OptionPage!$A$7)*H$3)) -> 0 | I123: =IF(OR(ISBLANK(I$4),LEFT(I$4,1)="s"),0,IF(LEFT(I$4,1)="c",CallRho($A123,I$5,OptionPage!$A$9,OptionPage!$A$6,OptionPage!$A$4,OptionPage!$A$7)*I$3,PutRho($A123,I$5,OptionPage!$A$9,OptionPage!$A$6,OptionPage!$A$4,OptionPage!$A$7)*I$3)) -> 0 | J123: =IF(OR(ISBLANK(J$4),LEFT(J$4,1)="s"),0,IF(LEFT(J$4,1)="c",CallRho($A123,J$5,OptionPage!$A$9,OptionPage!$A$6,OptionPage!$A$4,OptionPage!$A$7)*J$3,PutRho($A123,J$5,OptionPage!$A$9,OptionPage!$A$6,OptionPage!$A$4,OptionPage!$A$7)*J$3)) -> 0 | K123: =IF(OR(ISBLANK(K$4),LEFT(K$4,1)="s"),0,IF(LEFT(K$4,1)="c",CallRho($A123,K$5,OptionPage!$A$9,OptionPage!$A$6,OptionPage!$A$4,OptionPage!$A$7)*K$3,PutRho($A123,K$5,OptionPage!$A$9,OptionPage!$A$6,OptionPage!$A$4,OptionPage!$A$7)*K$3)) -> 0 | L123: -0.002361784623
A124: =A125-$A$17 -> 24 | B124: =IF(OR(ISBLANK(B$4),LEFT(B$4,1)="s"),0,IF(LEFT(B$4,1)="c",CallRho($A124,B$5,OptionPage!$A$9,OptionPage!$A$6,OptionPage!$A$4,OptionPage!$A$7)*B$3,PutRho($A124,B$5,OptionPage!$A$9,OptionPage!$A$6,OptionPage!$A$4,OptionPage!$A$7)*B$3)) -> 0 | C124: =IF(OR(ISBLANK(C$4),LEFT(C$4,1)="s"),0,IF(LEFT(C$4,1)="c",CallRho($A124,C$5,OptionPage!$A$9,OptionPage!$A$6,OptionPage!$A$4,OptionPage!$A$7)*C$3,PutRho($A124,C$5,OptionPage!$A$9,OptionPage!$A$6,OptionPage!$A$4,OptionPage!$A$7)*C$3)) -> -0.004996506517 | D124: =IF(OR(ISBLANK(D$4),LEFT(D$4,1)="s"),0,IF(LEFT(D$4,1)="c",CallRho($A124,D$5,OptionPage!$A$9,OptionPage!$A$6,OptionPage!$A$4,OptionPage!$A$7)*D$3,PutRho($A124,D$5,OptionPage!$A$9,OptionPage!$A$6,OptionPage!$A$4,OptionPage!$A$7)*D$3)) -> 0 | E124: =IF(OR(ISBLANK(E$4),LEFT(E$4,1)="s"),0,IF(LEFT(E$4,1)="c",CallRho($A124,E$5,OptionPage!$A$9,OptionPage!$A$6,OptionPage!$A$4,OptionPage!$A$7)*E$3,PutRho($A124,E$5,OptionPage!$A$9,OptionPage!$A$6,OptionPage!$A$4,OptionPage!$A$7)*E$3)) -> 0 | F124: =IF(OR(ISBLANK(F$4),LEFT(F$4,1)="s"),0,IF(LEFT(F$4,1)="c",CallRho($A124,F$5,OptionPage!$A$9,OptionPage!$A$6,OptionPage!$A$4,OptionPage!$A$7)*F$3,PutRho($A124,F$5,OptionPage!$A$9,OptionPage!$A$6,OptionPage!$A$4,OptionPage!$A$7)*F$3)) -> 0 | G124: =IF(OR(ISBLANK(G$4),LEFT(G$4,1)="s"),0,IF(LEFT(G$4,1)="c",CallRho($A124,G$5,OptionPage!$A$9,OptionPage!$A$6,OptionPage!$A$4,OptionPage!$A$7)*G$3,PutRho($A124,G$5,OptionPage!$A$9,OptionPage!$A$6,OptionPage!$A$4,OptionPage!$A$7)*G$3)) -> 0 | H124: =IF(OR(ISBLANK(H$4),LEFT(H$4,1)="s"),0,IF(LEFT(H$4,1)="c",CallRho($A124,H$5,OptionPage!$A$9,OptionPage!$A$6,OptionPage!$A$4,OptionPage!$A$7)*H$3,PutRho($A124,H$5,OptionPage!$A$9,OptionPage!$A$6,OptionPage!$A$4,OptionPage!$A$7)*H$3)) -> 0 | I124: =IF(OR(ISBLANK(I$4),LEFT(I$4,1)="s"),0,IF(LEFT(I$4,1)="c",CallRho($A124,I$5,OptionPage!$A$9,OptionPage!$A$6,OptionPage!$A$4,OptionPage!$A$7)*I$3,PutRho($A124,I$5,OptionPage!$A$9,OptionPage!$A$6,OptionPage!$A$4,OptionPage!$A$7)*I$3)) -> 0 | J124: =IF(OR(ISBLANK(J$4),LEFT(J$4,1)="s"),0,IF(LEFT(J$4,1)="c",CallRho($A124,J$5,OptionPage!$A$9,OptionPage!$A$6,OptionPage!$A$4,OptionPage!$A$7)*J$3,PutRho($A124,J$5,OptionPage!$A$9,OptionPage!$A$6,OptionPage!$A$4,OptionPage!$A$7)*J$3)) -> 0 | K124: =IF(OR(ISBLANK(K$4),LEFT(K$4,1)="s"),0,IF(LEFT(K$4,1)="c",CallRho($A124,K$5,OptionPage!$A$9,OptionPage!$A$6,OptionPage!$A$4,OptionPage!$A$7)*K$3,PutRho($A124,K$5,OptionPage!$A$9,OptionPage!$A$6,OptionPage!$A$4,OptionPage!$A$7)*K$3)) -> 0 | L124: -0.004996506517
A125: =OptionPage!$A$2 -> 25 | B125: =IF(OR(ISBLANK(B$4),LEFT(B$4,1)="s"),0,IF(LEFT(B$4,1)="c",CallRho($A125,B$5,OptionPage!$A$9,OptionPage!$A$6,OptionPage!$A$4,OptionPage!$A$7)*B$3,PutRho($A125,B$5,OptionPage!$A$9,OptionPage!$A$6,OptionPage!$A$4,OptionPage!$A$7)*B$3)) -> 0 | C125: =IF(OR(ISBLANK(C$4),LEFT(C$4,1)="s"),0,IF(LEFT(C$4,1)="c",CallRho($A125,C$5,OptionPage!$A$9,OptionPage!$A$6,OptionPage!$A$4,OptionPage!$A$7)*C$3,PutRho($A125,C$5,OptionPage!$A$9,OptionPage!$A$6,OptionPage!$A$4,OptionPage!$A$7)*C$3)) -> -0.008362811592 | D125: =IF(OR(ISBLANK(D$4),LEFT(D$4,1)="s"),0,IF(LEFT(D$4,1)="c",CallRho($A125,D$5,OptionPage!$A$9,OptionPage!$A$6,OptionPage!$A$4,OptionPage!$A$7)*D$3,PutRho($A125,D$5,OptionPage!$A$9,OptionPage!$A$6,OptionPage!$A$4,OptionPage!$A$7)*D$3)) -> 0 | E125: =IF(OR(ISBLANK(E$4),LEFT(E$4,1)="s"),0,IF(LEFT(E$4,1)="c",CallRho($A125,E$5,OptionPage!$A$9,OptionPage!$A$6,OptionPage!$A$4,OptionPage!$A$7)*E$3,PutRho($A125,E$5,OptionPage!$A$9,OptionPage!$A$6,OptionPage!$A$4,OptionPage!$A$7)*E$3)) -> 0 | F125: =IF(OR(ISBLANK(F$4),LEFT(F$4,1)="s"),0,IF(LEFT(F$4,1)="c",CallRho($A125,F$5,OptionPage!$A$9,OptionPage!$A$6,OptionPage!$A$4,OptionPage!$A$7)*F$3,PutRho($A125,F$5,OptionPage!$A$9,OptionPage!$A$6,OptionPage!$A$4,OptionPage!$A$7)*F$3)) -> 0 | G125: =IF(OR(ISBLANK(G$4),LEFT(G$4,1)="s"),0,IF(LEFT(G$4,1)="c",CallRho($A125,G$5,OptionPage!$A$9,OptionPage!$A$6,OptionPage!$A$4,OptionPage!$A$7)*G$3,PutRho($A125,G$5,OptionPage!$A$9,OptionPage!$A$6,OptionPage!$A$4,OptionPage!$A$7)*G$3)) -> 0 | H125: =IF(OR(ISBLANK(H$4),LEFT(H$4,1)="s"),0,IF(LEFT(H$4,1)="c",CallRho($A125,H$5,OptionPage!$A$9,OptionPage!$A$6,OptionPage!$A$4,OptionPage!$A$7)*H$3,PutRho($A125,H$5,OptionPage!$A$9,OptionPage!$A$6,OptionPage!$A$4,OptionPage!$A$7)*H$3)) -> 0 | I125: =IF(OR(ISBLANK(I$4),LEFT(I$4,1)="s"),0,IF(LEFT(I$4,1)="c",CallRho($A125,I$5,OptionPage!$A$9,OptionPage!$A$6,OptionPage!$A$4,OptionPage!$A$7)*I$3,PutRho($A125,I$5,OptionPage!$A$9,OptionPage!$A$6,OptionPage!$A$4,OptionPage!$A$7)*I$3)) -> 0 | J125: =IF(OR(ISBLANK(J$4),LEFT(J$4,1)="s"),0,IF(LEFT(J$4,1)="c",CallRho($A125,J$5,OptionPage!$A$9,OptionPage!$A$6,OptionPage!$A$4,OptionPage!$A$7)*J$3,PutRho($A125,J$5,OptionPage!$A$9,OptionPage!$A$6,OptionPage!$A$4,OptionPage!$A$7)*J$3)) -> 0 | K125: =IF(OR(ISBLANK(K$4),LEFT(K$4,1)="s"),0,IF(LEFT(K$4,1)="c",CallRho($A125,K$5,OptionPage!$A$9,OptionPage!$A$6,OptionPage!$A$4,OptionPage!$A$7)*K$3,PutRho($A125,K$5,OptionPage!$A$9,OptionPage!$A$6,OptionPage!$A$4,OptionPage!$A$7)*K$3)) -> 0 | L125: -0.008362811592
A126: =A125+$A$17 -> 26 | B126: =IF(OR(ISBLANK(B$4),LEFT(B$4,1)="s"),0,IF(LEFT(B$4,1)="c",CallRho($A126,B$5,OptionPage!$A$9,OptionPage!$A$6,OptionPage!$A$4,OptionPage!$A$7)*B$3,PutRho($A126,B$5,OptionPage!$A$9,OptionPage!$A$6,OptionPage!$A$4,OptionPage!$A$7)*B$3)) -> 0 | C126: =IF(OR(ISBLANK(C$4),LEFT(C$4,1)="s"),0,IF(LEFT(C$4,1)="c",CallRho($A126,C$5,OptionPage!$A$9,OptionPage!$A$6,OptionPage!$A$4,OptionPage!$A$7)*C$3,PutRho($A126,C$5,OptionPage!$A$9,OptionPage!$A$6,OptionPage!$A$4,OptionPage!$A$7)*C$3)) -> -0.0116505494 | D126: =IF(OR(ISBLANK(D$4),LEFT(D$4,1)="s"),0,IF(LEFT(D$4,1)="c",CallRho($A126,D$5,OptionPage!$A$9,OptionPage!$A$6,OptionPage!$A$4,OptionPage!$A$7)*D$3,PutRho($A126,D$5,OptionPage!$A$9,OptionPage!$A$6,OptionPage!$A$4,OptionPage!$A$7)*D$3)) -> 0 | E126: =IF(OR(ISBLANK(E$4),LEFT(E$4,1)="s"),0,IF(LEFT(E$4,1)="c",CallRho($A126,E$5,OptionPage!$A$9,OptionPage!$A$6,OptionPage!$A$4,OptionPage!$A$7)*E$3,PutRho($A126,E$5,OptionPage!$A$9,OptionPage!$A$6,OptionPage!$A$4,OptionPage!$A$7)*E$3)) -> 0 | F126: =IF(OR(ISBLANK(F$4),LEFT(F$4,1)="s"),0,IF(LEFT(F$4,1)="c",CallRho($A126,F$5,OptionPage!$A$9,OptionPage!$A$6,OptionPage!$A$4,OptionPage!$A$7)*F$3,PutRho($A126,F$5,OptionPage!$A$9,OptionPage!$A$6,OptionPage!$A$4,OptionPage!$A$7)*F$3)) -> 0 | G126: =IF(OR(ISBLANK(G$4),LEFT(G$4,1)="s"),0,IF(LEFT(G$4,1)="c",CallRho($A126,G$5,OptionPage!$A$9,OptionPage!$A$6,OptionPage!$A$4,OptionPage!$A$7)*G$3,PutRho($A126,G$5,OptionPage!$A$9,OptionPage!$A$6,OptionPage!$A$4,OptionPage!$A$7)*G$3)) -> 0 | H126: =IF(OR(ISBLANK(H$4),LEFT(H$4,1)="s"),0,IF(LEFT(H$4,1)="c",CallRho($A126,H$5,OptionPage!$A$9,OptionPage!$A$6,OptionPage!$A$4,OptionPage!$A$7)*H$3,PutRho($A126,H$5,OptionPage!$A$9,OptionPage!$A$6,OptionPage!$A$4,OptionPage!$A$7)*H$3)) -> 0 | I126: =IF(OR(ISBLANK(I$4),LEFT(I$4,1)="s"),0,IF(LEFT(I$4,1)="c",CallRho($A126,I$5,OptionPage!$A$9,OptionPage!$A$6,OptionPage!$A$4,OptionPage!$A$7)*I$3,PutRho($A126,I$5,OptionPage!$A$9,OptionPage!$A$6,OptionPage!$A$4,OptionPage!$A$7)*I$3)) -> 0 | J126: =IF(OR(ISBLANK(J$4),LEFT(J$4,1)="s"),0,IF(LEFT(J$4,1)="c",CallRho($A126,J$5,OptionPage!$A$9,OptionPage!$A$6,OptionPage!$A$4,OptionPage!$A$7)*J$3,PutRho($A126,J$5,OptionPage!$A$9,OptionPage!$A$6,OptionPage!$A$4,OptionPage!$A$7)*J$3)) -> 0 | K126: =IF(OR(ISBLANK(K$4),LEFT(K$4,1)="s"),0,IF(LEFT(K$4,1)="c",CallRho($A126,K$5,OptionPage!$A$9,OptionPage!$A$6,OptionPage!$A$4,OptionPage!$A$7)*K$3,PutRho($A126,K$5,OptionPage!$A$9,OptionPage!$A$6,OptionPage!$A$4,OptionPage!$A$7)*K$3)) -> 0 | L126: -0.0116505494
A127: =A126+$A$17 -> 27 | B127: =IF(OR(ISBLANK(B$4),LEFT(B$4,1)="s"),0,IF(LEFT(B$4,1)="c",CallRho($A127,B$5,OptionPage!$A$9,OptionPage!$A$6,OptionPage!$A$4,OptionPage!$A$7)*B$3,PutRho($A127,B$5,OptionPage!$A$9,OptionPage!$A$6,OptionPage!$A$4,OptionPage!$A$7)*B$3)) -> 0 | C127: =IF(OR(ISBLANK(C$4),LEFT(C$4,1)="s"),0,IF(LEFT(C$4,1)="c",CallRho($A127,C$5,OptionPage!$A$9,OptionPage!$A$6,OptionPage!$A$4,OptionPage!$A$7)*C$3,PutRho($A127,C$5,OptionPage!$A$9,OptionPage!$A$6,OptionPage!$A$4,OptionPage!$A$7)*C$3)) -> -0.01417782038 | D127: =IF(OR(ISBLANK(D$4),LEFT(D$4,1)="s"),0,IF(LEFT(D$4,1)="c",CallRho($A127,D$5,OptionPage!$A$9,OptionPage!$A$6,OptionPage!$A$4,OptionPage!$A$7)*D$3,PutRho($A127,D$5,OptionPage!$A$9,OptionPage!$A$6,OptionPage!$A$4,OptionPage!$A$7)*D$3)) -> 0 | E127: =IF(OR(ISBLANK(E$4),LEFT(E$4,1)="s"),0,IF(LEFT(E$4,1)="c",CallRho($A127,E$5,OptionPage!$A$9,OptionPage!$A$6,OptionPage!$A$4,OptionPage!$A$7)*E$3,PutRho($A127,E$5,OptionPage!$A$9,OptionPage!$A$6,OptionPage!$A$4,OptionPage!$A$7)*E$3)) -> 0 | F127: =IF(OR(ISBLANK(F$4),LEFT(F$4,1)="s"),0,IF(LEFT(F$4,1)="c",CallRho($A127,F$5,OptionPage!$A$9,OptionPage!$A$6,OptionPage!$A$4,OptionPage!$A$7)*F$3,PutRho($A127,F$5,OptionPage!$A$9,OptionPage!$A$6,OptionPage!$A$4,OptionPage!$A$7)*F$3)) -> 0 | G127: =IF(OR(ISBLANK(G$4),LEFT(G$4,1)="s"),0,IF(LEFT(G$4,1)="c",CallRho($A127,G$5,OptionPage!$A$9,OptionPage!$A$6,OptionPage!$A$4,OptionPage!$A$7)*G$3,PutRho($A127,G$5,OptionPage!$A$9,OptionPage!$A$6,OptionPage!$A$4,OptionPage!$A$7)*G$3)) -> 0 | H127: =IF(OR(ISBLANK(H$4),LEFT(H$4,1)="s"),0,IF(LEFT(H$4,1)="c",CallRho($A127,H$5,OptionPage!$A$9,OptionPage!$A$6,OptionPage!$A$4,OptionPage!$A$7)*H$3,PutRho($A127,H$5,OptionPage!$A$9,OptionPage!$A$6,OptionPage!$A$4,OptionPage!$A$7)*H$3)) -> 0 | I127: =IF(OR(ISBLANK(I$4),LEFT(I$4,1)="s"),0,IF(LEFT(I$4,1)="c",CallRho($A127,I$5,OptionPage!$A$9,OptionPage!$A$6,OptionPage!$A$4,OptionPage!$A$7)*I$3,PutRho($A127,I$5,OptionPage!$A$9,OptionPage!$A$6,OptionPage!$A$4,OptionPage!$A$7)*I$3)) -> 0 | J127: =IF(OR(ISBLANK(J$4),LEFT(J$4,1)="s"),0,IF(LEFT(J$4,1)="c",CallRho($A127,J$5,OptionPage!$A$9,OptionPage!$A$6,OptionPage!$A$4,OptionPage!$A$7)*J$3,PutRho($A127,J$5,OptionPage!$A$9,OptionPage!$A$6,OptionPage!$A$4,OptionPage!$A$7)*J$3)) -> 0 | K127: =IF(OR(ISBLANK(K$4),LEFT(K$4,1)="s"),0,IF(LEFT(K$4,1)="c",CallRho($A127,K$5,OptionPage!$A$9,OptionPage!$A$6,OptionPage!$A$4,OptionPage!$A$7)*K$3,PutRho($A127,K$5,OptionPage!$A$9,OptionPage!$A$6,OptionPage!$A$4,OptionPage!$A$7)*K$3)) -> 0 | L127: -0.01417782038
A128: =A127+$A$17 -> 28 | B128: =IF(OR(ISBLANK(B$4),LEFT(B$4,1)="s"),0,IF(LEFT(B$4,1)="c",CallRho($A128,B$5,OptionPage!$A$9,OptionPage!$A$6,OptionPage!$A$4,OptionPage!$A$7)*B$3,PutRho($A128,B$5,OptionPage!$A$9,OptionPage!$A$6,OptionPage!$A$4,OptionPage!$A$7)*B$3)) -> 0 | C128: =IF(OR(ISBLANK(C$4),LEFT(C$4,1)="s"),0,IF(LEFT(C$4,1)="c",CallRho($A128,C$5,OptionPage!$A$9,OptionPage!$A$6,OptionPage!$A$4,OptionPage!$A$7)*C$3,PutRho($A128,C$5,OptionPage!$A$9,OptionPage!$A$6,OptionPage!$A$4,OptionPage!$A$7)*C$3)) -> -0.01574638497 | D128: =IF(OR(ISBLANK(D$4),LEFT(D$4,1)="s"),0,IF(LEFT(D$4,1)="c",CallRho($A128,D$5,OptionPage!$A$9,OptionPage!$A$6,OptionPage!$A$4,OptionPage!$A$7)*D$3,PutRho($A128,D$5,OptionPage!$A$9,OptionPage!$A$6,OptionPage!$A$4,OptionPage!$A$7)*D$3)) -> 0 | E128: =IF(OR(ISBLANK(E$4),LEFT(E$4,1)="s"),0,IF(LEFT(E$4,1)="c",CallRho($A128,E$5,OptionPage!$A$9,OptionPage!$A$6,OptionPage!$A$4,OptionPage!$A$7)*E$3,PutRho($A128,E$5,OptionPage!$A$9,OptionPage!$A$6,OptionPage!$A$4,OptionPage!$A$7)*E$3)) -> 0 | F128: =IF(OR(ISBLANK(F$4),LEFT(F$4,1)="s"),0,IF(LEFT(F$4,1)="c",CallRho($A128,F$5,OptionPage!$A$9,OptionPage!$A$6,OptionPage!$A$4,OptionPage!$A$7)*F$3,PutRho($A128,F$5,OptionPage!$A$9,OptionPage!$A$6,OptionPage!$A$4,OptionPage!$A$7)*F$3)) -> 0 | G128: =IF(OR(ISBLANK(G$4),LEFT(G$4,1)="s"),0,IF(LEFT(G$4,1)="c",CallRho($A128,G$5,OptionPage!$A$9,OptionPage!$A$6,OptionPage!$A$4,OptionPage!$A$7)*G$3,PutRho($A128,G$5,OptionPage!$A$9,OptionPage!$A$6,OptionPage!$A$4,OptionPage!$A$7)*G$3)) -> 0 | H128: =IF(OR(ISBLANK(H$4),LEFT(H$4,1)="s"),0,IF(LEFT(H$4,1)="c",CallRho($A128,H$5,OptionPage!$A$9,OptionPage!$A$6,OptionPage!$A$4,OptionPage!$A$7)*H$3,PutRho($A128,H$5,OptionPage!$A$9,OptionPage!$A$6,OptionPage!$A$4,OptionPage!$A$7)*H$3)) -> 0 | I128: =IF(OR(ISBLANK(I$4),LEFT(I$4,1)="s"),0,IF(LEFT(I$4,1)="c",CallRho($A128,I$5,OptionPage!$A$9,OptionPage!$A$6,OptionPage!$A$4,OptionPage!$A$7)*I$3,PutRho($A128,I$5,OptionPage!$A$9,OptionPage!$A$6,OptionPage!$A$4,OptionPage!$A$7)*I$3)) -> 0 | J128: =IF(OR(ISBLANK(J$4),LEFT(J$4,1)="s"),0,IF(LEFT(J$4,1)="c",CallRho($A128,J$5,OptionPage!$A$9,OptionPage!$A$6,OptionPage!$A$4,OptionPage!$A$7)*J$3,PutRho($A128,J$5,OptionPage!$A$9,OptionPage!$A$6,OptionPage!$A$4,OptionPage!$A$7)*J$3)) -> 0 | K128: =IF(OR(ISBLANK(K$4),LEFT(K$4,1)="s"),0,IF(LEFT(K$4,1)="c",CallRho($A128,K$5,OptionPage!$A$9,OptionPage!$A$6,OptionPage!$A$4,OptionPage!$A$7)*K$3,PutRho($A128,K$5,OptionPage!$A$9,OptionPage!$A$6,OptionPage!$A$4,OptionPage!$A$7)*K$3)) -> 0 | L128: -0.01574638497
A129: =A128+$A$17 -> 29 | B129: =IF(OR(ISBLANK(B$4),LEFT(B$4,1)="s"),0,IF(LEFT(B$4,1)="c",CallRho($A129,B$5,OptionPage!$A$9,OptionPage!$A$6,OptionPage!$A$4,OptionPage!$A$7)*B$3,PutRho($A129,B$5,OptionPage!$A$9,OptionPage!$A$6,OptionPage!$A$4,OptionPage!$A$7)*B$3)) -> 0 | C129: =IF(OR(ISBLANK(C$4),LEFT(C$4,1)="s"),0,IF(LEFT(C$4,1)="c",CallRho($A129,C$5,OptionPage!$A$9,OptionPage!$A$6,OptionPage!$A$4,OptionPage!$A$7)*C$3,PutRho($A129,C$5,OptionPage!$A$9,OptionPage!$A$6,OptionPage!$A$4,OptionPage!$A$7)*C$3)) -> -0.01655023179 | D129: =IF(OR(ISBLANK(D$4),LEFT(D$4,1)="s"),0,IF(LEFT(D$4,1)="c",CallRho($A129,D$5,OptionPage!$A$9,OptionPage!$A$6,OptionPage!$A$4,OptionPage!$A$7)*D$3,PutRho($A129,D$5,OptionPage!$A$9,OptionPage!$A$6,OptionPage!$A$4,OptionPage!$A$7)*D$3)) -> 0 | E129: =IF(OR(ISBLANK(E$4),LEFT(E$4,1)="s"),0,IF(LEFT(E$4,1)="c",CallRho($A129,E$5,OptionPage!$A$9,OptionPage!$A$6,OptionPage!$A$4,OptionPage!$A$7)*E$3,PutRho($A129,E$5,OptionPage!$A$9,OptionPage!$A$6,OptionPage!$A$4,OptionPage!$A$7)*E$3)) -> 0 | F129: =IF(OR(ISBLANK(F$4),LEFT(F$4,1)="s"),0,IF(LEFT(F$4,1)="c",CallRho($A129,F$5,OptionPage!$A$9,OptionPage!$A$6,OptionPage!$A$4,OptionPage!$A$7)*F$3,PutRho($A129,F$5,OptionPage!$A$9,OptionPage!$A$6,OptionPage!$A$4,OptionPage!$A$7)*F$3)) -> 0 | G129: =IF(OR(ISBLANK(G$4),LEFT(G$4,1)="s"),0,IF(LEFT(G$4,1)="c",CallRho($A129,G$5,OptionPage!$A$9,OptionPage!$A$6,OptionPage!$A$4,OptionPage!$A$7)*G$3,PutRho($A129,G$5,OptionPage!$A$9,OptionPage!$A$6,OptionPage!$A$4,OptionPage!$A$7)*G$3)) -> 0 | H129: =IF(OR(ISBLANK(H$4),LEFT(H$4,1)="s"),0,IF(LEFT(H$4,1)="c",CallRho($A129,H$5,OptionPage!$A$9,OptionPage!$A$6,OptionPage!$A$4,OptionPage!$A$7)*H$3,PutRho($A129,H$5,OptionPage!$A$9,OptionPage!$A$6,OptionPage!$A$4,OptionPage!$A$7)*H$3)) -> 0 | I129: =IF(OR(ISBLANK(I$4),LEFT(I$4,1)="s"),0,IF(LEFT(I$4,1)="c",CallRho($A129,I$5,OptionPage!$A$9,OptionPage!$A$6,OptionPage!$A$4,OptionPage!$A$7)*I$3,PutRho($A129,I$5,OptionPage!$A$9,OptionPage!$A$6,OptionPage!$A$4,OptionPage!$A$7)*I$3)) -> 0 | J129: =IF(OR(ISBLANK(J$4),LEFT(J$4,1)="s"),0,IF(LEFT(J$4,1)="c",CallRho($A129,J$5,OptionPage!$A$9,OptionPage!$A$6,OptionPage!$A$4,OptionPage!$A$7)*J$3,PutRho($A129,J$5,OptionPage!$A$9,OptionPage!$A$6,OptionPage!$A$4,OptionPage!$A$7)*J$3)) -> 0 | K129: =IF(OR(ISBLANK(K$4),LEFT(K$4,1)="s"),0,IF(LEFT(K$4,1)="c",CallRho($A129,K$5,OptionPage!$A$9,OptionPage!$A$6,OptionPage!$A$4,OptionPage!$A$7)*K$3,PutRho($A129,K$5,OptionPage!$A$9,OptionPage!$A$6,OptionPage!$A$4,OptionPage!$A$7)*K$3)) -> 0 | L129: -0.01655023179
A130: =A129+$A$17 -> 30 | B130: =IF(OR(ISBLANK(B$4),LEFT(B$4,1)="s"),0,IF(LEFT(B$4,1)="c",CallRho($A130,B$5,OptionPage!$A$9,OptionPage!$A$6,OptionPage!$A$4,OptionPage!$A$7)*B$3,PutRho($A130,B$5,OptionPage!$A$9,OptionPage!$A$6,OptionPage!$A$4,OptionPage!$A$7)*B$3)) -> 0 | C130: =IF(OR(ISBLANK(C$4),LEFT(C$4,1)="s"),0,IF(LEFT(C$4,1)="c",CallRho($A130,C$5,OptionPage!$A$9,OptionPage!$A$6,OptionPage!$A$4,OptionPage!$A$7)*C$3,PutRho($A130,C$5,OptionPage!$A$9,OptionPage!$A$6,OptionPage!$A$4,OptionPage!$A$7)*C$3)) -> -0.01689714832 | D130: =IF(OR(ISBLANK(D$4),LEFT(D$4,1)="s"),0,IF(LEFT(D$4,1)="c",CallRho($A130,D$5,OptionPage!$A$9,OptionPage!$A$6,OptionPage!$A$4,OptionPage!$A$7)*D$3,PutRho($A130,D$5,OptionPage!$A$9,OptionPage!$A$6,OptionPage!$A$4,OptionPage!$A$7)*D$3)) -> 0 | E130: =IF(OR(ISBLANK(E$4),LEFT(E$4,1)="s"),0,IF(LEFT(E$4,1)="c",CallRho($A130,E$5,OptionPage!$A$9,OptionPage!$A$6,OptionPage!$A$4,OptionPage!$A$7)*E$3,PutRho($A130,E$5,OptionPage!$A$9,OptionPage!$A$6,OptionPage!$A$4,OptionPage!$A$7)*E$3)) -> 0 | F130: =IF(OR(ISBLANK(F$4),LEFT(F$4,1)="s"),0,IF(LEFT(F$4,1)="c",CallRho($A130,F$5,OptionPage!$A$9,OptionPage!$A$6,OptionPage!$A$4,OptionPage!$A$7)*F$3,PutRho($A130,F$5,OptionPage!$A$9,OptionPage!$A$6,OptionPage!$A$4,OptionPage!$A$7)*F$3)) -> 0 | G130: =IF(OR(ISBLANK(G$4),LEFT(G$4,1)="s"),0,IF(LEFT(G$4,1)="c",CallRho($A130,G$5,OptionPage!$A$9,OptionPage!$A$6,OptionPage!$A$4,OptionPage!$A$7)*G$3,PutRho($A130,G$5,OptionPage!$A$9,OptionPage!$A$6,OptionPage!$A$4,OptionPage!$A$7)*G$3)) -> 0 | H130: =IF(OR(ISBLANK(H$4),LEFT(H$4,1)="s"),0,IF(LEFT(H$4,1)="c",CallRho($A130,H$5,OptionPage!$A$9,OptionPage!$A$6,OptionPage!$A$4,OptionPage!$A$7)*H$3,PutRho($A130,H$5,OptionPage!$A$9,OptionPage!$A$6,OptionPage!$A$4,OptionPage!$A$7)*H$3)) -> 0 | I130: =IF(OR(ISBLANK(I$4),LEFT(I$4,1)="s"),0,IF(LEFT(I$4,1)="c",CallRho($A130,I$5,OptionPage!$A$9,OptionPage!$A$6,OptionPage!$A$4,OptionPage!$A$7)*I$3,PutRho($A130,I$5,OptionPage!$A$9,OptionPage!$A$6,OptionPage!$A$4,OptionPage!$A$7)*I$3)) -> 0 | J130: =IF(OR(ISBLANK(J$4),LEFT(J$4,1)="s"),0,IF(LEFT(J$4,1)="c",CallRho($A130,J$5,OptionPage!$A$9,OptionPage!$A$6,OptionPage!$A$4,OptionPage!$A$7)*J$3,PutRho($A130,J$5,OptionPage!$A$9,OptionPage!$A$6,OptionPage!$A$4,OptionPage!$A$7)*J$3)) -> 0 | K130: =IF(OR(ISBLANK(K$4),LEFT(K$4,1)="s"),0,IF(LEFT(K$4,1)="c",CallRho($A130,K$5,OptionPage!$A$9,OptionPage!$A$6,OptionPage!$A$4,OptionPage!$A$7)*K$3,PutRho($A130,K$5,OptionPage!$A$9,OptionPage!$A$6,OptionPage!$A$4,OptionPage!$A$7)*K$3)) -> 0 | L130: -0.01689714832

Sheet StrategyGraphs

Sheet Tips
D2: IMPLIED VOLATILITY
D3: Low | F3: Neutral | H3: High
B4: MARKET DIRECTION | C4: Bearish | D4: Buy Naked Puts | F4: Sell the | H4: Sell Naked Calls
D5: Bear Vertical Spreads: | F5: Underlying | H5: Bear Vertical Spreads:
D6: Buy ATM Call/Sell ITM Call | H6: Buy OTM Call/Sell ATM Call
D7: Buy ATM Put/Sell OTM Put | H7: Buy OTM (ITM) Call (Put) Time Spreads
D8: Sell OTM (ITM) Call (Put) Butterflies | H8: Buy ITM (OTM) Call (Put) Butterflies
D9: Buy ITM (OTM) Call (Put) Time Spreads | H9: Sell OTM (ITM) Call (Put) Time Spreads
C11: Neutral | D11: Backspreads | F11: Do Nothing | H11: Ratio Vertical Spreads
D12: Buy Straddles/Strangles | H12: Sell Straddles/Strangles
D13: Sell ATM Call Or Put Butterflies | H13: Buy ATM Call Or Put Butterflies
D14: Buy ATM Call Or Put Time Spreads | H14: Sell ATM Call Or Put Time Spreads
C16: Bullish | D16: Buy Naked Calls | F16: Buy the | H16: Sell Naked Puts
D17: Bull Vertical Spreads | F17: Underlying | H17: Bull Vertical Spreads
D18: Buy ATM Call/Sell OTM Call | H18: Buy ITM Call/Sell ATM Call
D19: Buy ATM Put/Sell ITM Put | H19: Buy OTM Put/Sell ATM Put
D20: Sell ITM (OTM) Call (Put) Butterflies | H20: Buy OTM (ITM) Call (Put) Butterflies
D21: Buy OTM (ITM) Call (Put) Time Spreads | H21: Sell ITM (OTM) Call (Put) Time Spreads

Sheet Gamma
A1: 100 | B1: Underlying Price
A2: 100 | B2: Exercise Price
A3: =TODAY() -> 2012-07-10 | B3: Today's Date
A4: 0.25 | B4: Historical Volatility
A5: =A3+60 -> 2012-09-08 | B5: Expiry Date
A6: 0 | B6: Risk Free Rate
A7: 0 | B7: Dividend Yield
A8: =A5-A3 -> 60 | B8: DTE
A9: =A8/365 -> 0.1643835616 | B9: DTE in Years
B11: =C11-5 -> 75 | C11: =D11-5 -> 80 | D11: =E11-5 -> 85 | E11: =F11-5 -> 90 | F11: =G11-5 -> 95 | G11: 100 | H11: =G11+5 -> 105 | I11: =H11+5 -> 110 | J11: =I11+5 -> 115 | K11: =J11+5 -> 120 | L11: =K11+5 -> 125
A12: 90 | B12: =Gamma(B$11,$A12,$A$9,$A$6,$A$4,$A$7) -> 0.01138776975 | C12: =Gamma(C$11,$A12,$A$9,$A$6,$A$4,$A$7) -> 0.02653124485 | D12: 0.04059046169 | E12: 0.04367577435 | F12: 0.03493283504 | G12: 0.02172605034 | H12: 0.01090399465 | I12: 0.004554167642 | J12: 0.001624129998 | K12: 0.0005053872575 | L12: 0.0001397609169
A13: 100 | B13: =Gamma(B$11,$A13,$A$9,$A$6,$A$4,$A$7) -> 0.001078159483 | C13: 0.004868991826 | D13: 0.01387110471 | E13: 0.02682228437 | F13: 0.03734992531 | G13: 0.03930819691 | H13: 0.0325376471 | I13: 0.02189762804 | J13: 0.01231926951 | K13: 0.005931130079 | L13: 0.002492923815
A14: 110 | B14: =Gamma(B$11,$A14,$A$9,$A$6,$A$4,$A$7) -> 5.038989725e-05 | C14: 0.0004141121626 | D14: 0.002070331087 | E14: 0.006803139317 | F14: 0.01564350697 | G14: 0.02649612992 | H14: 0.03448701248 | I14: 0.03573472447 | J14: 0.0303647349 | K14: 0.0216965113 | L14: 0.0133176841

Sheet Vega
A1: 100 | B1: Underlying Price
A2: 100 | B2: Exercise Price
A3: =TODAY() -> 2012-07-10 | B3: Today's Date
A4: 0.25 | B4: Historical Volatility
A5: =A3+60 -> 2012-09-08 | B5: Expiry Date
A6: 0 | B6: Risk Free Rate
A7: 0 | B7: Dividend Yield
A8: =A5-A3 -> 60 | B8: DTE
A9: =A8/365 -> 0.1643835616 | B9: DTE in Years
B11: =C11-5 -> 75 | C11: =D11-5 -> 80 | D11: =E11-5 -> 85 | E11: =F11-5 -> 90 | F11: =G11-5 -> 95 | G11: 100 | H11: =G11+5 -> 105 | I11: =H11+5 -> 110 | J11: =I11+5 -> 115 | K11: =J11+5 -> 120 | L11: =K11+5 -> 125
A12: 90 | B12: =vega(B$11,$A12,$A$9,$A$6,$A$4,$A$7) -> 0.02632446775 | C12: =vega(C$11,$A12,$A$9,$A$6,$A$4,$A$7) -> 0.06978080837 | D12: 0.1205203092 | E12: 0.1453864817 | F12: 0.1295625354 | G12: 0.08928513837 | H12: 0.04940405797 | I12: 0.02264606649 | J12: 0.008827035295 | K12: 0.002990784866 | L12: 0.0008974373942
A13: 100 | B13: =vega(B$11,$A13,$A$9,$A$6,$A$4,$A$7) -> 0.002492320722 | C13: 0.01280611549 | D13: 0.04118578008 | E13: 0.08928513837 | F13: 0.1385272915 | G13: 0.1615405353 | H13: 0.1474222846 | I13: 0.1088882052 | J13: 0.06695438602 | K13: 0.03509929033 | L13: 0.01600764436
A14: 110 | B14: =vega(B$11,$A14,$A$9,$A$6,$A$4,$A$7) -> 0.0001164834954 | C14: 0.001089171715 | D14: 0.006147181688 | E14: 0.02264606649 | F14: 0.05802026729 | G14: 0.1088882052 | H14: 0.156254512 | I14: 0.1776945888 | J14: 0.1650302544 | K14: 0.1283957929 | L14: 0.085515951

Sheet Theta
A1: 100 | B1: Underlying Price
A2: 100 | B2: Exercise Price | O2: DTE | P2: Theta | Q2: Theo | R2: % Diff
A3: =TODAY() -> 2012-07-10 | B3: Today's Date | O3: 100 | P3: =CallTheta(100,100,O3/365,0,0.25,0) -> -0.02604618242 | Q3: =CallOption(100,100,O3/365,0,0.25,0) -> 5.216676124 | R3: =P3/Q3 -> -0.004992869368
A4: 0.25 | B4: Historical Volatility | O4: =O3-1 -> 99 | P4: =CallTheta(100,100,O4/365,0,0.25,0) -> -0.02617795859 | Q4: =CallOption(100,100,O4/365,0,0.25,0) -> 5.190564218 | R4: =P4/Q4 -> -0.005043374378 | S4: =(R4-R3)/R3 -> 0.01011542784
A5: =A3+60 -> 2012-09-08 | B5: Expiry Date | O5: =O4-1 -> 98 | P5: -0.02631174378 | Q5: 5.164319537 | R5: -0.005094910103 | S5: =(R5-R4)/R4 -> 0.0102185008
A6: 0 | B6: Risk Free Rate | O6: 97 | P6: -0.02644758964 | Q6: 5.137940044 | R6: -0.005147508421 | S6: 0.01032369898
A7: 0 | B7: Dividend Yield | O7: 96 | P7: -0.02658554968 | Q7: 5.111423653 | R7: -0.005201202539 | S7: 0.01043108879
A8: =A5-A3 -> 60 | B8: DTE | O8: 95 | P8: -0.02672567936 | Q8: 5.084768221 | R8: -0.005256027059 | S8: 0.01054073943
A9: =A8/365 -> 0.1643835616 | B9: DTE in Years | O9: 94 | P9: -0.02686803623 | Q9: 5.057971552 | R9: -0.00531201806 | S9: 0.01065272307
O10: 93 | P10: -0.02701267998 | Q10: 5.031031387 | R10: -0.005369213169 | S10: 0.01076711496
B11: 100 | C11: =B11-10 -> 90 | D11: =C11-10 -> 80 | E11: 70 | F11: 60 | G11: 50 | H11: 40 | I11: 30 | J11: 20 | K11: 10 | L11: 1 | O11: 92 | P11: -0.02715967256 | Q11: 5.003945409 | R11: -0.005427651651 | S11: 0.01088399364
A12: 100 | B12: =CallTheta($A$1,$A12,B$11/365,$A$6,$A$4,$A$7) -> -0.02604618242 | C12: =CallTheta($A$1,$A12,C$11/365,$A$6,$A$4,$A$7) -> -0.02746096408 | D12: -0.02913298587 | E12: -0.03115113885 | F12: -0.03365427818 | G12: -0.0368743064 | H12: -0.04123555303 | I12: -0.04762490788 | J12: -0.05834084768 | K12: -0.08252407968 | L12: -0.2610143298 | O12: 91 | P12: -0.02730907832 | Q12: 4.976711237 | R12: -0.005487374496 | S12: 0.01100344107
A13: 100 | B13: =CallTheta($A$1,$A13,B$11/365,$A$6,$A$4,$A$7) -> -0.02604618242 | C13: -0.02746096408 | D13: -0.02913298587 | E13: -0.03115113885 | F13: -0.03365427818 | G13: -0.0368743064 | H13: -0.04123555303 | I13: -0.04762490788 | J13: -0.05834084768 | K13: -0.08252407968 | L13: -0.2610143298 | O13: 90 | P13: -0.02746096408 | Q13: 4.949326425 | R13: -0.005548424517 | S13: 0.0111255429
B14: =B12/B13 -> 1 | C14: =C12/C13 -> 1 | D14: 1 | E14: 1 | F14: 1 | G14: 1 | H14: 1 | I14: 1 | J14: 1 | K14: 1 | L14: 1 | O14: 89 | P14: -0.0276153993 | Q14: 4.921788459 | R14: -0.005610846449 | S14: 0.01125038858
O15: 88 | P15: -0.02777245617 | Q15: 4.894094753 | R15: -0.005674687062 | S15: 0.01137807167
O16: 87 | P16: -0.02793220981 | Q16: 4.866242648 | R16: -0.005739995276 | S16: 0.01150869
O17: 86 | P17: -0.02809473836 | Q17: 4.838229408 | R17: -0.005806822287 | S17: 0.01164234597
O18: 85 | P18: -0.02826012317 | Q18: 4.810052219 | R18: -0.005875221699 | S18: 0.01177914679
O19: 84 | P19: -0.02842844899 | Q19: 4.781708182 | R19: -0.005945249669 | S19: 0.01191920477
O20: 83 | P20: -0.0285998041 | Q20: 4.753194312 | R20: -0.006016965062 | S20: 0.01206263764
O21: 82 | P21: -0.02877428058 | Q21: 4.724507533 | R21: -0.006090429611 | S21: 0.01220956888
O22: 81 | P22: -0.02895197443 | Q22: 4.695644678 | R22: -0.006165708101 | S22: 0.01236012805
O23: 80 | P23: -0.02913298587 | Q23: 4.666602479 | R23: -0.006242868554 | S23: 0.0125144512
O24: 79 | P24: -0.02931741953 | Q24: 4.637377566 | R24: -0.006321982437 | S24: 0.01267268126
O25: 78 | P25: -0.02950538472 | Q25: 4.607966462 | R25: -0.006403124883 | S25: 0.01283496851
O26: 77 | P26: -0.0296969957 | Q26: 4.578365581 | R26: -0.006486374926 | S26: 0.01300147101
O27: 76 | P27: -0.029892372 | Q27: 4.548571216 | R27: -0.00657181576 | S27: 0.01317235516
O28: 75 | P28: -0.03009163868 | Q28: 4.51857954 | R28: -0.006659535017 | S28: 0.01334779622
O29: 74 | P29: -0.03029492669 | Q29: 4.488386598 | R29: -0.006749625067 | S29: 0.01352797893
O30: 73 | P30: -0.03050237327 | Q30: 4.457988301 | R30: -0.006842183338 | S30: 0.01371309815
O31: 72 | P31: -0.03071412228 | Q31: 4.427380418 | R31: -0.006937312673 | S31: 0.01390335958
O32: 71 | P32: -0.03093032465 | Q32: 4.396558572 | R32: -0.007035121709 | S32: 0.01409898048
O33: 70 | P33: -0.03115113885 | Q33: 4.365518231 | R33: -0.00713572529 | S33: 0.01430019056
O34: 69 | P34: -0.03137673132 | Q34: 4.334254701 | R34: -0.007239244918 | S34: 0.01450723281
O35: 68 | P35: -0.03160727707 | Q35: 4.302763117 | R35: -0.007345809242 | S35: 0.01472036454
O36: 67 | P36: -0.03184296022 | Q36: 4.271038435 | R36: -0.007455554592 | S36: 0.01493985841
O37: 66 | P37: -0.03208397457 | Q37: 4.23907542 | R37: -0.00756862556 | S37: 0.01516600361
O38: 65 | P38: -0.03233052438 | Q38: 4.206868641 | R38: -0.007685175636 | S38: 0.01539910713
O39: 64 | P39: -0.03258282499 | Q39: 4.174412455 | R39: -0.007805367903 | S39: 0.01563949514
O40: 63 | P40: -0.03284110366 | Q40: 4.141700998 | R40: -0.007929375799 | S40: 0.01588751451
O41: 62 | P41: -0.03310560045 | Q41: 4.108728175 | R41: -0.00805738395 | S41: 0.01614353451
O42: 61 | P42: -0.03337656912 | Q42: 4.07548764 | R42: -0.008189589092 | S42: 0.0164079486
O43: 60 | P43: -0.03365427818 | Q43: 4.04197279 | R43: -0.008326201073 | S43: 0.0166811765
O44: 59 | P44: -0.03393901199 | Q44: 4.008176742 | R44: -0.00846744397 | S44: 0.01696366637
O45: 58 | P45: -0.034231072 | Q45: 3.974092324 | R45: -0.008613557314 | S45: 0.01725589727
O46: 57 | P46: -0.0345307781 | Q46: 3.93971205 | R46: -0.008764797442 | S46: 0.01755838188
O47: 56 | P47: -0.03483847006 | Q47: 3.905028106 | R47: -0.008921439006 | S47: 0.01787166952
O48: 55 | P48: -0.0351545092 | Q48: 3.870032328 | R48: -0.009083776627 | S48: 0.01819634944
O49: 54 | P49: -0.03547928014 | Q49: 3.834716177 | R49: -0.009252126755 | S49: 0.01853305454
O50: 53 | P50: -0.03581319277 | Q50: 3.79907072 | R50: -0.009426829719 | S50: 0.01888246549
O51: 52 | P51: -0.03615668445 | Q51: 3.763086599 | R51: -0.00960825203 | S51: 0.01924531533
O52: 51 | P52: -0.03651022241 | Q52: 3.726754003 | R52: -0.009796788942 | S52: 0.01962239458
O53: 50 | P53: -0.0368743064 | Q53: 3.690062639 | R53: -0.009992867333 | S53: 0.020014557
O54: 49 | P54: -0.03724947173 | Q54: 3.653001697 | R54: -0.01019694892 | S54: 0.02042272604
O55: 48 | P55: -0.03763629249 | Q55: 3.615559811 | R55: -0.01040953392 | S55: 0.02084790214
O56: 47 | P56: -0.03803538533 | Q56: 3.577725022 | R56: -0.01063116508 | S56: 0.02129117083
O57: 46 | P57: -0.03844741356 | Q57: 3.539484729 | R57: -0.01086243239 | S57: 0.02175371208
O58: 45 | P58: -0.03887309179 | Q58: 3.500825645 | R58: -0.01110397824 | S58: 0.02223681072
O59: 44 | P59: -0.03931319116 | Q59: 3.461733739 | R59: -0.01135650345 | S59: 0.0227418684
O60: 43 | P60: -0.03976854522 | Q60: 3.422194179 | R60: -0.01162077402 | S60: 0.02327041712
O61: 42 | P61: -0.04024005657 | Q61: 3.382191264 | R61: -0.01189762891 | S61: 0.02382413484
O62: 41 | P62: -0.04072870439 | Q62: 3.341708355 | R62: -0.01218798892 | S62: 0.02440486318
O63: 40 | P63: -0.04123555303 | Q63: 3.300727789 | R63: -0.01249286693 | S63: 0.02501462794
O64: 39 | P64: -0.04176176174 | Q64: 3.259230796 | R64: -0.01281337971 | S64: 0.02565566268
O65: 38 | P65: -0.04230859586 | Q65: 3.217197392 | R65: -0.01315076158 | S65: 0.0263304361
O66: 37 | P66: -0.04287743963 | Q66: 3.17460627 | R66: -0.01350638032 | S66: 0.02704168377
O67: 36 | P67: -0.04346981095 | Q67: 3.131434672 | R67: -0.01388175565 | S67: 0.02779244519
O68: 35 | P68: =CallTheta(100,100,O68/365,0,0.25,0) -> -0.04408737846 | Q68: =CallOption(100,100,O68/365,0,0.25,0) -> 3.087658251 | R68: =P68/Q68 -> -0.01427858101 | S68: 0.02858610727
O69: =O68-1 -> 34 | P69: -0.04473198131 | Q69: 3.043250905 | R69: -0.01469874903 | S69: =(R69-R68)/R68 -> 0.02942645535
O70: 33 | P70: -0.04540565228 | Q70: 2.998184601 | R70: -0.01514438179 | S70: 0.03031773363
O71: 32 | P71: -0.04611064481 | Q71: 2.952429163 | R71: -0.0156178666 | S71: 0.0312647168
O72: 31 | P72: -0.04684946474 | Q72: 2.905952039 | R72: -0.01612189882 | S72: 0.03227279566
O73: 30 | P73: -0.04762490788 | Q73: 2.85871803 | R73: -0.01665953319 | S73: 0.03334807978
O74: 29 | P74: -0.04844010465 | Q74: 2.810688976 | R74: -0.01723424579 | S74: 0.03449752142
O75: 28 | P75: -0.04929857338 | Q75: 2.761823401 | R75: -0.01785000929 | S75: 0.03572906605
O76: 27 | P76: -0.05020428438 | Q76: 2.712076088 | R76: -0.01851138491 | S76: 0.03705183621
O77: 26 | P77: -0.05116173746 | Q77: 2.661397592 | R77: -0.01922363559 | S77: 0.03847635792
O78: 25 | P78: -0.0521760563 | Q78: 2.609733666 | R78: -0.01999286631 | S78: 0.04001484137
O79: 24 | P79: -0.05325310429 | Q79: 2.55702458 | R79: -0.02082619961 | S79: 0.04168153178
O80: 23 | P80: -0.05439962774 | Q80: 2.503204311 | R80: -0.02173199667 | S80: 0.04349315179
O81: 22 | P81: -0.0556234345 | Q81: 2.448199577 | R81: -0.02272013892 | S81: 0.04546946453
O82: 21 | P82: -0.05693361888 | Q82: 2.391928666 | R82: -0.02380238996 | S82: 0.04763399754
O83: 20 | P83: -0.05834084768 | Q83: 2.334300013 | R83: -0.02499286611 | S83: 0.05001498386
O84: 19 | P84: -0.05985772795 | Q84: 2.275210447 | R84: -0.02630865554 | S84: 0.05264660032
O85: 18 | P85: -0.06149928572 | Q85: 2.214543031 | R85: -0.02777064381 | S85: 0.05557061861
O86: 17 | P86: -0.06328359744 | Q86: 2.152164334 | R86: -0.02940463069 | S86: 0.05883863906
O87: 16 | P87: -0.06523263539 | Q87: 2.087920983 | R87: -0.03124286595 | S87: 0.06251516207
O88: 15 | P88: -0.06737341818 | Q88: 2.021635221 | R88: -0.03332619924 | S88: 0.06668188815
O89: 14 | P89: -0.06973960595 | Q89: 1.953099109 | R89: -0.03570715158 | S89: 0.07144386082
O90: 13 | P90: -0.07237375844 | Q90: 1.882066821 | R90: -0.03845440429 | S90: 0.07693844468
O91: 12 | P91: -0.07533060846 | Q91: 1.808244213 | R91: -0.04165953245 | S91: 0.08334879252
O92: 11 | P92: -0.07868193856 | Q92: 1.731274378 | R92: -0.0454474112 | S92: 0.09092465816
O93: 10 | P93: -0.08252407968 | Q93: 1.650717128 | R93: -0.0499928657 | S93: 0.1000156969
O94: 9 | P94: -0.08698987979 | Q94: 1.566018941 | R94: -0.05554842122 | S94: 0.1111269666
O95: 8 | P95: -0.09226867575 | Q95: 1.476467351 | R95: -0.06249286562 | S95: 0.1250160536
O96: 7 | P96: -0.09864147479 | Q96: 1.381118596 | R96: -0.07142143701 | S96: 0.1428734512
O97: 6 | P97: -0.1065472506 | Q97: 1.278676479 | R97: -0.08332619887 | S97: 0.1666833147
O98: 5 | P98: -0.1167191634 | Q98: 1.167274913 | R98: -0.0999928655 | S98: 0.2000171237
O99: 4 | P99: -0.130498785 | Q99: 1.04404987 | R99: -0.1249928655 | S99: 0.2500178371
O100: 3 | P100: -0.1506902426 | Q100: 0.9041801615 | R100: -0.1666595321 | S100: 0.3333523595
O101: 2 | P101: -0.1845610522 | Q101: 0.7382652776 | R101: -0.2499928654 | S101: 0.5000214044
O102: 1 | P102: -0.2610143298 | Q102: 0.5220361087 | R102: -0.4999928653 | S102: 1.000028539
